{"text_format":"1","workbook":"xlsx","n_sheets":4,"sheets":["Information","FundSplits","FundSplitsDB","ActiveFunds"],"not_rendered":{"charts":0,"images":0,"macros":1,"external_links":1,"defined_names":40,"comments":1,"pivot_tables":0},"unopened":[],"bounds":{"document_bytes":16777216,"sheet_cells":100000,"rows_first":2000,"rows_last":500,"rows_between":2000,"halvings":0,"cell_chars":16384,"cell_head_chars":4096},"cells_cut":0,"cells_raw":0,"read":"whole","date_system":"1900"}

{"sheet":"Information","index":0,"n_rows":14,"n_cols":1,"rows_kept":14,"cut":false,"hidden":false,"merged":[]}
[]
["Central Service Fund Splits "]
["Information and Instructions"]
[]
["1.  Fund splits currently on the sheet are the final fund splits from the 2016 Session model"]
["2.  To view a specific agencies splits choose the agency in the drop down box"]
["3.  The top choice in the drop down box will be to view all agencies."]
["4.  You will only be able to update, edit or delete a fund split at the agency level.  If all agencies are chosen it is view only and edits cannot be made."]
["5.  Agencies fund splits begin on row 10.  You will be able to delete or clear any row starting at row 10 and below.  Unlike the previous fund split sheet deleting is allowed"]
["6.  Once you have selected an agency there will be drop down selections that needs to be filled out in columns F, G, H, and I.  These will be smart lists that only apply to the specific agency."]
["7.  Each column starting in column J through column Q will need to have a fund split that equals 100% for the agency.  All columns will need to be filled unlike the previous sheet where blanks were ok.  "]
["    This will simplyfy formulas in the model.  If an agency has only one split for all services then you will just need to copy the split to all columns."]
["8.  Program and Subprogram detail is only needed for certain agencies.  The drop down will display a blank if the agency does not need program/subprogram detail."]
["9.  Once all changes have been made then \"Save/Update\" needs to be clicked.  Changing to a new agency without clicking the button your changes will not be saved."]

{"sheet":"FundSplits","index":1,"n_rows":10,"n_cols":17,"rows_kept":10,"cut":false,"hidden":false,"merged":[]}
[2,{"$f":"LEFT(VLOOKUP(A1,ActiveFunds!$G$4:$H$150,2,0),3)","v":"011"},null,{"$f":"VLOOKUP(A1,ActiveFunds!$G$4:$H$150,2,0)","v":"011-House of Representatives"},null,"Central Service Fund Splits"]
[null,"DuplicateCheck"]
[]
[null,null,null,null,null,null,null,null,{"$f":"IF(AND(LEFT(F10,3)=\"300\",LEFT(G10,3)=\"030\"),$Y$5:$Y$8,IF(AND(LEFT(F10,3)=\"300\",LEFT(G10,3)=\"040\"),$Y$9:$Y$11,\"\"))","v":""}]
[]
[{"$f":"LEFT(F6,3)","v":""},{"$f":"TRIM(LEFT(G6,3))","v":""},{"$f":"TRIM(LEFT(H6,4))","v":""},{"$f":"LEFT(I6,3)","v":""},{"$f":"MID(I6,5,1)","v":""},{"$f":"IF(AgyChoice = 1,\"When all agencies are selected you will not be able to edit the worksheet\",\"\")","v":""},null,{"$f":"IF(AND(LEFT(F10,3)=\"300\",LEFT(G10,3)=\"030\"),ActiveFunds!$Z$5:$Z$8,IF(AND(LEFT(F10,3)=\"300\",LEFT(G104,3)=\"040\"),ActiveFunds!$Z$9:$Z$12,\"\"))","v":""},null,"All Columns by Agency must equal 100%"]
["Agency Code","Program Code","Subprogram Code","Account","AppType","Agency","Program","Subprogram (only used for DSHS in Program 030 and 040)","Account and Approp Title","Auditor","AttGen","OAH","Facilities & Services Only","CTS","Debt Services ","Workers' Comp","All Other Services"]
[null,null,null,null,null,"Percent Totals (only applies when one agency chosen)",null,null,null,{"$f":"IF(AgyChoice=1,\"\",SUM(J9:J982))","v":1},1,1,1,1,1,1,1]
["Agency Code","Program Code","SubprogramCode","Account","AppType","Agency","Program","Subprogram (only used for DSHS in Program 030 and 040)","Account and Approp Title","Auditor","AttGen","OAH","Facilities & Services Only","CTS","Debt Services ","Workers' Comp","All Other Services"]
["011",null,null,"001","1","011-House of Representatives",null,null,"001-1 General Fund-State",1,1,1,1,1,1,1,1]

{"sheet":"FundSplitsDB","index":2,"n_rows":325,"n_cols":20,"rows_kept":325,"cut":false,"hidden":true,"merged":[]}
["Agency Code","Program Code","SubprogramCode","Account","AppType","Agency","Program","Subprogram (only used for DSHS in Program 030 and 040)","Account and Approp Title","Auditor","AttGen","OAH","Facilities & Services Only","CTS","Debt Services ","Workers' Comp","All Other Services",null,"Check Agency has Fund Splits",{"$f":"COUNTIF(A:A,AgyCode)","v":1}]
["011",null,null,"001","1",{"$f":"VLOOKUP(A2,ActiveFunds!$F$4:$H$106,3,0)","v":"011-House of Representatives"},null,null,{"$f":"VLOOKUP(D2&\"-\"&E2,ActiveFunds!$J$4:$K$456,2,0)","v":"001-1 General Fund-State"},1,1,1,1,1,1,1,1]
["012",null,null,"001","1",{"$f":"VLOOKUP(A3,ActiveFunds!$F$4:$H$106,3,0)","v":"012-Senate"},null,null,{"$f":"VLOOKUP(D3&\"-\"&E3,ActiveFunds!$J$4:$K$456,2,0)","v":"001-1 General Fund-State"},1,1,1,1,1,1,1,1]
["013",null,null,"108","1",{"$f":"VLOOKUP(A4,ActiveFunds!$F$4:$H$106,3,0)","v":"013-Joint Transportation Committee"},null,null,{"$f":"VLOOKUP(D4&\"-\"&E4,ActiveFunds!$J$4:$K$456,2,0)","v":"108-1 Motor Vehicle Account-State"},1,1,1,1,1,1,1,1]
["014",null,null,"553","1",{"$f":"VLOOKUP(A5,ActiveFunds!$F$4:$H$106,3,0)","v":"014-Jt Leg Audit & Review Committee"},null,null,{"$f":"VLOOKUP(D5&\"-\"&E5,ActiveFunds!$J$4:$K$456,2,0)","v":"553-1 Performance Audits of Govt Acct-State"},1,1,1,1,1,1,1,1]
["020","","","553","1","020-LEAP Committee",null,null,"553-1 Performance Audits of Govt Acct-State",1,1,1,1,1,1,1,1]
["035",null,null,"600","1",{"$f":"VLOOKUP(A7,ActiveFunds!$F$4:$H$106,3,0)","v":"035-Office of the State Actuary"},null,null,{"$f":"VLOOKUP(D7&\"-\"&E7,ActiveFunds!$J$4:$K$456,2,0)","v":"600-1 Dept of Retirement Systems Expense-State"},1,1,1,1,1,1,1,1]
["037",null,null,"001","1",{"$f":"VLOOKUP(A8,ActiveFunds!$F$4:$H$106,3,0)","v":"037-Office of Legislative Support Svcs"},null,null,{"$f":"VLOOKUP(D8&\"-\"&E8,ActiveFunds!$J$4:$K$456,2,0)","v":"001-1 General Fund-State"},1,1,1,1,1,1,1,1]
["038",null,null,"001","1",{"$f":"VLOOKUP(A9,ActiveFunds!$F$4:$H$106,3,0)","v":"038-Joint Legislative Systems Comm"},null,null,{"$f":"VLOOKUP(D9&\"-\"&E9,ActiveFunds!$J$4:$K$456,2,0)","v":"001-1 General Fund-State"},1,1,1,1,1,1,1,1]
["040",null,null,"001","1",{"$f":"VLOOKUP(A10,ActiveFunds!$F$4:$H$106,3,0)","v":"040-Statute Law Committee"},null,null,{"$f":"VLOOKUP(D10&\"-\"&E10,ActiveFunds!$J$4:$K$456,2,0)","v":"001-1 General Fund-State"},0.8,0.8,0.8,0.8,0.8,0.8,0.8,0.8]
["040",null,null,"197","6",{"$f":"VLOOKUP(A11,ActiveFunds!$F$4:$H$106,3,0)","v":"040-Statute Law Committee"},null,null,{"$f":"VLOOKUP(D11&\"-\"&E11,ActiveFunds!$J$4:$K$456,2,0)","v":"197-6 Statute Law Committee Publications-Non-Appropriated"},0.2,0.2,0.2,0.2,0.2,0.2,0.2,0.2]
["045",null,null,"001","1",{"$f":"VLOOKUP(A12,ActiveFunds!$F$4:$H$106,3,0)","v":"045-Supreme Court"},null,null,{"$f":"VLOOKUP(D12&\"-\"&E12,ActiveFunds!$J$4:$K$456,2,0)","v":"001-1 General Fund-State"},1,1,1,1,1,1,1,1]
["046",null,null,"001","1",{"$f":"VLOOKUP(A13,ActiveFunds!$F$4:$H$106,3,0)","v":"046-State Law Library"},null,null,{"$f":"VLOOKUP(D13&\"-\"&E13,ActiveFunds!$J$4:$K$456,2,0)","v":"001-1 General Fund-State"},1,1,1,1,1,1,1,1]
["048",null,null,"001","1",{"$f":"VLOOKUP(A14,ActiveFunds!$F$4:$H$106,3,0)","v":"048-Court of Appeals"},null,null,{"$f":"VLOOKUP(D14&\"-\"&E14,ActiveFunds!$J$4:$K$456,2,0)","v":"001-1 General Fund-State"},1,1,1,1,1,1,1,1]
["050",null,null,"001","1",{"$f":"VLOOKUP(A15,ActiveFunds!$F$4:$H$106,3,0)","v":"050-Commission on Judicial Conduct"},null,null,{"$f":"VLOOKUP(D15&\"-\"&E15,ActiveFunds!$J$4:$K$456,2,0)","v":"001-1 General Fund-State"},1,1,1,1,1,1,1,1]
["055",null,null,"001","1",{"$f":"VLOOKUP(A16,ActiveFunds!$F$4:$H$106,3,0)","v":"055-Administrative Office of the Courts"},null,null,{"$f":"VLOOKUP(D16&\"-\"&E16,ActiveFunds!$J$4:$K$456,2,0)","v":"001-1 General Fund-State"},1,1,1,1,1,1,1,1]
["056",null,null,"001","1",{"$f":"VLOOKUP(A17,ActiveFunds!$F$4:$H$106,3,0)","v":"056-Office of Public Defense"},null,null,{"$f":"VLOOKUP(D17&\"-\"&E17,ActiveFunds!$J$4:$K$456,2,0)","v":"001-1 General Fund-State"},1,1,1,1,1,1,1,1]
["057",null,null,"001","1",{"$f":"VLOOKUP(A18,ActiveFunds!$F$4:$H$106,3,0)","v":"057-Office of Civil Legal Aid"},null,null,{"$f":"VLOOKUP(D18&\"-\"&E18,ActiveFunds!$J$4:$K$456,2,0)","v":"001-1 General Fund-State"},1,1,1,1,1,1,1,1]
["075",null,null,"001","1",{"$f":"VLOOKUP(A19,ActiveFunds!$F$4:$H$106,3,0)","v":"075-Office of the Governor"},null,null,{"$f":"VLOOKUP(D19&\"-\"&E19,ActiveFunds!$J$4:$K$456,2,0)","v":"001-1 General Fund-State"},1,1,1,1,1,1,1,1]
["080",null,null,"001","1",{"$f":"VLOOKUP(A20,ActiveFunds!$F$4:$H$106,3,0)","v":"080-Office of the Lieutenant Governor"},null,null,{"$f":"VLOOKUP(D20&\"-\"&E20,ActiveFunds!$J$4:$K$456,2,0)","v":"001-1 General Fund-State"},1,1,1,1,1,1,1,1]
["082",null,null,"001","1",{"$f":"VLOOKUP(A21,ActiveFunds!$F$4:$H$106,3,0)","v":"082-Public Disclosure Commission"},null,null,{"$f":"VLOOKUP(D21&\"-\"&E21,ActiveFunds!$J$4:$K$456,2,0)","v":"001-1 General Fund-State"},1,1,1,1,1,1,1,1]
["085",null,null,"001","1",{"$f":"VLOOKUP(A22,ActiveFunds!$F$4:$H$106,3,0)","v":"085-Office of the Secretary of State"},null,null,{"$f":"VLOOKUP(D22&\"-\"&E22,ActiveFunds!$J$4:$K$456,2,0)","v":"001-1 General Fund-State"},0.41,0.41,0.41,0.41,0.41,0.41,0.41,0.41]
["085",null,null,"006","1",{"$f":"VLOOKUP(A23,ActiveFunds!$F$4:$H$106,3,0)","v":"085-Office of the Secretary of State"},null,null,{"$f":"VLOOKUP(D23&\"-\"&E23,ActiveFunds!$J$4:$K$456,2,0)","v":"006-1 Public Records Effic/Presrv/Access-State"},0.34,0.34,0.34,0.34,0.34,0.34,0.34,0.34]
["085",null,null,"407","6",{"$f":"VLOOKUP(A24,ActiveFunds!$F$4:$H$106,3,0)","v":"085-Office of the Secretary of State"},null,null,{"$f":"VLOOKUP(D24&\"-\"&E24,ActiveFunds!$J$4:$K$456,2,0)","v":"407-6 Secretary of State's Revolving Acct-Non-Appropriated"},0.13,0.13,0.13,0.13,0.13,0.13,0.13,0.13]
["085",null,null,"441","1",{"$f":"VLOOKUP(A25,ActiveFunds!$F$4:$H$106,3,0)","v":"085-Office of the Secretary of State"},null,null,{"$f":"VLOOKUP(D25&\"-\"&E25,ActiveFunds!$J$4:$K$456,2,0)","v":"441-1 Local Government Archives Account-State"},0.12,0.12,0.12,0.12,0.12,0.12,0.12,0.12]
["086",null,null,"001","1",{"$f":"VLOOKUP(A26,ActiveFunds!$F$4:$H$106,3,0)","v":"086-Governor's Office of Indian Affairs"},null,null,{"$f":"VLOOKUP(D26&\"-\"&E26,ActiveFunds!$J$4:$K$456,2,0)","v":"001-1 General Fund-State"},1,1,1,1,1,1,1,1]
["087",null,null,"001","1",{"$f":"VLOOKUP(A27,ActiveFunds!$F$4:$H$106,3,0)","v":"087-Asian-Pacific-American Affrs"},null,null,{"$f":"VLOOKUP(D27&\"-\"&E27,ActiveFunds!$J$4:$K$456,2,0)","v":"001-1 General Fund-State"},1,1,1,1,1,1,1,1]
["090",null,null,"404","1",{"$f":"VLOOKUP(A28,ActiveFunds!$F$4:$H$106,3,0)","v":"090-Office of the State Treasurer"},null,null,{"$f":"VLOOKUP(D28&\"-\"&E28,ActiveFunds!$J$4:$K$456,2,0)","v":"404-1 State Treasurer's Service Account-State"},1,1,1,1,1,1,1,1]
["091",null,null,"001","1","091-Redistricting Commission",null,null,{"$f":"VLOOKUP(D29&\"-\"&E29,ActiveFunds!$J$4:$K$456,2,0)","v":"001-1 General Fund-State"},1,1,1,1,1,1,1,1]
["095",null,null,"001","1",{"$f":"VLOOKUP(A30,ActiveFunds!$F$4:$H$106,3,0)","v":"095-Office of the State Auditor"},null,null,{"$f":"VLOOKUP(D30&\"-\"&E30,ActiveFunds!$J$4:$K$456,2,0)","v":"001-1 General Fund-State"},0.02,0.02,0.02,0.02,0.02,0.02,0.02,0.02]
["095",null,null,"413","6",{"$f":"VLOOKUP(A31,ActiveFunds!$F$4:$H$106,3,0)","v":"095-Office of the State Auditor"},null,null,{"$f":"VLOOKUP(D31&\"-\"&E31,ActiveFunds!$J$4:$K$456,2,0)","v":"413-6 Municipal Revolving Account-Non-Appropriated"},0.56999999999999995,0.56999999999999995,0.56999999999999995,0.56999999999999995,0.56999999999999995,0.56999999999999995,0.56999999999999995,0.56999999999999995]
["095",null,null,"483","1",{"$f":"VLOOKUP(A32,ActiveFunds!$F$4:$H$106,3,0)","v":"095-Office of the State Auditor"},null,null,{"$f":"VLOOKUP(D32&\"-\"&E32,ActiveFunds!$J$4:$K$456,2,0)","v":"483-1 Auditing Services Revolving Acct-State"},0.13,0.13,0.13,0.13,0.13,0.13,0.13,0.13]
["095",null,null,"553","1",{"$f":"VLOOKUP(A33,ActiveFunds!$F$4:$H$106,3,0)","v":"095-Office of the State Auditor"},null,null,{"$f":"VLOOKUP(D33&\"-\"&E33,ActiveFunds!$J$4:$K$456,2,0)","v":"553-1 Performance Audits of Govt Acct-State"},0,0,0,0,0,0,0,0]
["095",null,null,"553","6",{"$f":"VLOOKUP(A34,ActiveFunds!$F$4:$H$106,3,0)","v":"095-Office of the State Auditor"},null,null,{"$f":"VLOOKUP(D34&\"-\"&E34,ActiveFunds!$J$4:$K$456,2,0)","v":"553-6 Performance Audits of Govt Acct-Non-Appropriated"},0.28000000000000003,0.28000000000000003,0.28000000000000003,0.28000000000000003,0.28000000000000003,0.28000000000000003,0.28000000000000003,0.28000000000000003]
["099",null,null,"001","1",{"$f":"VLOOKUP(A35,ActiveFunds!$F$4:$H$106,3,0)","v":"099-Comm Salaries for Elected Officials"},null,null,{"$f":"VLOOKUP(D35&\"-\"&E35,ActiveFunds!$J$4:$K$456,2,0)","v":"001-1 General Fund-State"},1,1,1,1,1,1,1,1]
["100",null,null,"001","1",{"$f":"VLOOKUP(A36,ActiveFunds!$F$4:$H$106,3,0)","v":"100-Office of the Attorney General"},null,null,{"$f":"VLOOKUP(D36&\"-\"&E36,ActiveFunds!$J$4:$K$456,2,0)","v":"001-1 General Fund-State"},9.0300000000000005E-2,9.0300000000000005E-2,9.0300000000000005E-2,9.0300000000000005E-2,9.0300000000000005E-2,9.0300000000000005E-2,9.0300000000000005E-2,9.0300000000000005E-2]
["100",null,null,"111","1",{"$f":"VLOOKUP(A37,ActiveFunds!$F$4:$H$106,3,0)","v":"100-Office of the Attorney General"},null,null,{"$f":"VLOOKUP(D37&\"-\"&E37,ActiveFunds!$J$4:$K$456,2,0)","v":"111-1 Public Service Revolving Account-State"},6.3E-3,6.3E-3,6.3E-3,6.3E-3,6.3E-3,6.3E-3,6.3E-3,6.3E-3]
["100",null,null,"12F","6",{"$f":"VLOOKUP(A38,ActiveFunds!$F$4:$H$106,3,0)","v":"100-Office of the Attorney General"},null,null,{"$f":"VLOOKUP(D38&\"-\"&E38,ActiveFunds!$J$4:$K$456,2,0)","v":"12F-6 Manufactured/Mobile Home Dispute-Non-Appropriated"},2.5999999999999999E-3,2.5999999999999999E-3,2.5999999999999999E-3,2.5999999999999999E-3,2.5999999999999999E-3,2.5999999999999999E-3,2.5999999999999999E-3,2.5999999999999999E-3]
["100",null,null,"154","1",{"$f":"VLOOKUP(A39,ActiveFunds!$F$4:$H$106,3,0)","v":"100-Office of the Attorney General"},null,null,{"$f":"VLOOKUP(D39&\"-\"&E39,ActiveFunds!$J$4:$K$456,2,0)","v":"154-1 New Motor Vehicle Arbitration Acct-State"},2.8E-3,2.8E-3,2.8E-3,2.8E-3,2.8E-3,2.8E-3,2.8E-3,2.8E-3]
["100",null,null,"17L","6",{"$f":"VLOOKUP(A40,ActiveFunds!$F$4:$H$106,3,0)","v":"100-Office of the Attorney General"},null,null,{"$f":"VLOOKUP(D40&\"-\"&E40,ActiveFunds!$J$4:$K$456,2,0)","v":"17L-6 Foreclosure Fairness Account-Non-Appropriated"},1.8E-3,1.8E-3,1.8E-3,1.8E-3,1.8E-3,1.8E-3,1.8E-3,1.8E-3]
["100",null,null,"405","1",{"$f":"VLOOKUP(A41,ActiveFunds!$F$4:$H$106,3,0)","v":"100-Office of the Attorney General"},null,null,{"$f":"VLOOKUP(D41&\"-\"&E41,ActiveFunds!$J$4:$K$456,2,0)","v":"405-1 Legal Services Revolving Account-State"},0.89539999999999997,0.89539999999999997,0.89539999999999997,0.89539999999999997,0.89539999999999997,0.89539999999999997,0.89539999999999997,0.89539999999999997]
["100",null,null,"828","1",{"$f":"VLOOKUP(A42,ActiveFunds!$F$4:$H$106,3,0)","v":"100-Office of the Attorney General"},null,null,{"$f":"VLOOKUP(D42&\"-\"&E42,ActiveFunds!$J$4:$K$456,2,0)","v":"828-1 Tobacco Prevention and Control Acct-State"},8.0000000000000004E-4,8.0000000000000004E-4,8.0000000000000004E-4,8.0000000000000004E-4,8.0000000000000004E-4,8.0000000000000004E-4,8.0000000000000004E-4,8.0000000000000004E-4]
["101",null,null,"001","1",{"$f":"VLOOKUP(A43,ActiveFunds!$F$4:$H$106,3,0)","v":"101-Caseload Forecast Council"},null,null,{"$f":"VLOOKUP(D43&\"-\"&E43,ActiveFunds!$J$4:$K$456,2,0)","v":"001-1 General Fund-State"},1,1,1,1,1,1,1,1]
["102",null,null,"300","6",{"$f":"VLOOKUP(A44,ActiveFunds!$F$4:$H$106,3,0)","v":"102-Dept of Financial Institutions"},null,null,{"$f":"VLOOKUP(D44&\"-\"&E44,ActiveFunds!$J$4:$K$456,2,0)","v":"300-6 Financial Services Regulation Acct-Non-Appropriated"},1,1,1,1,1,1,1,1]
["103","","","001","1","103-Department of Commerce",null,null,"001-1 General Fund-State",0.35920000000000002,0.35920000000000002,0.35920000000000002,0.35920000000000002,0.35920000000000002,0.61060000000000003,0.35920000000000002,0.35920000000000002]
["103","","","001","2","103-Department of Commerce",null,null,"001-2 General Fund-Federal",0.25140000000000001,0.25140000000000001,0.25140000000000001,0.25140000000000001,0.25140000000000001,0,0.25140000000000001,0.25140000000000001]
["103","","","001","7","103-Department of Commerce",null,null,"001-7 General Fund-Private/Local",9.9000000000000005E-2,9.9000000000000005E-2,9.9000000000000005E-2,9.9000000000000005E-2,9.9000000000000005E-2,9.9000000000000005E-2,9.9000000000000005E-2,9.9000000000000005E-2]
["103","","","001","8","103-Department of Commerce",null,null,"001-8 General Fund-Federal ARRA",0,0,0,0,0,0,0,0]
["103","","","04R","1","103-Department of Commerce",null,null,"04R-1 Drinking Water Assistance Account-State",0,0,0,0,0,0,0,0]
["103","","","058","1","103-Department of Commerce",null,null,"058-1 Public Works Assistance Account-State",5.2200000000000003E-2,5.2200000000000003E-2,5.2200000000000003E-2,5.2200000000000003E-2,5.2200000000000003E-2,5.2200000000000003E-2,5.2200000000000003E-2,5.2200000000000003E-2]
["103","","","05R","1","103-Department of Commerce",null,null,"05R-1 Drinking Water Assist Admin Acct-State",2.2899999999999997E-2,2.2899999999999997E-2,2.2899999999999997E-2,2.2899999999999997E-2,2.2899999999999997E-2,2.2899999999999997E-2,2.2899999999999997E-2,2.2899999999999997E-2]
["103","","","06K","1","103-Department of Commerce",null,null,"06K-1 Lead Paint Account-State",3.2000000000000002E-3,3.2000000000000002E-3,3.2000000000000002E-3,3.2000000000000002E-3,3.2000000000000002E-3,3.2000000000000002E-3,3.2000000000000002E-3,3.2000000000000002E-3]
["103","","","10B","1","103-Department of Commerce",null,null,"10B-1 Home Security Fund Account-State",5.62E-2,5.62E-2,5.62E-2,5.62E-2,5.62E-2,5.62E-2,5.62E-2,5.62E-2]
["103","","","12C","1","103-Department of Commerce",null,null,"12C-1 Affordable Housing For All-State",6.0000000000000001E-3,6.0000000000000001E-3,6.0000000000000001E-3,6.0000000000000001E-3,6.0000000000000001E-3,6.0000000000000001E-3,6.0000000000000001E-3,6.0000000000000001E-3]
["103","","","150","1","103-Department of Commerce",null,null,"150-1 Low-Income Weath/Struct Rehab Asst-State",4.7000000000000002E-3,4.7000000000000002E-3,4.7000000000000002E-3,4.7000000000000002E-3,4.7000000000000002E-3,4.7000000000000002E-3,4.7000000000000002E-3,4.7000000000000002E-3]
["103","","","15A","6","103-Department of Commerce",null,null,"15A-6 Transitional Housing Oper & Rent-Non-Appropriated",5.0000000000000001E-4,5.0000000000000001E-4,5.0000000000000001E-4,5.0000000000000001E-4,5.0000000000000001E-4,5.0000000000000001E-4,5.0000000000000001E-4,5.0000000000000001E-4]
["103","","","174","1","103-Department of Commerce",null,null,"174-1 Local Toxics Control Account-State",4.0000000000000002E-4,4.0000000000000002E-4,4.0000000000000002E-4,4.0000000000000002E-4,4.0000000000000002E-4,4.0000000000000002E-4,4.0000000000000002E-4,4.0000000000000002E-4]
["103","","","17L","6","103-Department of Commerce",null,null,"17L-6 Foreclosure Fairness Account-Non-Appropriated",2.47E-2,2.47E-2,2.47E-2,2.47E-2,2.47E-2,2.47E-2,2.47E-2,2.47E-2]
["103","","","205","6","103-Department of Commerce",null,null,"205-6 Mobile Home Park Relocation Account-Non-Appropriated",3.3999999999999998E-3,3.3999999999999998E-3,3.3999999999999998E-3,3.3999999999999998E-3,3.3999999999999998E-3,3.3999999999999998E-3,3.3999999999999998E-3,3.3999999999999998E-3]
["103","","","263","1","103-Department of Commerce",null,null,"263-1 Community/Economic Development Fee-State",2.1700000000000001E-2,2.1700000000000001E-2,2.1700000000000001E-2,2.1700000000000001E-2,2.1700000000000001E-2,2.1700000000000001E-2,2.1700000000000001E-2,2.1700000000000001E-2]
["103","","","501","1","103-Department of Commerce",null,null,"501-1 Liquor Revolving Account-State",1.1999999999999999E-3,1.1999999999999999E-3,1.1999999999999999E-3,1.1999999999999999E-3,1.1999999999999999E-3,1.1999999999999999E-3,1.1999999999999999E-3,1.1999999999999999E-3]
["103","","","532","1","103-Department of Commerce",null,null,"532-1 Washington Housing Trust Account-State",7.7499999999999999E-2,7.7499999999999999E-2,7.7499999999999999E-2,7.7499999999999999E-2,7.7499999999999999E-2,7.7499999999999999E-2,7.7499999999999999E-2,7.7499999999999999E-2]
["103","","","887","1","103-Department of Commerce",null,null,"887-1 Public Facility Const Loan Revolv-State",1.5800000000000002E-2,1.5800000000000002E-2,1.5800000000000002E-2,1.5800000000000002E-2,1.5800000000000002E-2,1.5800000000000002E-2,1.5800000000000002E-2,1.5800000000000002E-2]
["104",null,null,"001","1",{"$f":"VLOOKUP(A64,ActiveFunds!$F$4:$H$106,3,0)","v":"104-Economic & Revenue Forecast Council"},null,null,{"$f":"VLOOKUP(D64&\"-\"&E64,ActiveFunds!$J$4:$K$456,2,0)","v":"001-1 General Fund-State"},1,1,1,1,1,1,1,1]
["105",null,null,"001","1",{"$f":"VLOOKUP(A65,ActiveFunds!$F$4:$H$106,3,0)","v":"105-Office of Financial Management"},null,null,{"$f":"VLOOKUP(D65&\"-\"&E65,ActiveFunds!$J$4:$K$456,2,0)","v":"001-1 General Fund-State"},0.72,0.72,0.72,0.72,0.72,0.72,0.72,0.72]
["105",null,null,"415","1",{"$f":"VLOOKUP(A66,ActiveFunds!$F$4:$H$106,3,0)","v":"105-Office of Financial Management"},null,null,{"$f":"VLOOKUP(D66&\"-\"&E66,ActiveFunds!$J$4:$K$456,2,0)","v":"415-1 Personnel Service Account-State"},0.17,0.17,0.17,0.17,0.17,0.17,0.17,0.17]
["105",null,null,"419","1",{"$f":"VLOOKUP(A67,ActiveFunds!$F$4:$H$106,3,0)","v":"105-Office of Financial Management"},null,null,{"$f":"VLOOKUP(D67&\"-\"&E67,ActiveFunds!$J$4:$K$456,2,0)","v":"419-1 Data Processing Revolving Account-State"},0,0,0,0,0,0,0,0]
["105",null,null,"436","6",{"$f":"VLOOKUP(A68,ActiveFunds!$F$4:$H$106,3,0)","v":"105-Office of Financial Management"},null,null,{"$f":"VLOOKUP(D68&\"-\"&E68,ActiveFunds!$J$4:$K$456,2,0)","v":"436-6 OFM Labor Relations Service Acct-Non-Appropriated"},0.11,0.11,0.11,0.11,0.11,0.11,0.11,0.11]
["107","OTH",null,"001","1",{"$f":"VLOOKUP(A69,ActiveFunds!$F$4:$H$106,3,0)","v":"107-WA State Health Care Authority"},"OTH-Health Care Auth-Other",null,{"$f":"VLOOKUP(D69&\"-\"&E69,ActiveFunds!$J$4:$K$456,2,0)","v":"001-1 General Fund-State"},0.42,0.42,0.42,0.42,0.42,0.90999999999999992,0.42,0.42]
["107","OTH",null,"001","2",{"$f":"VLOOKUP(A70,ActiveFunds!$F$4:$H$106,3,0)","v":"107-WA State Health Care Authority"},"OTH-Health Care Auth-Other",null,{"$f":"VLOOKUP(D70&\"-\"&E70,ActiveFunds!$J$4:$K$456,2,0)","v":"001-2 General Fund-Federal"},0.49,0.49,0.49,0.49,0.49,0,0.49,0.49]
["107","OTH",null,"418","1",{"$f":"VLOOKUP(A71,ActiveFunds!$F$4:$H$106,3,0)","v":"107-WA State Health Care Authority"},"OTH-Health Care Auth-Other",null,{"$f":"VLOOKUP(D71&\"-\"&E71,ActiveFunds!$J$4:$K$456,2,0)","v":"418-1 St Health Care Authority Admin Acct-State"},0.09,0.09,0.09,0.09,0.09,0.09,0.09,0.09]
["110",null,null,"484","1",{"$f":"VLOOKUP(A72,ActiveFunds!$F$4:$H$106,3,0)","v":"110-Office of Administrative Hearings"},null,null,{"$f":"VLOOKUP(D72&\"-\"&E72,ActiveFunds!$J$4:$K$456,2,0)","v":"484-1 Administrative Hearings Revolving-State"},1,1,1,1,1,1,1,1]
["116",null,null,"578","1",{"$f":"VLOOKUP(A73,ActiveFunds!$F$4:$H$106,3,0)","v":"116-State Lottery Commission"},null,null,{"$f":"VLOOKUP(D73&\"-\"&E73,ActiveFunds!$J$4:$K$456,2,0)","v":"578-1 Lottery Administrative Account-State"},1,1,1,1,1,1,1,1]
["117",null,null,"884","6",{"$f":"VLOOKUP(A74,ActiveFunds!$F$4:$H$106,3,0)","v":"117-Washington State Gambling Comm"},null,null,{"$f":"VLOOKUP(D74&\"-\"&E74,ActiveFunds!$J$4:$K$456,2,0)","v":"884-6 Gambling Revolving Account-Non-Appropriated"},1,1,1,1,1,1,1,1]
["118",null,null,"001","1",{"$f":"VLOOKUP(A75,ActiveFunds!$F$4:$H$106,3,0)","v":"118-WA State Comm on Hispanic Affairs"},null,null,{"$f":"VLOOKUP(D75&\"-\"&E75,ActiveFunds!$J$4:$K$456,2,0)","v":"001-1 General Fund-State"},1,1,1,1,1,1,1,1]
["119",null,null,"001","1",{"$f":"VLOOKUP(A76,ActiveFunds!$F$4:$H$106,3,0)","v":"119-African-American Affairs Comm"},null,null,{"$f":"VLOOKUP(D76&\"-\"&E76,ActiveFunds!$J$4:$K$456,2,0)","v":"001-1 General Fund-State"},1,1,1,1,1,1,1,1]
["120",null,null,"001","1",{"$f":"VLOOKUP(A77,ActiveFunds!$F$4:$H$106,3,0)","v":"120-Human Rights Commission"},null,null,{"$f":"VLOOKUP(D77&\"-\"&E77,ActiveFunds!$J$4:$K$456,2,0)","v":"001-1 General Fund-State"},1,1,1,1,1,1,1,1]
["124",null,null,"600","1",{"$f":"VLOOKUP(A78,ActiveFunds!$F$4:$H$106,3,0)","v":"124-Department of Retirement Systems"},null,null,{"$f":"VLOOKUP(D78&\"-\"&E78,ActiveFunds!$J$4:$K$456,2,0)","v":"600-1 Dept of Retirement Systems Expense-State"},0.93200000000000005,0.03,0.93200000000000005,0.93200000000000005,0.93200000000000005,0.93200000000000005,0.93200000000000005,0.93200000000000005]
["124",null,null,"874","6",{"$f":"VLOOKUP(A79,ActiveFunds!$F$4:$H$106,3,0)","v":"124-Department of Retirement Systems"},null,null,{"$f":"VLOOKUP(D79&\"-\"&E79,ActiveFunds!$J$4:$K$456,2,0)","v":"874-6 OASI Revolving Account-Non-Appropriated"},5.0000000000000001E-3,0,5.0000000000000001E-3,5.0000000000000001E-3,5.0000000000000001E-3,5.0000000000000001E-3,5.0000000000000001E-3,5.0000000000000001E-3]
["124",null,null,"888","6",{"$f":"VLOOKUP(A80,ActiveFunds!$F$4:$H$106,3,0)","v":"124-Department of Retirement Systems"},null,null,{"$f":"VLOOKUP(D80&\"-\"&E80,ActiveFunds!$J$4:$K$456,2,0)","v":"888-6 Deferred Compensation Admin Account-Non-Appropriated"},6.3E-2,0.01,6.3E-2,6.3E-2,6.3E-2,6.3E-2,6.3E-2,6.3E-2]
["124",null,null,"NonBud","N",{"$f":"VLOOKUP(A81,ActiveFunds!$F$4:$H$106,3,0)","v":"124-Department of Retirement Systems"},null,null,"Non Budgeted Fund",0,0.96,0,0,0,0,0,0]
["126",null,null,"031","1",{"$f":"VLOOKUP(A82,ActiveFunds!$F$4:$H$106,3,0)","v":"126-State Investment Board"},null,null,{"$f":"VLOOKUP(D82&\"-\"&E82,ActiveFunds!$J$4:$K$456,2,0)","v":"031-1 State Investment Board Expense Acct-State"},1,1,1,1,1,1,1,1]
["140",null,null,"001","1",{"$f":"VLOOKUP(A83,ActiveFunds!$F$4:$H$106,3,0)","v":"140-Department of Revenue"},null,null,{"$f":"VLOOKUP(D83&\"-\"&E83,ActiveFunds!$J$4:$K$456,2,0)","v":"001-1 General Fund-State"},0.89,0.89,0.89,0.89,0.89,0.89,0.89,0.89]
["140",null,null,"02W","1",{"$f":"VLOOKUP(A84,ActiveFunds!$F$4:$H$106,3,0)","v":"140-Department of Revenue"},null,null,{"$f":"VLOOKUP(D84&\"-\"&E84,ActiveFunds!$J$4:$K$456,2,0)","v":"02W-1 Timber Tax Distribution Account-State"},2.5000000000000001E-2,2.5000000000000001E-2,2.5000000000000001E-2,2.5000000000000001E-2,2.5000000000000001E-2,2.5000000000000001E-2,2.5000000000000001E-2,2.5000000000000001E-2]
["140",null,null,"03N","1",{"$f":"VLOOKUP(A85,ActiveFunds!$F$4:$H$106,3,0)","v":"140-Department of Revenue"},null,null,{"$f":"VLOOKUP(D85&\"-\"&E85,ActiveFunds!$J$4:$K$456,2,0)","v":"03N-1 Business License Account-State"},0.05,0.05,0.05,0.05,0.05,0.05,0.05,0.05]
["140",null,null,"196","6",{"$f":"VLOOKUP(A86,ActiveFunds!$F$4:$H$106,3,0)","v":"140-Department of Revenue"},null,null,{"$f":"VLOOKUP(D86&\"-\"&E86,ActiveFunds!$J$4:$K$456,2,0)","v":"196-6 Unclaimed Personal Property Account-Non-Appropriated"},3.5000000000000003E-2,3.5000000000000003E-2,3.5000000000000003E-2,3.5000000000000003E-2,3.5000000000000003E-2,3.5000000000000003E-2,3.5000000000000003E-2,3.5000000000000003E-2]
["142",null,null,"001","1",{"$f":"VLOOKUP(A87,ActiveFunds!$F$4:$H$106,3,0)","v":"142-Board of Tax Appeals"},null,null,{"$f":"VLOOKUP(D87&\"-\"&E87,ActiveFunds!$J$4:$K$456,2,0)","v":"001-1 General Fund-State"},1,1,1,1,1,1,1,1]
["147",null,null,"453","1",{"$f":"VLOOKUP(A88,ActiveFunds!$F$4:$H$106,3,0)","v":"147-Minority & Women's Business Enterp"},null,null,{"$f":"VLOOKUP(D88&\"-\"&E88,ActiveFunds!$J$4:$K$456,2,0)","v":"453-1 OMWBE Enterprises Account-State"},1,1,1,1,1,1,1,1]
["160",null,null,"138","1",{"$f":"VLOOKUP(A89,ActiveFunds!$F$4:$H$106,3,0)","v":"160-Office of Insurance Commissioner"},null,null,{"$f":"VLOOKUP(D89&\"-\"&E89,ActiveFunds!$J$4:$K$456,2,0)","v":"138-1 Insurance Commissioner's Regulatory-State"},1,1,1,1,1,1,1,1]
["163",null,null,"458","1",{"$f":"VLOOKUP(A90,ActiveFunds!$F$4:$H$106,3,0)","v":"163-Consolidated Technology Services"},null,null,{"$f":"VLOOKUP(D90&\"-\"&E90,ActiveFunds!$J$4:$K$456,2,0)","v":"458-1 Consolidated Tech Services Rev Acct-State"},2.3E-2,2.3E-2,2.3E-2,2.3E-2,2.3E-2,2.3E-2,2.3E-2,2.3E-2]
["163",null,null,"458","6",{"$f":"VLOOKUP(A91,ActiveFunds!$F$4:$H$106,3,0)","v":"163-Consolidated Technology Services"},null,null,{"$f":"VLOOKUP(D91&\"-\"&E91,ActiveFunds!$J$4:$K$456,2,0)","v":"458-6 Consolidated Tech Services Rev Acct-Non-Appropriated"},0.66900000000000004,0.66900000000000004,0.66900000000000004,0.66900000000000004,0.66900000000000004,0.66900000000000004,0.66900000000000004,0.66900000000000004]
["163",null,null,"461","6",{"$f":"VLOOKUP(A92,ActiveFunds!$F$4:$H$106,3,0)","v":"163-Consolidated Technology Services"},null,null,{"$f":"VLOOKUP(D92&\"-\"&E92,ActiveFunds!$J$4:$K$456,2,0)","v":"461-6 Shared IT Systems Revolving Acct-Non-Appropriated"},2.4E-2,2.4E-2,2.4E-2,2.4E-2,2.4E-2,2.4E-2,2.4E-2,2.4E-2]
["163",null,null,"472","6",{"$f":"VLOOKUP(A93,ActiveFunds!$F$4:$H$106,3,0)","v":"163-Consolidated Technology Services"},null,null,{"$f":"VLOOKUP(D93&\"-\"&E93,ActiveFunds!$J$4:$K$456,2,0)","v":"472-6 Statewide IT Systems M&O Rev Acct-Non-Appropriated"},0.28399999999999997,0.28399999999999997,0.28399999999999997,0.28399999999999997,0.28399999999999997,0.28399999999999997,0.28399999999999997,0.28399999999999997]
["165",null,null,"02J","1",{"$f":"VLOOKUP(A94,ActiveFunds!$F$4:$H$106,3,0)","v":"165-State Board of Accountancy"},null,null,{"$f":"VLOOKUP(D94&\"-\"&E94,ActiveFunds!$J$4:$K$456,2,0)","v":"02J-1 Certified Public Accountants' Acct-State"},1,1,1,1,1,1,1,1]
["167",null,null,"02K","1",{"$f":"VLOOKUP(A95,ActiveFunds!$F$4:$H$106,3,0)","v":"167-Forensic Investigations Council"},null,null,{"$f":"VLOOKUP(D95&\"-\"&E95,ActiveFunds!$J$4:$K$456,2,0)","v":"02K-1 Death Investigations Account-State"},1,1,1,1,1,1,1,1]
["179",null,null,"001","1",{"$f":"VLOOKUP(A96,ActiveFunds!$F$4:$H$106,3,0)","v":"179-Dept of Enterprise Services"},null,null,{"$f":"VLOOKUP(D96&\"-\"&E96,ActiveFunds!$J$4:$K$456,2,0)","v":"001-1 General Fund-State"},0,0,0,0,0,0,0,0]
["179",null,null,"001","7",{"$f":"VLOOKUP(A97,ActiveFunds!$F$4:$H$106,3,0)","v":"179-Dept of Enterprise Services"},null,null,{"$f":"VLOOKUP(D97&\"-\"&E97,ActiveFunds!$J$4:$K$456,2,0)","v":"001-7 General Fund-Private/Local"},0,0,0,0,0,0,0,0]
["179",null,null,"045","6",{"$f":"VLOOKUP(A98,ActiveFunds!$F$4:$H$106,3,0)","v":"179-Dept of Enterprise Services"},null,null,{"$f":"VLOOKUP(D98&\"-\"&E98,ActiveFunds!$J$4:$K$456,2,0)","v":"045-6 State Vehicle Parking Account-Non-Appropriated"},5.4000000000000003E-3,5.4000000000000003E-3,5.4000000000000003E-3,5.4000000000000003E-3,5.4000000000000003E-3,5.4000000000000003E-3,5.4000000000000003E-3,5.4000000000000003E-3]
["179",null,null,"084","1",{"$f":"VLOOKUP(A99,ActiveFunds!$F$4:$H$106,3,0)","v":"179-Dept of Enterprise Services"},null,null,{"$f":"VLOOKUP(D99&\"-\"&E99,ActiveFunds!$J$4:$K$456,2,0)","v":"084-1 Building Code Council Account-State"},1.04E-2,1.04E-2,1.04E-2,1.04E-2,1.04E-2,1.04E-2,1.04E-2,1.04E-2]
["179",null,null,"415","1",{"$f":"VLOOKUP(A100,ActiveFunds!$F$4:$H$106,3,0)","v":"179-Dept of Enterprise Services"},null,null,{"$f":"VLOOKUP(D100&\"-\"&E100,ActiveFunds!$J$4:$K$456,2,0)","v":"415-1 Personnel Service Account-State"},0,0,0,0,0,0,0,0]
["179",null,null,"419","6",{"$f":"VLOOKUP(A101,ActiveFunds!$F$4:$H$106,3,0)","v":"179-Dept of Enterprise Services"},null,null,{"$f":"VLOOKUP(D101&\"-\"&E101,ActiveFunds!$J$4:$K$456,2,0)","v":"419-6 Data Processing Revolving Account-Non-Appropriated"},0,0,0,0,0,0,0,0]
["179",null,null,"422","6",{"$f":"VLOOKUP(A102,ActiveFunds!$F$4:$H$106,3,0)","v":"179-Dept of Enterprise Services"},null,null,{"$f":"VLOOKUP(D102&\"-\"&E102,ActiveFunds!$J$4:$K$456,2,0)","v":"422-6 Enterprise Services Account-Non-Appropriated"},0.96260000000000001,0.96260000000000001,0.96260000000000001,0.96260000000000001,0.96260000000000001,0.96260000000000001,0.96260000000000001,0.96260000000000001]
["179",null,null,"546","6",{"$f":"VLOOKUP(A103,ActiveFunds!$F$4:$H$106,3,0)","v":"179-Dept of Enterprise Services"},null,null,{"$f":"VLOOKUP(D103&\"-\"&E103,ActiveFunds!$J$4:$K$456,2,0)","v":"546-6 Risk Management Administration Acct-Non-Appropriated"},2.1600000000000001E-2,2.1600000000000001E-2,2.1600000000000001E-2,2.1600000000000001E-2,2.1600000000000001E-2,2.1600000000000001E-2,2.1600000000000001E-2,2.1600000000000001E-2]
["185",null,null,"169","1",{"$f":"VLOOKUP(A104,ActiveFunds!$F$4:$H$106,3,0)","v":"185-Washington Horse Racing Commission"},null,null,{"$f":"VLOOKUP(D104&\"-\"&E104,ActiveFunds!$J$4:$K$456,2,0)","v":"169-1 Horse Racing Commission Op Account-State"},1,1,1,1,1,1,1,1]
["190",null,null,"608","1",{"$f":"VLOOKUP(A105,ActiveFunds!$F$4:$H$106,3,0)","v":"190-Bd of Industrial Insurance Appeals"},null,null,{"$f":"VLOOKUP(D105&\"-\"&E105,ActiveFunds!$J$4:$K$456,2,0)","v":"608-1 Accident Account-State"},0.5,0.5,0.5,0.5,0.5,0.5,0.5,0.5]
["190",null,null,"609","1",{"$f":"VLOOKUP(A106,ActiveFunds!$F$4:$H$106,3,0)","v":"190-Bd of Industrial Insurance Appeals"},null,null,{"$f":"VLOOKUP(D106&\"-\"&E106,ActiveFunds!$J$4:$K$456,2,0)","v":"609-1 Medical Aid Account-State"},0.5,0.5,0.5,0.5,0.5,0.5,0.5,0.5]
["195",null,null,"315","1",{"$f":"VLOOKUP(A107,ActiveFunds!$F$4:$H$106,3,0)","v":"195-Liquor and Cannabis Board"},null,null,{"$f":"VLOOKUP(D107&\"-\"&E107,ActiveFunds!$J$4:$K$456,2,0)","v":"315-1 Dedicated Marijuana Account-State"},0.18099999999999999,0.18099999999999999,0.18099999999999999,0.18099999999999999,0.18099999999999999,0.18099999999999999,0.18099999999999999,0.18099999999999999]
["195",null,null,"501","1",{"$f":"VLOOKUP(A108,ActiveFunds!$F$4:$H$106,3,0)","v":"195-Liquor and Cannabis Board"},null,null,{"$f":"VLOOKUP(D108&\"-\"&E108,ActiveFunds!$J$4:$K$456,2,0)","v":"501-1 Liquor Revolving Account-State"},0.81899999999999995,0.81899999999999995,0.81899999999999995,0.81899999999999995,0.81899999999999995,0.81899999999999995,0.81899999999999995,0.81899999999999995]
["205",null,null,"025","6",{"$f":"VLOOKUP(A109,ActiveFunds!$F$4:$H$106,3,0)","v":"205-Board of Pilotage Commissioners"},null,null,{"$f":"VLOOKUP(D109&\"-\"&E109,ActiveFunds!$J$4:$K$456,2,0)","v":"025-6 Pilotage Account-Non-Appropriated"},1,1,1,1,1,1,1,1]
["215",null,null,"001","7",{"$f":"VLOOKUP(A110,ActiveFunds!$F$4:$H$106,3,0)","v":"215-Utilities and Transportation Comm"},null,null,{"$f":"VLOOKUP(D110&\"-\"&E110,ActiveFunds!$J$4:$K$456,2,0)","v":"001-7 General Fund-Private/Local"},0.04,0,0.04,0.04,0.04,0.04,0.04,0.04]
["215",null,null,"111","1",{"$f":"VLOOKUP(A111,ActiveFunds!$F$4:$H$106,3,0)","v":"215-Utilities and Transportation Comm"},null,null,{"$f":"VLOOKUP(D111&\"-\"&E111,ActiveFunds!$J$4:$K$456,2,0)","v":"111-1 Public Service Revolving Account-State"},0.88,0.95499999999999996,0.88,0.88,0.88,0.88,0.88,0.88]
["215",null,null,"297","1",{"$f":"VLOOKUP(A112,ActiveFunds!$F$4:$H$106,3,0)","v":"215-Utilities and Transportation Comm"},null,null,{"$f":"VLOOKUP(D112&\"-\"&E112,ActiveFunds!$J$4:$K$456,2,0)","v":"297-1 Pipeline Safety-State"},0.08,4.4999999999999998E-2,0.08,0.08,0.08,0.08,0.08,0.08]
["220",null,null,"204","1",{"$f":"VLOOKUP(A113,ActiveFunds!$F$4:$H$106,3,0)","v":"220-Board for Volunteer Firefighters"},null,null,{"$f":"VLOOKUP(D113&\"-\"&E113,ActiveFunds!$J$4:$K$456,2,0)","v":"204-1 Vol Firefight/Resv Officer Admin-State"},1,1,1,1,1,1,1,1]
["225","OPR",null,"001","1",{"$f":"VLOOKUP(A114,ActiveFunds!$F$4:$H$106,3,0)","v":"225-Washington State Patrol"},null,null,{"$f":"VLOOKUP(D114&\"-\"&E114,ActiveFunds!$J$4:$K$456,2,0)","v":"001-1 General Fund-State"},0.22,0.22,0.22,0.22,0.22,0.22,0.22,0.22]
["225","OPR",null,"081","1",{"$f":"VLOOKUP(A115,ActiveFunds!$F$4:$H$106,3,0)","v":"225-Washington State Patrol"},null,null,{"$f":"VLOOKUP(D115&\"-\"&E115,ActiveFunds!$J$4:$K$456,2,0)","v":"081-1 State Patrol Highway Account-State"},0.78,0.78,0.78,0.78,0.78,0.78,0.78,0.78]
["227",null,null,"001","1",{"$f":"VLOOKUP(A116,ActiveFunds!$F$4:$H$106,3,0)","v":"227-Criminal Justice Training Comm"},null,null,{"$f":"VLOOKUP(D116&\"-\"&E116,ActiveFunds!$J$4:$K$456,2,0)","v":"001-1 General Fund-State"},1,1,1,1,1,1,1,1]
["228",null,null,"106","1",{"$f":"VLOOKUP(A117,ActiveFunds!$F$4:$H$106,3,0)","v":"228-WA Traffic Safety Commission"},null,null,{"$f":"VLOOKUP(D117&\"-\"&E117,ActiveFunds!$J$4:$K$456,2,0)","v":"106-1 Highway Safety Account-State"},0.5,0.5,0.5,0.5,0.5,1,0.15,0.5]
["228",null,null,"106","2",{"$f":"VLOOKUP(A118,ActiveFunds!$F$4:$H$106,3,0)","v":"228-WA Traffic Safety Commission"},null,null,{"$f":"VLOOKUP(D118&\"-\"&E118,ActiveFunds!$J$4:$K$456,2,0)","v":"106-2 Highway Safety Account-Federal"},0.5,0.5,0.5,0.5,0.5,0,0.85,0.5]
["235",null,null,"001","1",{"$f":"VLOOKUP(A119,ActiveFunds!$F$4:$H$106,3,0)","v":"235-Department of Labor and Industries"},null,null,{"$f":"VLOOKUP(D119&\"-\"&E119,ActiveFunds!$J$4:$K$456,2,0)","v":"001-1 General Fund-State"},5.0000000000000001E-3,1.2999999999999999E-2,0.20499999999999999,2.5000000000000001E-2,0.01,0.01,0.01,0.01]
["235",null,null,"095","1",{"$f":"VLOOKUP(A120,ActiveFunds!$F$4:$H$106,3,0)","v":"235-Department of Labor and Industries"},null,null,{"$f":"VLOOKUP(D120&\"-\"&E120,ActiveFunds!$J$4:$K$456,2,0)","v":"095-1 Electrical License Account-State"},8.0000000000000002E-3,1.0999999999999999E-2,0.28199999999999997,1.7999999999999999E-2,0.01,0.01,0.01,0.01]
["235",null,null,"234","1",{"$f":"VLOOKUP(A121,ActiveFunds!$F$4:$H$106,3,0)","v":"235-Department of Labor and Industries"},null,null,{"$f":"VLOOKUP(D121&\"-\"&E121,ActiveFunds!$J$4:$K$456,2,0)","v":"234-1 Public Works Administration Acct-State"},2E-3,5.0000000000000001E-3,3.0000000000000001E-3,7.0000000000000001E-3,0,0,0,0]
["235",null,null,"608","1",{"$f":"VLOOKUP(A122,ActiveFunds!$F$4:$H$106,3,0)","v":"235-Department of Labor and Industries"},null,null,{"$f":"VLOOKUP(D122&\"-\"&E122,ActiveFunds!$J$4:$K$456,2,0)","v":"608-1 Accident Account-State"},0.49399999999999999,0.52100000000000002,0.38800000000000001,0.45600000000000002,0.52,0.52,0.52,0.52]
["235",null,null,"609","1",{"$f":"VLOOKUP(A123,ActiveFunds!$F$4:$H$106,3,0)","v":"235-Department of Labor and Industries"},null,null,{"$f":"VLOOKUP(D123&\"-\"&E123,ActiveFunds!$J$4:$K$456,2,0)","v":"609-1 Medical Aid Account-State"},0.48899999999999999,0.45,6.8000000000000005E-2,0.48799999999999999,0.46,0.46,0.46,0.46]
["235",null,null,"885","1",{"$f":"VLOOKUP(A124,ActiveFunds!$F$4:$H$106,3,0)","v":"235-Department of Labor and Industries"},null,null,{"$f":"VLOOKUP(D124&\"-\"&E124,ActiveFunds!$J$4:$K$456,2,0)","v":"885-1 Plumbing Certificate Account-State"},0,0,5.3999999999999999E-2,1E-3,0,0,0,0]
["235",null,null,"892","1",{"$f":"VLOOKUP(A125,ActiveFunds!$F$4:$H$106,3,0)","v":"235-Department of Labor and Industries"},null,null,{"$f":"VLOOKUP(D125&\"-\"&E125,ActiveFunds!$J$4:$K$456,2,0)","v":"892-1 Pressure Systems Safety Account-State"},2E-3,0,0,5.0000000000000001E-3,0,0,0,0]
["240","","","001","1",{"$f":"VLOOKUP(A126,ActiveFunds!$F$4:$H$106,3,0)","v":"240-Department of Licensing"},null,null,{"$f":"VLOOKUP(D126&\"-\"&E126,ActiveFunds!$J$4:$K$456,2,0)","v":"001-1 General Fund-State"},0,0,0,0,7.0000000000000001E-3,0,0,0]
["240","","","003","1",{"$f":"VLOOKUP(A127,ActiveFunds!$F$4:$H$106,3,0)","v":"240-Department of Licensing"},null,null,{"$f":"VLOOKUP(D127&\"-\"&E127,ActiveFunds!$J$4:$K$456,2,0)","v":"003-1 Architects' License Account-State"},0,0,0,0,2E-3,0,0,0]
["240","","","024","1",{"$f":"VLOOKUP(A128,ActiveFunds!$F$4:$H$106,3,0)","v":"240-Department of Licensing"},null,null,{"$f":"VLOOKUP(D128&\"-\"&E128,ActiveFunds!$J$4:$K$456,2,0)","v":"024-1 Professional Engineers' Account-State"},0,0,0,0,8.9999999999999993E-3,0,1.6E-2,0]
["240","","","026","1",{"$f":"VLOOKUP(A129,ActiveFunds!$F$4:$H$106,3,0)","v":"240-Department of Licensing"},null,null,{"$f":"VLOOKUP(D129&\"-\"&E129,ActiveFunds!$J$4:$K$456,2,0)","v":"026-1 Real Estate Commission Account-State"},0,0,0,0,2.1899999999999999E-2,0,5.0999999999999997E-2,0]
["240","","","04E","1",{"$f":"VLOOKUP(A130,ActiveFunds!$F$4:$H$106,3,0)","v":"240-Department of Licensing"},null,null,{"$f":"VLOOKUP(D130&\"-\"&E130,ActiveFunds!$J$4:$K$456,2,0)","v":"04E-1 Uniform Commercial Code Account-State"},0,0,0,0,1.7999999999999999E-2,0,1.6E-2,0]
["240","","","06G","1",{"$f":"VLOOKUP(A131,ActiveFunds!$F$4:$H$106,3,0)","v":"240-Department of Licensing"},null,null,{"$f":"VLOOKUP(D131&\"-\"&E131,ActiveFunds!$J$4:$K$456,2,0)","v":"06G-1 Real Estate Appraiser Comm Acct-State"},0,0,0,0,2E-3,0,0,0]
["240","","","06L","1",{"$f":"VLOOKUP(A132,ActiveFunds!$F$4:$H$106,3,0)","v":"240-Department of Licensing"},null,null,{"$f":"VLOOKUP(D132&\"-\"&E132,ActiveFunds!$J$4:$K$456,2,0)","v":"06L-1 Business & Professions Account-State"},5.4800000000000001E-2,5.4800000000000001E-2,5.4800000000000001E-2,5.4800000000000001E-2,3.7999999999999999E-2,5.4800000000000001E-2,8.5000000000000006E-2,5.4800000000000001E-2]
["240","","","082","1",{"$f":"VLOOKUP(A133,ActiveFunds!$F$4:$H$106,3,0)","v":"240-Department of Licensing"},null,null,{"$f":"VLOOKUP(D133&\"-\"&E133,ActiveFunds!$J$4:$K$456,2,0)","v":"082-1 Motorcycle Safety Education Account-State"},0,0,0,0,2E-3,0,0,0]
["240","","","104","1",{"$f":"VLOOKUP(A134,ActiveFunds!$F$4:$H$106,3,0)","v":"240-Department of Licensing"},null,null,{"$f":"VLOOKUP(D134&\"-\"&E134,ActiveFunds!$J$4:$K$456,2,0)","v":"104-1 State Wildlife Account-State"},0,0,0,0,1E-3,0,0,0]
["240","","","106","1",{"$f":"VLOOKUP(A135,ActiveFunds!$F$4:$H$106,3,0)","v":"240-Department of Licensing"},null,null,{"$f":"VLOOKUP(D135&\"-\"&E135,ActiveFunds!$J$4:$K$456,2,0)","v":"106-1 Highway Safety Account-State"},0.76990000000000003,0.76990000000000003,0.76990000000000003,0.76990000000000003,0.49409999999999998,0.76990000000000003,0.59,0.76990000000000003]
["240","","","108","1",{"$f":"VLOOKUP(A136,ActiveFunds!$F$4:$H$106,3,0)","v":"240-Department of Licensing"},null,null,{"$f":"VLOOKUP(D136&\"-\"&E136,ActiveFunds!$J$4:$K$456,2,0)","v":"108-1 Motor Vehicle Account-State"},0.17530000000000001,0.17530000000000001,0.17530000000000001,0.17530000000000001,0.34499999999999997,0.17530000000000001,0.221,0.17530000000000001]
["240","","","15V","6",{"$f":"VLOOKUP(A137,ActiveFunds!$F$4:$H$106,3,0)","v":"240-Department of Licensing"},null,null,{"$f":"VLOOKUP(D137&\"-\"&E137,ActiveFunds!$J$4:$K$456,2,0)","v":"15V-6 Funeral and Cemetery Account-Non-Appropriated"},0,0,0,0,3.0000000000000001E-3,0,0,0]
["240","","","16B","6",{"$f":"VLOOKUP(A138,ActiveFunds!$F$4:$H$106,3,0)","v":"240-Department of Licensing"},null,null,{"$f":"VLOOKUP(D138&\"-\"&E138,ActiveFunds!$J$4:$K$456,2,0)","v":"16B-6 Landscape Architects' License Acct-Non-Appropriated"},0,0,0,0,2E-3,0,0,0]
["240","","","16M","6",{"$f":"VLOOKUP(A139,ActiveFunds!$F$4:$H$106,3,0)","v":"240-Department of Licensing"},null,null,{"$f":"VLOOKUP(D139&\"-\"&E139,ActiveFunds!$J$4:$K$456,2,0)","v":"16M-6 Appraisal Management Company Acct-Non-Appropriated"},0,0,0,0,0,0,0,0]
["240","","","201","1",{"$f":"VLOOKUP(A140,ActiveFunds!$F$4:$H$106,3,0)","v":"240-Department of Licensing"},null,null,{"$f":"VLOOKUP(D140&\"-\"&E140,ActiveFunds!$J$4:$K$456,2,0)","v":"201-1 DOL Services Account-State"},0,0,0,0,5.3999999999999999E-2,0,2.1000000000000001E-2,0]
["240","","","298","6",{"$f":"VLOOKUP(A141,ActiveFunds!$F$4:$H$106,3,0)","v":"240-Department of Licensing"},null,null,{"$f":"VLOOKUP(D141&\"-\"&E141,ActiveFunds!$J$4:$K$456,2,0)","v":"298-6 Geologists' Account-Non-Appropriated"},0,0,0,0,1E-3,0,0,0]
["245",null,null,"001","1",{"$f":"VLOOKUP(A142,ActiveFunds!$F$4:$H$106,3,0)","v":"245-Military Department"},null,null,{"$f":"VLOOKUP(D142&\"-\"&E142,ActiveFunds!$J$4:$K$456,2,0)","v":"001-1 General Fund-State"},0,0,0,0,0,0,0,0]
["245",null,null,"05H","1",{"$f":"VLOOKUP(A143,ActiveFunds!$F$4:$H$106,3,0)","v":"245-Military Department"},null,null,{"$f":"VLOOKUP(D143&\"-\"&E143,ActiveFunds!$J$4:$K$456,2,0)","v":"05H-1 Disaster Response Account-State"},1,1,1,1,1,1,1,1]
["275",null,null,"001","1",{"$f":"VLOOKUP(A144,ActiveFunds!$F$4:$H$106,3,0)","v":"275-Public Employment Relations Comm"},null,null,{"$f":"VLOOKUP(D144&\"-\"&E144,ActiveFunds!$J$4:$K$456,2,0)","v":"001-1 General Fund-State"},0.51339999999999997,0.51339999999999997,0.51339999999999997,0.51339999999999997,0.51339999999999997,0.51339999999999997,0.51339999999999997,0.51339999999999997]
["275",null,null,"415","1",{"$f":"VLOOKUP(A145,ActiveFunds!$F$4:$H$106,3,0)","v":"275-Public Employment Relations Comm"},null,null,{"$f":"VLOOKUP(D145&\"-\"&E145,ActiveFunds!$J$4:$K$456,2,0)","v":"415-1 Personnel Service Account-State"},0.42059999999999997,0.42059999999999997,0.42059999999999997,0.42059999999999997,0.42059999999999997,0.42059999999999997,0.42059999999999997,0.42059999999999997]
["275",null,null,"455","1",{"$f":"VLOOKUP(A146,ActiveFunds!$F$4:$H$106,3,0)","v":"275-Public Employment Relations Comm"},null,null,{"$f":"VLOOKUP(D146&\"-\"&E146,ActiveFunds!$J$4:$K$456,2,0)","v":"455-1 Higher Education Personnel Services-State"},6.6000000000000003E-2,6.6000000000000003E-2,6.6000000000000003E-2,6.6000000000000003E-2,6.6000000000000003E-2,6.6000000000000003E-2,6.6000000000000003E-2,6.6000000000000003E-2]
["300","010","","001","1","300-Dept of Social and Health Services","010-Children & Family Services",null,"001-1 General Fund-State",0,0,0,0,0,0,3.0200000000000001E-2,0]
["300","135","","001","2","300-Dept of Social and Health Services","135-Special Commitment Center",null,"001-2 General Fund-Federal",0,0,0,0,0,0,0,0]
["300","010","","001","1","300-Dept of Social and Health Services","010-Children & Family Services",null,"001-1 General Fund-State",0,0,0,0,0,0,3.4599999999999999E-2,0]
["300","010","","001","2","300-Dept of Social and Health Services","010-Children & Family Services",null,"001-2 General Fund-Federal",0,0,0,0,0,0,3.5999999999999999E-3,0]
["300","020","","001","1","300-Dept of Social and Health Services","020-Juvenile Rehabilitation",null,"001-1 General Fund-State",0,0,0,0,0,0,5.1999999999999998E-2,0]
["300","020","","001","2","300-Dept of Social and Health Services","020-Juvenile Rehabilitation",null,"001-2 General Fund-Federal",0,0,0,0,0,0,0,0]
["300","030","1000","001","1","300-Dept of Social and Health Services","030-Mental Health","1000-Community Services/RSN             ","001-1 General Fund-State",0,0,0,0,0,0,0,0]
["300","030","1000","001","2","300-Dept of Social and Health Services","030-Mental Health","1000-Community Services/RSN             ","001-2 General Fund-Federal",0,0,0,0,0,0,0,0]
["300","030","2000","001","1","300-Dept of Social and Health Services","030-Mental Health","2000-State Facility Services            ","001-1 General Fund-State",0,0,0,0,0,0,0.31159999999999999,0]
["300","030","2000","001","2","300-Dept of Social and Health Services","030-Mental Health","2000-State Facility Services            ","001-2 General Fund-Federal",0,0,0,0,0,0,2.29E-2,0]
["300","030","8000","001","1","300-Dept of Social and Health Services","030-Mental Health","8000-Special Projects                   ","001-1 General Fund-State",0,0,0,0,0,0,1E-4,0]
["300","030","8000","001","2","300-Dept of Social and Health Services","030-Mental Health","8000-Special Projects                   ","001-2 General Fund-Federal",0,0,0,0,0,0,0,0]
["300","030","9000","001","1","300-Dept of Social and Health Services","030-Mental Health","9000-Program Support                    ","001-1 General Fund-State",0,0,0,0,0,0,8.0000000000000004E-4,0]
["300","030","9000","001","2","300-Dept of Social and Health Services","030-Mental Health","9000-Program Support                    ","001-2 General Fund-Federal",0,0,0,0,0,0,1E-4,0]
["300","040","1000","001","1","300-Dept of Social and Health Services","040-Developmental Disabilities","1000-Community Services                 ","001-1 General Fund-State",0,0,0,0,0,0,3.8199999999999998E-2,0]
["300","040","1000","001","2","300-Dept of Social and Health Services","040-Developmental Disabilities","1000-Community Services                 ","001-2 General Fund-Federal",0,0,0,0,0,0,2.6499999999999999E-2,0]
["300","040","2000","001","1","300-Dept of Social and Health Services","040-Developmental Disabilities","2000-Residential Habilitation Services  ","001-1 General Fund-State",0,0,0,0,0,0,0.21940000000000001,0]
["300","040","2000","001","2","300-Dept of Social and Health Services","040-Developmental Disabilities","2000-Residential Habilitation Services  ","001-2 General Fund-Federal",0,0,0,0,0,0,0.15229999999999999,0]
["300","040","8000","001","1","300-Dept of Social and Health Services","040-Developmental Disabilities","8000-Special Projects                   ","001-1 General Fund-State",0,0,0,0,0,0,0,0]
["300","040","8000","001","2","300-Dept of Social and Health Services","040-Developmental Disabilities","8000-Special Projects                   ","001-2 General Fund-Federal",0,0,0,0,0,0,0,0]
["300","040","9000","001","1","300-Dept of Social and Health Services","040-Developmental Disabilities","9000-Program Support                    ","001-1 General Fund-State",0,0,0,0,0,0,2.0000000000000001E-4,0]
["300","040","9000","001","2","300-Dept of Social and Health Services","040-Developmental Disabilities","9000-Program Support                    ","001-2 General Fund-Federal",0,0,0,0,0,0,1E-4,0]
["300","050","","001","1","300-Dept of Social and Health Services","050-Long-Term Care Services",null,"001-1 General Fund-State",0,0,0,0,0,0,1.14E-2,0]
["300","050","","001","2","300-Dept of Social and Health Services","050-Long-Term Care Services",null,"001-2 General Fund-Federal",0,0,0,0,0,0,1.0500000000000001E-2,0]
["300","060","","001","1","300-Dept of Social and Health Services","060-Economic Services Administration",null,"001-1 General Fund-State",0,0,0,0,0,0,4.0099999999999997E-2,0]
["300","060","","001","2","300-Dept of Social and Health Services","060-Economic Services Administration",null,"001-2 General Fund-Federal",0,0,0,0,0,0,2.4E-2,0]
["300","070","","001","1","300-Dept of Social and Health Services","070-Alcohol & Substance Abuse",null,"001-1 General Fund-State",0,0,0,0,0,0,8.0000000000000004E-4,0]
["300","070","","001","2","300-Dept of Social and Health Services","070-Alcohol & Substance Abuse",null,"001-2 General Fund-Federal",0,0,0,0,0,0,2.0000000000000001E-4,0]
["300","100","","001","1","300-Dept of Social and Health Services","100-Vocational Rehabilitation",null,"001-1 General Fund-State",0,0,0,0,0,0,4.5999999999999999E-3,0]
["300","100","","001","2","300-Dept of Social and Health Services","100-Vocational Rehabilitation",null,"001-2 General Fund-Federal",0,0,0,0,0,0,0,0]
["300","110","","001","1","300-Dept of Social and Health Services","110-Administration & Supporting Services",null,"001-1 General Fund-State",0,0,0,0,0,0,7.0000000000000001E-3,0]
["300","110","","001","2","300-Dept of Social and Health Services","110-Administration & Supporting Services",null,"001-2 General Fund-Federal",0,0,0,0,0,0,1.5E-3,0]
["300","145","","001","1","300-Dept of Social and Health Services","145-Payments to Other Agencies",null,"001-1 General Fund-State",0.82,0.82,0.82,0.82,0.82,1,0,0.82]
["300","145","","001","2","300-Dept of Social and Health Services","145-Payments to Other Agencies",null,"001-2 General Fund-Federal",0.18,0.18,0.18,0.18,0.18,0,0,0.18]
["300","150","","001","1","300-Dept of Social and Health Services","150-Information System Services",null,"001-1 General Fund-State",0,0,0,0,0,0,2.5999999999999999E-3,0]
["300","150","","001","2","300-Dept of Social and Health Services","150-Information System Services",null,"001-2 General Fund-Federal",0,0,0,0,0,0,0,0]
["300","160","","001","1","300-Dept of Social and Health Services","160-Consolidated Field Services",null,"001-1 General Fund-State",0,0,0,0,0,0,4.7000000000000002E-3,0]
["300","160","","001","2","300-Dept of Social and Health Services","160-Consolidated Field Services",null,"001-2 General Fund-Federal",0,0,0,0,0,0,0,0]
["303",null,null,"001","1",{"$f":"VLOOKUP(A185,ActiveFunds!$F$4:$H$106,3,0)","v":"303-Department of Health"},null,null,{"$f":"VLOOKUP(D185&\"-\"&E185,ActiveFunds!$J$4:$K$456,2,0)","v":"001-1 General Fund-State"},0.11600000000000001,0.16,0.11600000000000001,0.11600000000000001,0.11600000000000001,0.67,0.184,0.11600000000000001]
["303",null,null,"001","2",{"$f":"VLOOKUP(A186,ActiveFunds!$F$4:$H$106,3,0)","v":"303-Department of Health"},null,null,{"$f":"VLOOKUP(D186&\"-\"&E186,ActiveFunds!$J$4:$K$456,2,0)","v":"001-2 General Fund-Federal"},0.52400000000000002,0.04,0.52400000000000002,0.52400000000000002,0.52400000000000002,0,0.38500000000000001,0.52400000000000002]
["303",null,null,"001","7",{"$f":"VLOOKUP(A187,ActiveFunds!$F$4:$H$106,3,0)","v":"303-Department of Health"},null,null,{"$f":"VLOOKUP(D187&\"-\"&E187,ActiveFunds!$J$4:$K$456,2,0)","v":"001-7 General Fund-Private/Local"},0.13,0.08,0.13,0.13,0.13,0.13,0.14799999999999999,0.13]
["303",null,null,"02G","1",{"$f":"VLOOKUP(A188,ActiveFunds!$F$4:$H$106,3,0)","v":"303-Department of Health"},null,null,{"$f":"VLOOKUP(D188&\"-\"&E188,ActiveFunds!$J$4:$K$456,2,0)","v":"02G-1 Health Professions Account-State"},0.14499999999999999,0.72,0.14499999999999999,0.14499999999999999,0.14499999999999999,0.14499999999999999,0.23300000000000001,0.14499999999999999]
["303",null,null,"03R","1",{"$f":"VLOOKUP(A189,ActiveFunds!$F$4:$H$106,3,0)","v":"303-Department of Health"},null,null,{"$f":"VLOOKUP(D189&\"-\"&E189,ActiveFunds!$J$4:$K$456,2,0)","v":"03R-1 Safe Drinking Water Account-State"},3.0000000000000001E-3,0,3.0000000000000001E-3,3.0000000000000001E-3,3.0000000000000001E-3,3.0000000000000001E-3,0,3.0000000000000001E-3]
["303",null,null,"04R","2",{"$f":"VLOOKUP(A190,ActiveFunds!$F$4:$H$106,3,0)","v":"303-Department of Health"},null,null,{"$f":"VLOOKUP(D190&\"-\"&E190,ActiveFunds!$J$4:$K$456,2,0)","v":"04R-2 Drinking Water Assistance Account-Federal"},0.03,0,0.03,0.03,0.03,0,0.02,0.03]
["303",null,null,"16G","6",{"$f":"VLOOKUP(A191,ActiveFunds!$F$4:$H$106,3,0)","v":"303-Department of Health"},null,null,{"$f":"VLOOKUP(D191&\"-\"&E191,ActiveFunds!$J$4:$K$456,2,0)","v":"16G-6 Universal Vaccine Purchase Account-Non-Appropriated"},4.5999999999999999E-2,0,4.5999999999999999E-2,4.5999999999999999E-2,4.5999999999999999E-2,4.5999999999999999E-2,0,4.5999999999999999E-2]
["303",null,null,"173","1",{"$f":"VLOOKUP(A192,ActiveFunds!$F$4:$H$106,3,0)","v":"303-Department of Health"},null,null,{"$f":"VLOOKUP(D192&\"-\"&E192,ActiveFunds!$J$4:$K$456,2,0)","v":"173-1 State Toxics Control Account-State"},3.0000000000000001E-3,0,3.0000000000000001E-3,3.0000000000000001E-3,3.0000000000000001E-3,3.0000000000000001E-3,1.2E-2,3.0000000000000001E-3]
["303",null,null,"202","1",{"$f":"VLOOKUP(A193,ActiveFunds!$F$4:$H$106,3,0)","v":"303-Department of Health"},null,null,{"$f":"VLOOKUP(D193&\"-\"&E193,ActiveFunds!$J$4:$K$456,2,0)","v":"202-1 Medical Test Site Licensure Account-State"},3.0000000000000001E-3,0,3.0000000000000001E-3,3.0000000000000001E-3,3.0000000000000001E-3,3.0000000000000001E-3,1.7999999999999999E-2,3.0000000000000001E-3]
["305","010",null,"001","1",{"$f":"VLOOKUP(A194,ActiveFunds!$F$4:$H$106,3,0)","v":"305-Department of Veterans' Affairs"},"010-Headquarters",null,{"$f":"VLOOKUP(D194&\"-\"&E194,ActiveFunds!$J$4:$K$456,2,0)","v":"001-1 General Fund-State"},0.03,0.03,0.03,0.03,0.03,0.03,0.03,0.03]
["305","020",null,"001","1",{"$f":"VLOOKUP(A195,ActiveFunds!$F$4:$H$106,3,0)","v":"305-Department of Veterans' Affairs"},"020-Field Services",null,{"$f":"VLOOKUP(D195&\"-\"&E195,ActiveFunds!$J$4:$K$456,2,0)","v":"001-1 General Fund-State"},9.7699999999999995E-2,9.7699999999999995E-2,9.7699999999999995E-2,9.7699999999999995E-2,9.7699999999999995E-2,0.13869999999999999,9.7699999999999995E-2,9.7699999999999995E-2]
["305","020",null,"001","2",{"$f":"VLOOKUP(A196,ActiveFunds!$F$4:$H$106,3,0)","v":"305-Department of Veterans' Affairs"},"020-Field Services",null,{"$f":"VLOOKUP(D196&\"-\"&E196,ActiveFunds!$J$4:$K$456,2,0)","v":"001-2 General Fund-Federal"},4.1000000000000002E-2,4.1000000000000002E-2,4.1000000000000002E-2,4.1000000000000002E-2,4.1000000000000002E-2,0,4.1000000000000002E-2,4.1000000000000002E-2]
["305","020",null,"001","7",{"$f":"VLOOKUP(A197,ActiveFunds!$F$4:$H$106,3,0)","v":"305-Department of Veterans' Affairs"},"020-Field Services",null,{"$f":"VLOOKUP(D197&\"-\"&E197,ActiveFunds!$J$4:$K$456,2,0)","v":"001-7 General Fund-Private/Local"},3.1300000000000001E-2,3.1300000000000001E-2,3.1300000000000001E-2,3.1300000000000001E-2,3.1300000000000001E-2,3.1300000000000001E-2,3.1300000000000001E-2,3.1300000000000001E-2]
["305","035",null,"001","1",{"$f":"VLOOKUP(A198,ActiveFunds!$F$4:$H$106,3,0)","v":"305-Department of Veterans' Affairs"},"035-Institutional Services",null,{"$f":"VLOOKUP(D198&\"-\"&E198,ActiveFunds!$J$4:$K$456,2,0)","v":"001-1 General Fund-State"},0,0,0,0,0,0.57450000000000001,0,0]
["305","035",null,"001","2",{"$f":"VLOOKUP(A199,ActiveFunds!$F$4:$H$106,3,0)","v":"305-Department of Veterans' Affairs"},"035-Institutional Services",null,{"$f":"VLOOKUP(D199&\"-\"&E199,ActiveFunds!$J$4:$K$456,2,0)","v":"001-2 General Fund-Federal"},0.57450000000000001,0.57450000000000001,0.57450000000000001,0.57450000000000001,0.57450000000000001,0,0.57450000000000001,0.57450000000000001]
["305","035",null,"001","7",{"$f":"VLOOKUP(A200,ActiveFunds!$F$4:$H$106,3,0)","v":"305-Department of Veterans' Affairs"},"035-Institutional Services",null,{"$f":"VLOOKUP(D200&\"-\"&E200,ActiveFunds!$J$4:$K$456,2,0)","v":"001-7 General Fund-Private/Local"},0.22550000000000001,0.22550000000000001,0.22550000000000001,0.22550000000000001,0.22550000000000001,0.22550000000000001,0.22550000000000001,0.22550000000000001]
["310","100",null,"001","1",{"$f":"VLOOKUP(A201,ActiveFunds!$F$4:$H$106,3,0)","v":"310-Department of Corrections"},"100-Administration & Support Services",null,{"$f":"VLOOKUP(D201&\"-\"&E201,ActiveFunds!$J$4:$K$456,2,0)","v":"001-1 General Fund-State"},0,0,0,0,0,0,3.5999999999999999E-3,0]
["310","200",null,"001","1",{"$f":"VLOOKUP(A202,ActiveFunds!$F$4:$H$106,3,0)","v":"310-Department of Corrections"},"200-Correctional Operations",null,{"$f":"VLOOKUP(D202&\"-\"&E202,ActiveFunds!$J$4:$K$456,2,0)","v":"001-1 General Fund-State"},0,0,0,0,0,0,0.83499999999999996,0]
["310","300",null,"001","1",{"$f":"VLOOKUP(A203,ActiveFunds!$F$4:$H$106,3,0)","v":"310-Department of Corrections"},"300-Community Supervision",null,{"$f":"VLOOKUP(D203&\"-\"&E203,ActiveFunds!$J$4:$K$456,2,0)","v":"001-1 General Fund-State"},0,0,0,0,0,0,0.15259999999999999,0]
["310","400",null,"001","1",{"$f":"VLOOKUP(A204,ActiveFunds!$F$4:$H$106,3,0)","v":"310-Department of Corrections"},"400-Correctional Industries",null,{"$f":"VLOOKUP(D204&\"-\"&E204,ActiveFunds!$J$4:$K$456,2,0)","v":"001-1 General Fund-State"},0,0,0,0,0,0,3.0000000000000001E-3,0]
["310","600",null,"001","1",{"$f":"VLOOKUP(A205,ActiveFunds!$F$4:$H$106,3,0)","v":"310-Department of Corrections"},"600-Interagency Payments",null,{"$f":"VLOOKUP(D205&\"-\"&E205,ActiveFunds!$J$4:$K$456,2,0)","v":"001-1 General Fund-State"},1,1,1,1,1,1,0,1]
["310","700",null,"001","1",{"$f":"VLOOKUP(A206,ActiveFunds!$F$4:$H$106,3,0)","v":"310-Department of Corrections"},"700-Offender Change",null,{"$f":"VLOOKUP(D206&\"-\"&E206,ActiveFunds!$J$4:$K$456,2,0)","v":"001-1 General Fund-State"},0,0,0,0,0,0,5.7999999999999996E-3,0]
["315",null,null,"001","1",{"$f":"VLOOKUP(A207,ActiveFunds!$F$4:$H$106,3,0)","v":"315-Dept of Services for the Blind"},null,null,{"$f":"VLOOKUP(D207&\"-\"&E207,ActiveFunds!$J$4:$K$456,2,0)","v":"001-1 General Fund-State"},0.19,0.19,0.19,0.19,0.19,0.94,0.19,0.19]
["315",null,null,"001","2",{"$f":"VLOOKUP(A208,ActiveFunds!$F$4:$H$106,3,0)","v":"315-Dept of Services for the Blind"},null,null,{"$f":"VLOOKUP(D208&\"-\"&E208,ActiveFunds!$J$4:$K$456,2,0)","v":"001-2 General Fund-Federal"},0.75,0.75,0.75,0.75,0.75,0,0.75,0.75]
["315",null,null,"02H","6",{"$f":"VLOOKUP(A209,ActiveFunds!$F$4:$H$106,3,0)","v":"315-Dept of Services for the Blind"},null,null,{"$f":"VLOOKUP(D209&\"-\"&E209,ActiveFunds!$J$4:$K$456,2,0)","v":"02H-6 Business Enterprises Revolving Acct-Non-Appropriated"},0.06,0.06,0.06,0.06,0.06,0.06,0.06,0.06]
["340","PCA",null,"001","1",{"$f":"VLOOKUP(A210,ActiveFunds!$F$4:$H$106,3,0)","v":"340-Student Achievement Council"},"PCA-Policy Coordination & Administration",null,{"$f":"VLOOKUP(D210&\"-\"&E210,ActiveFunds!$J$4:$K$456,2,0)","v":"001-1 General Fund-State"},0.51300000000000001,0.51300000000000001,0.51300000000000001,0.51300000000000001,0.51300000000000001,0.52300000000000002,0.51300000000000001,0.51300000000000001]
["340","PCA",null,"001","2",{"$f":"VLOOKUP(A211,ActiveFunds!$F$4:$H$106,3,0)","v":"340-Student Achievement Council"},"PCA-Policy Coordination & Administration",null,{"$f":"VLOOKUP(D211&\"-\"&E211,ActiveFunds!$J$4:$K$456,2,0)","v":"001-2 General Fund-Federal"},0.01,0.01,0.01,0.01,0.01,0,0.01,0.01]
["340","SFA",null,"001","1",{"$f":"VLOOKUP(A212,ActiveFunds!$F$4:$H$106,3,0)","v":"340-Student Achievement Council"},"SFA-Student Finanical Aid",null,{"$f":"VLOOKUP(D212&\"-\"&E212,ActiveFunds!$J$4:$K$456,2,0)","v":"001-1 General Fund-State"},0,0,0,0,0,9.1999999999999998E-2,0,0]
["340","SFA",null,"001","2",{"$f":"VLOOKUP(A213,ActiveFunds!$F$4:$H$106,3,0)","v":"340-Student Achievement Council"},"SFA-Student Finanical Aid",null,{"$f":"VLOOKUP(D213&\"-\"&E213,ActiveFunds!$J$4:$K$456,2,0)","v":"001-2 General Fund-Federal"},9.1999999999999998E-2,9.1999999999999998E-2,9.1999999999999998E-2,9.1999999999999998E-2,9.1999999999999998E-2,0,9.1999999999999998E-2,9.1999999999999998E-2]
["340","SFA",null,"788","6",{"$f":"VLOOKUP(A214,ActiveFunds!$F$4:$H$106,3,0)","v":"340-Student Achievement Council"},"SFA-Student Finanical Aid",null,{"$f":"VLOOKUP(D214&\"-\"&E214,ActiveFunds!$J$4:$K$456,2,0)","v":"788-6 Adv College Tuition Payment Pgm-Non-Appropriated"},0.38500000000000001,0.38500000000000001,0.38500000000000001,0.38500000000000001,0.38500000000000001,0.38500000000000001,0.38500000000000001,0.38500000000000001]
["341",null,null,"548","6",{"$f":"VLOOKUP(A215,ActiveFunds!$F$4:$H$106,3,0)","v":"341-LEOFF 2 Retirement Board"},null,null,{"$f":"VLOOKUP(D215&\"-\"&E215,ActiveFunds!$J$4:$K$456,2,0)","v":"548-6 LEOFF Plan 2 Expense Fund-Non-Appropriated"},1,1,1,1,1,1,1,1]
["350","010",null,"001","1",{"$f":"VLOOKUP(A216,ActiveFunds!$F$4:$H$106,3,0)","v":"350-Public Schools"},"010-OSPI & Statewide Programs",null,{"$f":"VLOOKUP(D216&\"-\"&E216,ActiveFunds!$J$4:$K$456,2,0)","v":"001-1 General Fund-State"},1,1,1,1,1,1,1,1]
["351",null,null,"001","1",{"$f":"VLOOKUP(A217,ActiveFunds!$F$4:$H$106,3,0)","v":"351-State School for the Blind"},null,null,{"$f":"VLOOKUP(D217&\"-\"&E217,ActiveFunds!$J$4:$K$456,2,0)","v":"001-1 General Fund-State"},1,1,1,1,1,1,1,1]
["353",null,null,"001","1",{"$f":"VLOOKUP(A218,ActiveFunds!$F$4:$H$106,3,0)","v":"353-Childhood Deafness & Hearing Loss"},null,null,{"$f":"VLOOKUP(D218&\"-\"&E218,ActiveFunds!$J$4:$K$456,2,0)","v":"001-1 General Fund-State"},1,1,1,1,1,1,1,1]
["354",null,null,"001","1",{"$f":"VLOOKUP(A219,ActiveFunds!$F$4:$H$106,3,0)","v":"354-Workforce Trng & Educ Coord Board"},null,null,{"$f":"VLOOKUP(D219&\"-\"&E219,ActiveFunds!$J$4:$K$456,2,0)","v":"001-1 General Fund-State"},0.52,0.52,0.52,0.52,0.52,0.98,0.52,0.52]
["354",null,null,"001","2",{"$f":"VLOOKUP(A220,ActiveFunds!$F$4:$H$106,3,0)","v":"354-Workforce Trng & Educ Coord Board"},null,null,{"$f":"VLOOKUP(D220&\"-\"&E220,ActiveFunds!$J$4:$K$456,2,0)","v":"001-2 General Fund-Federal"},0.46,0.46,0.46,0.46,0.46,0,0.46,0.46]
["354",null,null,"503","6",{"$f":"VLOOKUP(A221,ActiveFunds!$F$4:$H$106,3,0)","v":"354-Workforce Trng & Educ Coord Board"},null,null,{"$f":"VLOOKUP(D221&\"-\"&E221,ActiveFunds!$J$4:$K$456,2,0)","v":"503-6 Tuition Recovery Trust Fund-Non-Appropriated"},0.02,0.02,0.02,0.02,0.02,0.02,0.02,0.02]
["355",null,null,"001","1",{"$f":"VLOOKUP(A222,ActiveFunds!$F$4:$H$106,3,0)","v":"355-Archaeology & Historic Preservation"},null,null,{"$f":"VLOOKUP(D222&\"-\"&E222,ActiveFunds!$J$4:$K$456,2,0)","v":"001-1 General Fund-State"},1,1,1,1,1,1,1,1]
["357",null,null,"001","1",{"$f":"VLOOKUP(A223,ActiveFunds!$F$4:$H$106,3,0)","v":"357-Department of Early Learning"},null,null,{"$f":"VLOOKUP(D223&\"-\"&E223,ActiveFunds!$J$4:$K$456,2,0)","v":"001-1 General Fund-State"},8.3900000000000002E-2,8.3900000000000002E-2,8.3900000000000002E-2,8.3900000000000002E-2,8.3900000000000002E-2,0.99019999999999997,8.3900000000000002E-2,8.3900000000000002E-2]
["357",null,null,"001","2",{"$f":"VLOOKUP(A224,ActiveFunds!$F$4:$H$106,3,0)","v":"357-Department of Early Learning"},null,null,{"$f":"VLOOKUP(D224&\"-\"&E224,ActiveFunds!$J$4:$K$456,2,0)","v":"001-2 General Fund-Federal"},0.88390000000000002,0.88390000000000002,0.88390000000000002,0.88390000000000002,0.88390000000000002,0,0.88390000000000002,0.88390000000000002]
["357",null,null,"001","7",{"$f":"VLOOKUP(A225,ActiveFunds!$F$4:$H$106,3,0)","v":"357-Department of Early Learning"},null,null,{"$f":"VLOOKUP(D225&\"-\"&E225,ActiveFunds!$J$4:$K$456,2,0)","v":"001-7 General Fund-Private/Local"},0,0,0,0,0,0,0,0]
["357",null,null,"001","8",{"$f":"VLOOKUP(A226,ActiveFunds!$F$4:$H$106,3,0)","v":"357-Department of Early Learning"},null,null,{"$f":"VLOOKUP(D226&\"-\"&E226,ActiveFunds!$J$4:$K$456,2,0)","v":"001-8 General Fund-Federal ARRA"},0,0,0,0,0,0,0,0]
["357",null,null,"17B","2",{"$f":"VLOOKUP(A227,ActiveFunds!$F$4:$H$106,3,0)","v":"357-Department of Early Learning"},null,null,{"$f":"VLOOKUP(D227&\"-\"&E227,ActiveFunds!$J$4:$K$456,2,0)","v":"17B-2 Home Visiting Services Account-Federal"},2.24E-2,2.24E-2,2.24E-2,2.24E-2,2.24E-2,0,2.24E-2,2.24E-2]
["357",null,null,"17M","6",{"$f":"VLOOKUP(A228,ActiveFunds!$F$4:$H$106,3,0)","v":"357-Department of Early Learning"},null,null,{"$f":"VLOOKUP(D228&\"-\"&E228,ActiveFunds!$J$4:$K$456,2,0)","v":"17M-6 Indivi-Based/Portable Background Ch-Non-Appropriated"},9.7999999999999997E-3,9.7999999999999997E-3,9.7999999999999997E-3,9.7999999999999997E-3,9.7999999999999997E-3,9.7999999999999997E-3,9.7999999999999997E-3,9.7999999999999997E-3]
["359",null,null,"001","1",{"$f":"VLOOKUP(A229,ActiveFunds!$F$4:$H$106,3,0)","v":"359-Washington Charter School Comm"},null,null,{"$f":"VLOOKUP(D229&\"-\"&E229,ActiveFunds!$J$4:$K$456,2,0)","v":"001-1 General Fund-State"},1,0.57999999999999996,1,1,1,1,1,1]
["359",null,null,"19L","1",{"$f":"VLOOKUP(A230,ActiveFunds!$F$4:$H$106,3,0)","v":"359-Washington Charter School Comm"},null,null,{"$f":"VLOOKUP(D230&\"-\"&E230,ActiveFunds!$J$4:$K$456,2,0)","v":"19L-1 Charter School Oversight Account-State"},0,0.42,0,0,0,0,0,0]
["360",null,null,"001","1",{"$f":"VLOOKUP(A231,ActiveFunds!$F$4:$H$106,3,0)","v":"360-University of Washington"},null,null,{"$f":"VLOOKUP(D231&\"-\"&E231,ActiveFunds!$J$4:$K$456,2,0)","v":"001-1 General Fund-State"},0.38,0.38,0.38,0.38,0.38,0.38,0.38,0.38]
["360",null,null,"149","6",{"$f":"VLOOKUP(A232,ActiveFunds!$F$4:$H$106,3,0)","v":"360-University of Washington"},null,null,{"$f":"VLOOKUP(D232&\"-\"&E232,ActiveFunds!$J$4:$K$456,2,0)","v":"149-6 Inst of Hi Ed-Operating Fees Acct-Non-Appropriated"},0.62,0.62,0.62,0.62,0.62,0.62,0.62,0.62]
["365",null,null,"001","1",{"$f":"VLOOKUP(A233,ActiveFunds!$F$4:$H$106,3,0)","v":"365-Washington State University"},null,null,{"$f":"VLOOKUP(D233&\"-\"&E233,ActiveFunds!$J$4:$K$456,2,0)","v":"001-1 General Fund-State"},0.38,0.38,0.38,0.38,0.38,0.38,0.38,0.38]
["365",null,null,"149","6",{"$f":"VLOOKUP(A234,ActiveFunds!$F$4:$H$106,3,0)","v":"365-Washington State University"},null,null,{"$f":"VLOOKUP(D234&\"-\"&E234,ActiveFunds!$J$4:$K$456,2,0)","v":"149-6 Inst of Hi Ed-Operating Fees Acct-Non-Appropriated"},0.62,0.62,0.62,0.62,0.62,0.62,0.62,0.62]
["370",null,null,"001","1",{"$f":"VLOOKUP(A235,ActiveFunds!$F$4:$H$106,3,0)","v":"370-Eastern Washington University"},null,null,{"$f":"VLOOKUP(D235&\"-\"&E235,ActiveFunds!$J$4:$K$456,2,0)","v":"001-1 General Fund-State"},0.38,0.38,0.38,0.38,0.38,0.38,0.38,0.38]
["370",null,null,"149","6",{"$f":"VLOOKUP(A236,ActiveFunds!$F$4:$H$106,3,0)","v":"370-Eastern Washington University"},null,null,{"$f":"VLOOKUP(D236&\"-\"&E236,ActiveFunds!$J$4:$K$456,2,0)","v":"149-6 Inst of Hi Ed-Operating Fees Acct-Non-Appropriated"},0.62,0.62,0.62,0.62,0.62,0.62,0.62,0.62]
["375",null,null,"001","1",{"$f":"VLOOKUP(A237,ActiveFunds!$F$4:$H$106,3,0)","v":"375-Central Washington University"},null,null,{"$f":"VLOOKUP(D237&\"-\"&E237,ActiveFunds!$J$4:$K$456,2,0)","v":"001-1 General Fund-State"},0.38,0.38,0.38,0.38,0.38,0.38,0.38,0.38]
["375",null,null,"149","6",{"$f":"VLOOKUP(A238,ActiveFunds!$F$4:$H$106,3,0)","v":"375-Central Washington University"},null,null,{"$f":"VLOOKUP(D238&\"-\"&E238,ActiveFunds!$J$4:$K$456,2,0)","v":"149-6 Inst of Hi Ed-Operating Fees Acct-Non-Appropriated"},0.62,0.62,0.62,0.62,0.62,0.62,0.62,0.62]
["376",null,null,"001","1",{"$f":"VLOOKUP(A239,ActiveFunds!$F$4:$H$106,3,0)","v":"376-The Evergreen State College"},null,null,{"$f":"VLOOKUP(D239&\"-\"&E239,ActiveFunds!$J$4:$K$456,2,0)","v":"001-1 General Fund-State"},0.38,0.38,0.38,0.38,0.38,0.38,0.38,0.38]
["376",null,null,"149","6",{"$f":"VLOOKUP(A240,ActiveFunds!$F$4:$H$106,3,0)","v":"376-The Evergreen State College"},null,null,{"$f":"VLOOKUP(D240&\"-\"&E240,ActiveFunds!$J$4:$K$456,2,0)","v":"149-6 Inst of Hi Ed-Operating Fees Acct-Non-Appropriated"},0.62,0.62,0.62,0.62,0.62,0.62,0.62,0.62]
["380",null,null,"001","1",{"$f":"VLOOKUP(A241,ActiveFunds!$F$4:$H$106,3,0)","v":"380-Western Washington University"},null,null,{"$f":"VLOOKUP(D241&\"-\"&E241,ActiveFunds!$J$4:$K$456,2,0)","v":"001-1 General Fund-State"},0.38,0.38,0.38,0.38,0.38,0.38,0.38,0.38]
["380",null,null,"149","6",{"$f":"VLOOKUP(A242,ActiveFunds!$F$4:$H$106,3,0)","v":"380-Western Washington University"},null,null,{"$f":"VLOOKUP(D242&\"-\"&E242,ActiveFunds!$J$4:$K$456,2,0)","v":"149-6 Inst of Hi Ed-Operating Fees Acct-Non-Appropriated"},0.62,0.62,0.62,0.62,0.62,0.62,0.62,0.62]
["387",null,null,"001","1",{"$f":"VLOOKUP(A243,ActiveFunds!$F$4:$H$106,3,0)","v":"387-Washington State Arts Commission"},null,null,{"$f":"VLOOKUP(D243&\"-\"&E243,ActiveFunds!$J$4:$K$456,2,0)","v":"001-1 General Fund-State"},1,1,1,1,1,1,1,1]
["390",null,null,"001","1",{"$f":"VLOOKUP(A244,ActiveFunds!$F$4:$H$106,3,0)","v":"390-Washington State Historical Society"},null,null,{"$f":"VLOOKUP(D244&\"-\"&E244,ActiveFunds!$J$4:$K$456,2,0)","v":"001-1 General Fund-State"},0.96,0.96,0.96,0.96,0.96,0.96,0.96,0.96]
["390",null,null,"184","6",{"$f":"VLOOKUP(A245,ActiveFunds!$F$4:$H$106,3,0)","v":"390-Washington State Historical Society"},null,null,{"$f":"VLOOKUP(D245&\"-\"&E245,ActiveFunds!$J$4:$K$456,2,0)","v":"184-6 Local Museum Acct-Wa St Hist Soc-Non-Appropriated"},0.04,0.04,0.04,0.04,0.04,0.04,0.04,0.04]
["395",null,null,"001","1",{"$f":"VLOOKUP(A246,ActiveFunds!$F$4:$H$106,3,0)","v":"395-East Wash State Historical Society"},null,null,{"$f":"VLOOKUP(D246&\"-\"&E246,ActiveFunds!$J$4:$K$456,2,0)","v":"001-1 General Fund-State"},1,1,1,1,1,1,1,1]
["405","B00",null,"108","1",{"$f":"VLOOKUP(A247,ActiveFunds!$F$4:$H$106,3,0)","v":"405-Department of Transportation"},"B00-Program B - Toll Operations & Maintenance",null,{"$f":"VLOOKUP(D247&\"-\"&E247,ActiveFunds!$J$4:$K$456,2,0)","v":"108-1 Motor Vehicle Account-State"},0,0,0,0,0,0,3.5999999999999999E-3,0]
["405","C00",null,"108","1",{"$f":"VLOOKUP(A248,ActiveFunds!$F$4:$H$106,3,0)","v":"405-Department of Transportation"},"C00-Program C - Information Technology",null,{"$f":"VLOOKUP(D248&\"-\"&E248,ActiveFunds!$J$4:$K$456,2,0)","v":"108-1 Motor Vehicle Account-State"},0,0,0,0,0,0,3.73E-2,0]
["405","D00",null,"108","1",{"$f":"VLOOKUP(A249,ActiveFunds!$F$4:$H$106,3,0)","v":"405-Department of Transportation"},"D00-Program D - Facilities - Operating",null,{"$f":"VLOOKUP(D249&\"-\"&E249,ActiveFunds!$J$4:$K$456,2,0)","v":"108-1 Motor Vehicle Account-State"},0,0,0,0,0,0,0.01,0]
["405","F00",null,"039","1",{"$f":"VLOOKUP(A250,ActiveFunds!$F$4:$H$106,3,0)","v":"405-Department of Transportation"},"F00-Program F - Aviation",null,{"$f":"VLOOKUP(D250&\"-\"&E250,ActiveFunds!$J$4:$K$456,2,0)","v":"039-1 Aeronautics Account-State"},0,0,0,0,0,0,1.9E-3,0]
["405","H00",null,"108","1",{"$f":"VLOOKUP(A251,ActiveFunds!$F$4:$H$106,3,0)","v":"405-Department of Transportation"},"H00-Program H - Program Delivery Management & Support",null,{"$f":"VLOOKUP(D251&\"-\"&E251,ActiveFunds!$J$4:$K$456,2,0)","v":"108-1 Motor Vehicle Account-State"},0,0,0,0,0,0,3.3599999999999998E-2,0]
["405","M00",null,"108","1",{"$f":"VLOOKUP(A252,ActiveFunds!$F$4:$H$106,3,0)","v":"405-Department of Transportation"},"M00-Program M - Highway Maintenance",null,{"$f":"VLOOKUP(D252&\"-\"&E252,ActiveFunds!$J$4:$K$456,2,0)","v":"108-1 Motor Vehicle Account-State"},0,0,0,0,0,0,0.6673,0]
["405","Q00",null,"108","1",{"$f":"VLOOKUP(A253,ActiveFunds!$F$4:$H$106,3,0)","v":"405-Department of Transportation"},"Q00-Program Q - Traffic Operations",null,{"$f":"VLOOKUP(D253&\"-\"&E253,ActiveFunds!$J$4:$K$456,2,0)","v":"108-1 Motor Vehicle Account-State"},0,0,0,0,0,0,3.4500000000000003E-2,0]
["405","S00",null,"108","1",{"$f":"VLOOKUP(A254,ActiveFunds!$F$4:$H$106,3,0)","v":"405-Department of Transportation"},"S00-Program S - Transportation Management - Operating",null,{"$f":"VLOOKUP(D254&\"-\"&E254,ActiveFunds!$J$4:$K$456,2,0)","v":"108-1 Motor Vehicle Account-State"},0,0,0,0,0,0,2.7300000000000001E-2,0]
["405","T00",null,"108","1",{"$f":"VLOOKUP(A255,ActiveFunds!$F$4:$H$106,3,0)","v":"405-Department of Transportation"},"T00-Program T - Transportation Planning, Data and Research - Op",null,{"$f":"VLOOKUP(D255&\"-\"&E255,ActiveFunds!$J$4:$K$456,2,0)","v":"108-1 Motor Vehicle Account-State"},0,0,0,0,0,0,2.64E-2,0]
["405","U00",null,"108","1",{"$f":"VLOOKUP(A256,ActiveFunds!$F$4:$H$106,3,0)","v":"405-Department of Transportation"},"U00-Program U - Charges from Other Agencies",null,{"$f":"VLOOKUP(D256&\"-\"&E256,ActiveFunds!$J$4:$K$456,2,0)","v":"108-1 Motor Vehicle Account-State"},0.93,0.93,0.93,0.93,0.93,0.93,0,0.93]
["405","U00",null,"218","1",{"$f":"VLOOKUP(A257,ActiveFunds!$F$4:$H$106,3,0)","v":"405-Department of Transportation"},"U00-Program U - Charges from Other Agencies",null,{"$f":"VLOOKUP(D257&\"-\"&E257,ActiveFunds!$J$4:$K$456,2,0)","v":"218-1 Multimodal Transportation Account-State"},7.0000000000000007E-2,7.0000000000000007E-2,7.0000000000000007E-2,7.0000000000000007E-2,7.0000000000000007E-2,7.0000000000000007E-2,0,7.0000000000000007E-2]
["405","V00",null,"218","1",{"$f":"VLOOKUP(A258,ActiveFunds!$F$4:$H$106,3,0)","v":"405-Department of Transportation"},"V00-Program V - Public Transportation",null,{"$f":"VLOOKUP(D258&\"-\"&E258,ActiveFunds!$J$4:$K$456,2,0)","v":"218-1 Multimodal Transportation Account-State"},0,0,0,0,0,0,4.4999999999999997E-3,0]
["405","X00",null,"109","1",{"$f":"VLOOKUP(A259,ActiveFunds!$F$4:$H$106,3,0)","v":"405-Department of Transportation"},"X00-Program X - Washington State Ferries - Operating",null,{"$f":"VLOOKUP(D259&\"-\"&E259,ActiveFunds!$J$4:$K$456,2,0)","v":"109-1 Puget Sound Ferry Operations Acct-State"},0,0,0,0,0,0,0.14360000000000001,0]
["405","Y00",null,"218","1",{"$f":"VLOOKUP(A260,ActiveFunds!$F$4:$H$106,3,0)","v":"405-Department of Transportation"},"Y00-Program Y - Rail - Operating",null,{"$f":"VLOOKUP(D260&\"-\"&E260,ActiveFunds!$J$4:$K$456,2,0)","v":"218-1 Multimodal Transportation Account-State"},0,0,0,0,0,0,1.8E-3,0]
["405","Z00",null,"108","1",{"$f":"VLOOKUP(A261,ActiveFunds!$F$4:$H$106,3,0)","v":"405-Department of Transportation"},"Z00-Program Z - Local Programs - Operating",null,{"$f":"VLOOKUP(D261&\"-\"&E261,ActiveFunds!$J$4:$K$456,2,0)","v":"108-1 Motor Vehicle Account-State"},0,0,0,0,0,0,8.2000000000000007E-3,0]
["406","010",null,"108","1",{"$f":"VLOOKUP(A262,ActiveFunds!$F$4:$H$106,3,0)","v":"406-County Road Administration Board"},"010-Operating",null,{"$f":"VLOOKUP(D262&\"-\"&E262,ActiveFunds!$J$4:$K$456,2,0)","v":"108-1 Motor Vehicle Account-State"},1,1,1,1,1,1,1,1]
["407","010",null,"144","1",{"$f":"VLOOKUP(A263,ActiveFunds!$F$4:$H$106,3,0)","v":"407-Transportation Improvement Board"},"010-Operating",null,{"$f":"VLOOKUP(D263&\"-\"&E263,ActiveFunds!$J$4:$K$456,2,0)","v":"144-1 Transportation Improvement Account-State"},1,1,1,1,1,1,1,1]
["410",null,null,"108","1",{"$f":"VLOOKUP(A264,ActiveFunds!$F$4:$H$106,3,0)","v":"410-Transportation Commission"},null,null,{"$f":"VLOOKUP(D264&\"-\"&E264,ActiveFunds!$J$4:$K$456,2,0)","v":"108-1 Motor Vehicle Account-State"},1,1,1,1,1,1,1,1]
["411","010",null,"108","1",{"$f":"VLOOKUP(A265,ActiveFunds!$F$4:$H$106,3,0)","v":"411-Freight Mobility Strategic Invest"},"010-Operating",null,{"$f":"VLOOKUP(D265&\"-\"&E265,ActiveFunds!$J$4:$K$456,2,0)","v":"108-1 Motor Vehicle Account-State"},1,1,1,1,1,1,1,1]
["460",null,null,"001","1",{"$f":"VLOOKUP(A266,ActiveFunds!$F$4:$H$106,3,0)","v":"460-Columbia River Gorge Commission"},null,null,{"$f":"VLOOKUP(D266&\"-\"&E266,ActiveFunds!$J$4:$K$456,2,0)","v":"001-1 General Fund-State"},0.5,0.5,0.5,0.5,0.5,0.5,0.5,0.5]
["460",null,null,"001","7",{"$f":"VLOOKUP(A267,ActiveFunds!$F$4:$H$106,3,0)","v":"460-Columbia River Gorge Commission"},null,null,{"$f":"VLOOKUP(D267&\"-\"&E267,ActiveFunds!$J$4:$K$456,2,0)","v":"001-7 General Fund-Private/Local"},0.5,0.5,0.5,0.5,0.5,0.5,0.5,0.5]
["461",null,null,"001","1",{"$f":"VLOOKUP(A268,ActiveFunds!$F$4:$H$106,3,0)","v":"461-Department of Ecology"},null,null,{"$f":"VLOOKUP(D268&\"-\"&E268,ActiveFunds!$J$4:$K$456,2,0)","v":"001-1 General Fund-State"},0.17499999999999999,0.17499999999999999,0.17499999999999999,0.17499999999999999,0.17499999999999999,0.17499999999999999,0.17499999999999999,0.17499999999999999]
["461",null,null,"027","1",{"$f":"VLOOKUP(A269,ActiveFunds!$F$4:$H$106,3,0)","v":"461-Department of Ecology"},null,null,{"$f":"VLOOKUP(D269&\"-\"&E269,ActiveFunds!$J$4:$K$456,2,0)","v":"027-1 Reclamation Account-State"},0,0,0,0,0,0,0,0]
["461",null,null,"044","1",{"$f":"VLOOKUP(A270,ActiveFunds!$F$4:$H$106,3,0)","v":"461-Department of Ecology"},null,null,{"$f":"VLOOKUP(D270&\"-\"&E270,ActiveFunds!$J$4:$K$456,2,0)","v":"044-1 Waste Reduct/Recycle/Litter Control-State"},3.1E-2,3.1E-2,3.1E-2,3.1E-2,3.1E-2,3.1E-2,3.1E-2,3.1E-2]
["461",null,null,"173","1",{"$f":"VLOOKUP(A271,ActiveFunds!$F$4:$H$106,3,0)","v":"461-Department of Ecology"},null,null,{"$f":"VLOOKUP(D271&\"-\"&E271,ActiveFunds!$J$4:$K$456,2,0)","v":"173-1 State Toxics Control Account-State"},0.434,0.434,0.434,0.434,0.434,0.434,0.434,0.434]
["461",null,null,"174","1",{"$f":"VLOOKUP(A272,ActiveFunds!$F$4:$H$106,3,0)","v":"461-Department of Ecology"},null,null,{"$f":"VLOOKUP(D272&\"-\"&E272,ActiveFunds!$J$4:$K$456,2,0)","v":"174-1 Local Toxics Control Account-State"},0,0,0,0,0,0,0,0]
["461",null,null,"176","1",{"$f":"VLOOKUP(A273,ActiveFunds!$F$4:$H$106,3,0)","v":"461-Department of Ecology"},null,null,{"$f":"VLOOKUP(D273&\"-\"&E273,ActiveFunds!$J$4:$K$456,2,0)","v":"176-1 Water Quality Permit Account-State"},0.15,0.15,0.15,0.15,0.15,0.15,0.15,0.15]
["461",null,null,"19G","1",{"$f":"VLOOKUP(A274,ActiveFunds!$F$4:$H$106,3,0)","v":"461-Department of Ecology"},null,null,{"$f":"VLOOKUP(D274&\"-\"&E274,ActiveFunds!$J$4:$K$456,2,0)","v":"19G-1 Environmental Legacy Stewardship-State"},9.9000000000000005E-2,9.9000000000000005E-2,9.9000000000000005E-2,9.9000000000000005E-2,9.9000000000000005E-2,9.9000000000000005E-2,9.9000000000000005E-2,9.9000000000000005E-2]
["461",null,null,"207","1",{"$f":"VLOOKUP(A275,ActiveFunds!$F$4:$H$106,3,0)","v":"461-Department of Ecology"},null,null,{"$f":"VLOOKUP(D275&\"-\"&E275,ActiveFunds!$J$4:$K$456,2,0)","v":"207-1 Hazardous Waste Assistance Account-State"},2.7E-2,2.7E-2,2.7E-2,2.7E-2,2.7E-2,2.7E-2,2.7E-2,2.7E-2]
["461",null,null,"20R","1",{"$f":"VLOOKUP(A276,ActiveFunds!$F$4:$H$106,3,0)","v":"461-Department of Ecology"},null,null,{"$f":"VLOOKUP(D276&\"-\"&E276,ActiveFunds!$J$4:$K$456,2,0)","v":"20R-1 Radioactive Mixed Waste Account-State"},5.6000000000000001E-2,5.6000000000000001E-2,5.6000000000000001E-2,5.6000000000000001E-2,5.6000000000000001E-2,5.6000000000000001E-2,5.6000000000000001E-2,5.6000000000000001E-2]
["461",null,null,"217","1",{"$f":"VLOOKUP(A277,ActiveFunds!$F$4:$H$106,3,0)","v":"461-Department of Ecology"},null,null,{"$f":"VLOOKUP(D277&\"-\"&E277,ActiveFunds!$J$4:$K$456,2,0)","v":"217-1 Oil Spill Prevention Account-State"},2.8000000000000001E-2,2.8000000000000001E-2,2.8000000000000001E-2,2.8000000000000001E-2,2.8000000000000001E-2,2.8000000000000001E-2,2.8000000000000001E-2,2.8000000000000001E-2]
["462",null,null,"544","1",{"$f":"VLOOKUP(A278,ActiveFunds!$F$4:$H$106,3,0)","v":"462-WA Pollution Liab Insurance Program"},null,null,{"$f":"VLOOKUP(D278&\"-\"&E278,ActiveFunds!$J$4:$K$456,2,0)","v":"544-1 Pollution Liab Insurance Prog Trust-State"},0.625,0.625,0.625,0.625,0.625,0.625,0.625,0.625]
["462",null,null,"545","6",{"$f":"VLOOKUP(A279,ActiveFunds!$F$4:$H$106,3,0)","v":"462-WA Pollution Liab Insurance Program"},null,null,{"$f":"VLOOKUP(D279&\"-\"&E279,ActiveFunds!$J$4:$K$456,2,0)","v":"545-6 Heating Oil Pollution Liab Trust-Non-Appropriated"},0.375,0.375,0.375,0.375,0.375,0.375,0.375,0.375]
["465",null,null,"269","1",{"$f":"VLOOKUP(A280,ActiveFunds!$F$4:$H$106,3,0)","v":"465-State Parks and Recreation Comm"},null,null,{"$f":"VLOOKUP(D280&\"-\"&E280,ActiveFunds!$J$4:$K$456,2,0)","v":"269-1 Parks Renewal & Stewardship Acct-State"},1,1,1,1,1,1,1,1]
["467",null,null,"001","1",{"$f":"VLOOKUP(A281,ActiveFunds!$F$4:$H$106,3,0)","v":"467-Rec and Conservation Funding Board"},null,null,{"$f":"VLOOKUP(D281&\"-\"&E281,ActiveFunds!$J$4:$K$456,2,0)","v":"001-1 General Fund-State"},0.4,0.4,0.4,0.4,0.4,0.4,0.4,0.4]
["467",null,null,"267","1",{"$f":"VLOOKUP(A282,ActiveFunds!$F$4:$H$106,3,0)","v":"467-Rec and Conservation Funding Board"},null,null,{"$f":"VLOOKUP(D282&\"-\"&E282,ActiveFunds!$J$4:$K$456,2,0)","v":"267-1 Recreation Resources Account-State"},0.6,0.6,0.6,0.6,0.6,0.6,0.6,0.6]
["468",null,null,"001","1",{"$f":"VLOOKUP(A283,ActiveFunds!$F$4:$H$106,3,0)","v":"468-Environ & Land Use Hearings Office"},null,null,{"$f":"VLOOKUP(D283&\"-\"&E283,ActiveFunds!$J$4:$K$456,2,0)","v":"001-1 General Fund-State"},1,1,1,1,1,1,1,1]
["471",null,null,"001","1",{"$f":"VLOOKUP(A284,ActiveFunds!$F$4:$H$106,3,0)","v":"471-State Conservation Commission"},null,null,{"$f":"VLOOKUP(D284&\"-\"&E284,ActiveFunds!$J$4:$K$456,2,0)","v":"001-1 General Fund-State"},1,1,1,1,1,1,1,1]
["477",null,null,"001","1",{"$f":"VLOOKUP(A285,ActiveFunds!$F$4:$H$106,3,0)","v":"477-Dept of Fish and Wildlife"},null,null,{"$f":"VLOOKUP(D285&\"-\"&E285,ActiveFunds!$J$4:$K$456,2,0)","v":"001-1 General Fund-State"},0.20619999999999999,0.20619999999999999,0.20619999999999999,0.20619999999999999,0.20619999999999999,0.31296666666666667,0.20619999999999999,0.20619999999999999]
["477",null,null,"001","2",{"$f":"VLOOKUP(A286,ActiveFunds!$F$4:$H$106,3,0)","v":"477-Dept of Fish and Wildlife"},null,null,{"$f":"VLOOKUP(D286&\"-\"&E286,ActiveFunds!$J$4:$K$456,2,0)","v":"001-2 General Fund-Federal"},0.32029999999999997,0.32029999999999997,0.32029999999999997,0.32029999999999997,0.32029999999999997,0,0.32029999999999997,0.32029999999999997]
["477",null,null,"001","7",{"$f":"VLOOKUP(A287,ActiveFunds!$F$4:$H$106,3,0)","v":"477-Dept of Fish and Wildlife"},null,null,{"$f":"VLOOKUP(D287&\"-\"&E287,ActiveFunds!$J$4:$K$456,2,0)","v":"001-7 General Fund-Private/Local"},0.1729,0.1729,0.1729,0.1729,0.1729,0.27966666666666667,0.1729,0.1729]
["477",null,null,"104","1",{"$f":"VLOOKUP(A288,ActiveFunds!$F$4:$H$106,3,0)","v":"477-Dept of Fish and Wildlife"},null,null,{"$f":"VLOOKUP(D288&\"-\"&E288,ActiveFunds!$J$4:$K$456,2,0)","v":"104-1 State Wildlife Account-State"},0.30059999999999998,0.30059999999999998,0.30059999999999998,0.30059999999999998,0.30059999999999998,0.40736666666666665,0.30059999999999998,0.30059999999999998]
["478",null,null,"001","1",{"$f":"VLOOKUP(A289,ActiveFunds!$F$4:$H$106,3,0)","v":"478-Puget Sound Partnership"},null,null,{"$f":"VLOOKUP(D289&\"-\"&E289,ActiveFunds!$J$4:$K$456,2,0)","v":"001-1 General Fund-State"},0.25,0.25,0.25,0.25,0.25,0.85,0.25,0.25]
["478",null,null,"001","2",{"$f":"VLOOKUP(A290,ActiveFunds!$F$4:$H$106,3,0)","v":"478-Puget Sound Partnership"},null,null,{"$f":"VLOOKUP(D290&\"-\"&E290,ActiveFunds!$J$4:$K$456,2,0)","v":"001-2 General Fund-Federal"},0.6,0.6,0.6,0.6,0.6,0,0.6,0.6]
["478",null,null,"02R","1",{"$f":"VLOOKUP(A291,ActiveFunds!$F$4:$H$106,3,0)","v":"478-Puget Sound Partnership"},null,null,{"$f":"VLOOKUP(D291&\"-\"&E291,ActiveFunds!$J$4:$K$456,2,0)","v":"02R-1 Aquatic Lands Enhancement Account-State"},0.1,0.1,0.1,0.1,0.1,0.1,0.1,0.1]
["478",null,null,"173","1",{"$f":"VLOOKUP(A292,ActiveFunds!$F$4:$H$106,3,0)","v":"478-Puget Sound Partnership"},null,null,{"$f":"VLOOKUP(D292&\"-\"&E292,ActiveFunds!$J$4:$K$456,2,0)","v":"173-1 State Toxics Control Account-State"},0.05,0.05,0.05,0.05,0.05,0.05,0.05,0.05]
["490",null,null,"001","1",{"$f":"VLOOKUP(A293,ActiveFunds!$F$4:$H$106,3,0)","v":"490-Department of Natural Resources"},null,null,{"$f":"VLOOKUP(D293&\"-\"&E293,ActiveFunds!$J$4:$K$456,2,0)","v":"001-1 General Fund-State"},0.20399999999999999,0.247,0.20399999999999999,0.19700000000000001,0.20399999999999999,0.20399999999999999,0.20399999999999999,0.20399999999999999]
["490",null,null,"001","2",{"$f":"VLOOKUP(A294,ActiveFunds!$F$4:$H$106,3,0)","v":"490-Department of Natural Resources"},null,null,{"$f":"VLOOKUP(D294&\"-\"&E294,ActiveFunds!$J$4:$K$456,2,0)","v":"001-2 General Fund-Federal"},0,0,0,5.2999999999999999E-2,0,0,0,0]
["490",null,null,"014","1",{"$f":"VLOOKUP(A295,ActiveFunds!$F$4:$H$106,3,0)","v":"490-Department of Natural Resources"},null,null,{"$f":"VLOOKUP(D295&\"-\"&E295,ActiveFunds!$J$4:$K$456,2,0)","v":"014-1 Forest Development Account-State"},0.16800000000000001,0.115,0.16800000000000001,0.16800000000000001,0.16800000000000001,0.16800000000000001,0.16800000000000001,0.16800000000000001]
["490",null,null,"01B","1",{"$f":"VLOOKUP(A296,ActiveFunds!$F$4:$H$106,3,0)","v":"490-Department of Natural Resources"},null,null,{"$f":"VLOOKUP(D296&\"-\"&E296,ActiveFunds!$J$4:$K$456,2,0)","v":"01B-1 ORV & Non-Highway Vehicle Account-State"},0,1.9E-2,0,1.6E-2,0,0,0,0]
["490",null,null,"02A","1",{"$f":"VLOOKUP(A297,ActiveFunds!$F$4:$H$106,3,0)","v":"490-Department of Natural Resources"},null,null,{"$f":"VLOOKUP(D297&\"-\"&E297,ActiveFunds!$J$4:$K$456,2,0)","v":"02A-1 Surveys and Maps Account-State"},0,0,0,0.01,0,0,0,0]
["490",null,null,"02R","1",{"$f":"VLOOKUP(A298,ActiveFunds!$F$4:$H$106,3,0)","v":"490-Department of Natural Resources"},null,null,{"$f":"VLOOKUP(D298&\"-\"&E298,ActiveFunds!$J$4:$K$456,2,0)","v":"02R-1 Aquatic Lands Enhancement Account-State"},0.02,2.8000000000000001E-2,0.02,2.4E-2,0.02,0.02,0.02,0.02]
["490",null,null,"041","1",{"$f":"VLOOKUP(A299,ActiveFunds!$F$4:$H$106,3,0)","v":"490-Department of Natural Resources"},null,null,{"$f":"VLOOKUP(D299&\"-\"&E299,ActiveFunds!$J$4:$K$456,2,0)","v":"041-1 Resources Management Cost Account-State"},0.35899999999999999,0.47799999999999998,0.35899999999999999,0.38400000000000001,0.35899999999999999,0.35899999999999999,0.35899999999999999,0.35899999999999999]
["490",null,null,"04H","1",{"$f":"VLOOKUP(A300,ActiveFunds!$F$4:$H$106,3,0)","v":"490-Department of Natural Resources"},null,null,{"$f":"VLOOKUP(D300&\"-\"&E300,ActiveFunds!$J$4:$K$456,2,0)","v":"04H-1 Surface Mining Reclamation Account-State"},8.0000000000000002E-3,6.8000000000000005E-2,8.0000000000000002E-3,5.7000000000000002E-2,8.0000000000000002E-3,8.0000000000000002E-3,8.0000000000000002E-3,8.0000000000000002E-3]
["490",null,null,"07E","6",{"$f":"VLOOKUP(A301,ActiveFunds!$F$4:$H$106,3,0)","v":"490-Department of Natural Resources"},null,null,{"$f":"VLOOKUP(D301&\"-\"&E301,ActiveFunds!$J$4:$K$456,2,0)","v":"07E-6 Contract Harvesting Revolving Acct-Non-Appropriated"},1.0999999999999999E-2,0,1.0999999999999999E-2,0,1.0999999999999999E-2,1.0999999999999999E-2,1.0999999999999999E-2,1.0999999999999999E-2]
["490",null,null,"087","6",{"$f":"VLOOKUP(A302,ActiveFunds!$F$4:$H$106,3,0)","v":"490-Department of Natural Resources"},null,null,{"$f":"VLOOKUP(D302&\"-\"&E302,ActiveFunds!$J$4:$K$456,2,0)","v":"087-6 Park Land Trust Revolving Account-Non-Appropriated"},1.0999999999999999E-2,1.2999999999999999E-2,1.0999999999999999E-2,8.9999999999999993E-3,1.0999999999999999E-2,1.0999999999999999E-2,1.0999999999999999E-2,1.0999999999999999E-2]
["490",null,null,"11H","1",{"$f":"VLOOKUP(A303,ActiveFunds!$F$4:$H$106,3,0)","v":"490-Department of Natural Resources"},null,null,{"$f":"VLOOKUP(D303&\"-\"&E303,ActiveFunds!$J$4:$K$456,2,0)","v":"11H-1 Forest and Fish Support Account-State"},0,0,0,8.9999999999999993E-3,0,0,0,0]
["490",null,null,"190","6",{"$f":"VLOOKUP(A304,ActiveFunds!$F$4:$H$106,3,0)","v":"490-Department of Natural Resources"},null,null,{"$f":"VLOOKUP(D304&\"-\"&E304,ActiveFunds!$J$4:$K$456,2,0)","v":"190-6 Forest Fire Protection Assessment-Non-Appropriated"},0.10199999999999999,1.6E-2,0.10199999999999999,4.2999999999999997E-2,0.10199999999999999,0.10199999999999999,0.10199999999999999,0.10199999999999999]
["490",null,null,"193","6",{"$f":"VLOOKUP(A305,ActiveFunds!$F$4:$H$106,3,0)","v":"490-Department of Natural Resources"},null,null,{"$f":"VLOOKUP(D305&\"-\"&E305,ActiveFunds!$J$4:$K$456,2,0)","v":"193-6 State Forest Nursery Revolving Acct-Non-Appropriated"},1.6E-2,0,1.6E-2,0,1.6E-2,1.6E-2,1.6E-2,1.6E-2]
["490",null,null,"198","6",{"$f":"VLOOKUP(A306,ActiveFunds!$F$4:$H$106,3,0)","v":"490-Department of Natural Resources"},null,null,{"$f":"VLOOKUP(D306&\"-\"&E306,ActiveFunds!$J$4:$K$456,2,0)","v":"198-6 Access Road Revolving Account-Non-Appropriated"},8.5000000000000006E-2,1.6E-2,8.5000000000000006E-2,2.1999999999999999E-2,8.5000000000000006E-2,8.5000000000000006E-2,8.5000000000000006E-2,8.5000000000000006E-2]
["490",null,null,"19C","1",{"$f":"VLOOKUP(A307,ActiveFunds!$F$4:$H$106,3,0)","v":"490-Department of Natural Resources"},null,null,{"$f":"VLOOKUP(D307&\"-\"&E307,ActiveFunds!$J$4:$K$456,2,0)","v":"19C-1 Forest Practices Application Acct-State"},6.0000000000000001E-3,0,6.0000000000000001E-3,0,6.0000000000000001E-3,6.0000000000000001E-3,6.0000000000000001E-3,6.0000000000000001E-3]
["490",null,null,"830","1",{"$f":"VLOOKUP(A308,ActiveFunds!$F$4:$H$106,3,0)","v":"490-Department of Natural Resources"},null,null,{"$f":"VLOOKUP(D308&\"-\"&E308,ActiveFunds!$J$4:$K$456,2,0)","v":"830-1 Agricultural Coll Trust Mgmt Acct-State"},0.01,0,0.01,8.0000000000000002E-3,0.01,0.01,0.01,0.01]
["495",null,null,"001","1",{"$f":"VLOOKUP(A309,ActiveFunds!$F$4:$H$106,3,0)","v":"495-Department of Agriculture"},null,null,{"$f":"VLOOKUP(D309&\"-\"&E309,ActiveFunds!$J$4:$K$456,2,0)","v":"001-1 General Fund-State"},0.19,0.19,0.19,0.19,0.19,0.33999999999999997,0.19,0.19]
["495",null,null,"001","2",{"$f":"VLOOKUP(A310,ActiveFunds!$F$4:$H$106,3,0)","v":"495-Department of Agriculture"},null,null,{"$f":"VLOOKUP(D310&\"-\"&E310,ActiveFunds!$J$4:$K$456,2,0)","v":"001-2 General Fund-Federal"},0.15,0.15,0.15,0.15,0.15,0,0.15,0.15]
["495",null,null,"02R","1",{"$f":"VLOOKUP(A311,ActiveFunds!$F$4:$H$106,3,0)","v":"495-Department of Agriculture"},null,null,{"$f":"VLOOKUP(D311&\"-\"&E311,ActiveFunds!$J$4:$K$456,2,0)","v":"02R-1 Aquatic Lands Enhancement Account-State"},0.02,0.02,0.02,0.02,0.02,0.02,0.02,0.02]
["495",null,null,"108","1",{"$f":"VLOOKUP(A312,ActiveFunds!$F$4:$H$106,3,0)","v":"495-Department of Agriculture"},null,null,{"$f":"VLOOKUP(D312&\"-\"&E312,ActiveFunds!$J$4:$K$456,2,0)","v":"108-1 Motor Vehicle Account-State"},0.01,0.01,0.01,0.01,0.01,0.01,0.01,0.01]
["495",null,null,"126","6",{"$f":"VLOOKUP(A313,ActiveFunds!$F$4:$H$106,3,0)","v":"495-Department of Agriculture"},null,null,{"$f":"VLOOKUP(D313&\"-\"&E313,ActiveFunds!$J$4:$K$456,2,0)","v":"126-6 Agricultural Local Account-Non-Appropriated"},0.31,0.31,0.31,0.31,0.31,0.31,0.31,0.31]
["495",null,null,"128","6",{"$f":"VLOOKUP(A314,ActiveFunds!$F$4:$H$106,3,0)","v":"495-Department of Agriculture"},null,null,{"$f":"VLOOKUP(D314&\"-\"&E314,ActiveFunds!$J$4:$K$456,2,0)","v":"128-6 Grain Inspection Revolving Acct-Non-Appropriated"},0.12,0.12,0.12,0.12,0.12,0.12,0.12,0.12]
["495",null,null,"131","6",{"$f":"VLOOKUP(A315,ActiveFunds!$F$4:$H$106,3,0)","v":"495-Department of Agriculture"},null,null,{"$f":"VLOOKUP(D315&\"-\"&E315,ActiveFunds!$J$4:$K$456,2,0)","v":"131-6 Fair Account-Non-Appropriated"},0,0,0,0,0,0,0,0]
["495",null,null,"173","1",{"$f":"VLOOKUP(A316,ActiveFunds!$F$4:$H$106,3,0)","v":"495-Department of Agriculture"},null,null,{"$f":"VLOOKUP(D316&\"-\"&E316,ActiveFunds!$J$4:$K$456,2,0)","v":"173-1 State Toxics Control Account-State"},0.03,0.03,0.03,0.03,0.03,0.03,0.03,0.03]
["495",null,null,"176","1",{"$f":"VLOOKUP(A317,ActiveFunds!$F$4:$H$106,3,0)","v":"495-Department of Agriculture"},null,null,{"$f":"VLOOKUP(D317&\"-\"&E317,ActiveFunds!$J$4:$K$456,2,0)","v":"176-1 Water Quality Permit Account-State"},0,0,0,0,0,0,0,0]
["495",null,null,"516","6",{"$f":"VLOOKUP(A318,ActiveFunds!$F$4:$H$106,3,0)","v":"495-Department of Agriculture"},null,null,{"$f":"VLOOKUP(D318&\"-\"&E318,ActiveFunds!$J$4:$K$456,2,0)","v":"516-6 Fruit and Vegetable Inspection Acct-Non-Appropriated"},0.17,0.17,0.17,0.17,0.17,0.17,0.17,0.17]
["540",null,null,"001","2",{"$f":"VLOOKUP(A319,ActiveFunds!$F$4:$H$106,3,0)","v":"540-Employment Security Department"},null,null,{"$f":"VLOOKUP(D319&\"-\"&E319,ActiveFunds!$J$4:$K$456,2,0)","v":"001-2 General Fund-Federal"},5.9799999999999999E-2,5.9799999999999999E-2,5.9799999999999999E-2,5.9799999999999999E-2,5.9799999999999999E-2,0,0.04,5.9799999999999999E-2]
["540",null,null,"001","7",{"$f":"VLOOKUP(A320,ActiveFunds!$F$4:$H$106,3,0)","v":"540-Employment Security Department"},null,null,{"$f":"VLOOKUP(D320&\"-\"&E320,ActiveFunds!$J$4:$K$456,2,0)","v":"001-7 General Fund-Private/Local"},1.2500000000000001E-2,1.2500000000000001E-2,1.2500000000000001E-2,1.2500000000000001E-2,1.2500000000000001E-2,1.2500000000000001E-2,0.12,1.2500000000000001E-2]
["540",null,null,"119","2",{"$f":"VLOOKUP(A321,ActiveFunds!$F$4:$H$106,3,0)","v":"540-Employment Security Department"},null,null,{"$f":"VLOOKUP(D321&\"-\"&E321,ActiveFunds!$J$4:$K$456,2,0)","v":"119-2 Unemployment Compensation Admin-Federal"},0.69469999999999998,0.69469999999999998,0.69469999999999998,0.69469999999999998,0.69469999999999998,0,0.79,0.69469999999999998]
["540",null,null,"120","1",{"$f":"VLOOKUP(A322,ActiveFunds!$F$4:$H$106,3,0)","v":"540-Employment Security Department"},null,null,{"$f":"VLOOKUP(D322&\"-\"&E322,ActiveFunds!$J$4:$K$456,2,0)","v":"120-1 Administrative Contingency Account-State"},0.1118,0.1118,0.1118,0.1118,0.1118,0.48904999999999998,0.02,0.1118]
["540",null,null,"134","1",{"$f":"VLOOKUP(A323,ActiveFunds!$F$4:$H$106,3,0)","v":"540-Employment Security Department"},null,null,{"$f":"VLOOKUP(D323&\"-\"&E323,ActiveFunds!$J$4:$K$456,2,0)","v":"134-1 Employment Services Administrative-State"},0.1212,0.1212,0.1212,0.1212,0.1212,0.49845,0.03,0.1212]
["699","","","001","1","699-Community/Technical College System",null,null,"001-1 General Fund-State",0.65,0.65,0.65,0.65,0.65,0.65,0.65,0.65]
["699","","","149","6","699-Community/Technical College System",null,null,"149-6 Inst of Hi Ed-Operating Fees Acct-Non-Appropriated",0.35,0.35,0.35,0.35,0.35,0.35,0.35,0.35]

{"sheet":"ActiveFunds","index":3,"n_rows":879,"n_cols":27,"rows_kept":879,"cut":false,"hidden":true,"merged":[]}
[null,null,null,null,null,null,null,"001-2 General Fund-Federal",null,{"$f":"COUNTIF(AgencyFund,Agency)","v":3},null,null,"",{"$f":"IF(pgmcheck=1,OFFSET(AgencyProgram,MATCH((AgyCode),AgencyProgram,0)-1,4,COUNTIF(AgencyProgram,AgyCode)),PgmList)","v":{"$error":"#VALUE!"}},null,null,null,"IF(AgyChoice=1,FundList,OFFSET(AgencyFund,MATCH((Agency),AgencyFund,0)-1,1,COUNTIF(AgencyFund,Agency)))"]
[null,"AgencyFund Table",null,null,null,null,null,null,null,null,"Distinct Fund List",null,null,"Programcheck",null,{"$f":"IFERROR(INDEX($M$4:$M$67,MATCH(AgyCode,Table_clallam_Titles_Entity[Agency],0)),0)","v":0},null,{"$f":"IF(pgmcheck=1,OFFSET(AgencyProgram,MATCH((AgyCode),AgencyProgram,0)-1,4,COUNTIF(AgencyProgram,AgyCode)),OFFSET(pgmcheck,0,1))","v":0},{"$f":"IF(pgmcheck=1,OFFSET(AgencyProgram,MATCH((AgyCode),AgencyProgram,0)-1,4,COUNTIF(AgencyProgram,AgyCode)),PgmList)","v":{"$error":"#VALUE!"}},null,null,null,null,"IF(pgmcheck=1,OFFSET(AgencyProgram,MATCH((AgyCode),AgencyProgram,0)-1,4,COUNTIF(AgencyProgram,AgyCode)),$A$2)"]
[null,"Agency","Fund","Column1",null,null,null,"Agency",null,null,"Fund",null,null,"Agency","ProgramCode","BudgetType","SummFlag","ProgramTitle60","Program2"]
[null,"011-House of Representatives","001-1 General Fund-State",{"$f":"LEFT(Table_clallam_Oversight_ActiveFunds[[#This Row],[Fund]],5)","v":"001-1"},null,"All",1,"All Agencies",{"$f":"LEFT(H4,3)","v":"All"},{"$f":"MID(K4,1,5)","v":"001-1"},"001-1 General Fund-State",null,1,"107","HBE","O",false,"Health Care Auth-Health Benefit Exchange",{"$f":"Table_clallam_Titles_Entity[[#This Row],[ProgramCode]]&\"-\"&Table_clallam_Titles_Entity[[#This Row],[ProgramTitle60]]","v":"HBE-Health Care Auth-Health Benefit Exchange"},null,{"$f":"N4&O4","v":"107HBE"},{"$f":"O4&\"-\"&R4","v":"HBE-Health Care Auth-Health Benefit Exchange"},null,"Agency","Program","Subprogram","AgencyProgram"]
[null,"011-House of Representatives","108-1 Motor Vehicle Account-State",{"$f":"LEFT(Table_clallam_Oversight_ActiveFunds[[#This Row],[Fund]],5)","v":"108-1"},null,"011",2,"011-House of Representatives","011",{"$f":"MID(K5,1,5)","v":"001-2"},"001-2 General Fund-Federal",null,1,"107","OTH","O",false,"Health Care Auth-Other",{"$f":"Table_clallam_Titles_Entity[[#This Row],[ProgramCode]]&\"-\"&Table_clallam_Titles_Entity[[#This Row],[ProgramTitle60]]","v":"OTH-Health Care Auth-Other"},null,{"$f":"N5&O5","v":"107OTH"},{"$f":"O5&\"-\"&R5","v":"OTH-Health Care Auth-Other"},null,"300","030","1000-Community Services/RSN             ","300030"]
[null,"011-House of Representatives","442-6 Legislative Gift Center Account-Non-Appropriated",{"$f":"LEFT(Table_clallam_Oversight_ActiveFunds[[#This Row],[Fund]],5)","v":"442-6"},null,"012",3,"012-Senate","012","001-3","001-3 General Fund-Federal Unanticipated",null,1,"107","PEB","O",false,"Health Care Auth-Employee Benefits",{"$f":"Table_clallam_Titles_Entity[[#This Row],[ProgramCode]]&\"-\"&Table_clallam_Titles_Entity[[#This Row],[ProgramTitle60]]","v":"PEB-Health Care Auth-Employee Benefits"},null,"107PEB","PEB-Health Care Auth-Employee Benefits",null,"300","030","2000-State Facility Services            ","300030"]
[null,"012-Senate","001-1 General Fund-State",{"$f":"LEFT(Table_clallam_Oversight_ActiveFunds[[#This Row],[Fund]],5)","v":"001-1"},null,"013",4,"013-Joint Transportation Committee","013","001-7","001-7 General Fund-Private/Local",null,1,"300","010","O",false,"Children & Family Services",{"$f":"Table_clallam_Titles_Entity[[#This Row],[ProgramCode]]&\"-\"&Table_clallam_Titles_Entity[[#This Row],[ProgramTitle60]]","v":"010-Children & Family Services"},null,"300010","010-Children & Family Services",null,"300","030","8000-Special Projects                   ","300030"]
[null,"012-Senate","108-1 Motor Vehicle Account-State",{"$f":"LEFT(Table_clallam_Oversight_ActiveFunds[[#This Row],[Fund]],5)","v":"108-1"},null,"014",5,"014-Jt Leg Audit & Review Committee","014","001-8","001-8 General Fund-Federal ARRA",null,1,"300","020","O",false,"Juvenile Rehabilitation",{"$f":"Table_clallam_Titles_Entity[[#This Row],[ProgramCode]]&\"-\"&Table_clallam_Titles_Entity[[#This Row],[ProgramTitle60]]","v":"020-Juvenile Rehabilitation"},null,"300020","020-Juvenile Rehabilitation",null,"300","030","9000-Program Support                    ","300030"]
[null,"013-Joint Transportation Committee","108-1 Motor Vehicle Account-State",{"$f":"LEFT(Table_clallam_Oversight_ActiveFunds[[#This Row],[Fund]],5)","v":"108-1"},null,"020",6,"020-LEAP Committee","020","001-9","001-9 General Fund-Private/Local Unanticipated",null,1,"300","030","O",true,"Mental Health",{"$f":"Table_clallam_Titles_Entity[[#This Row],[ProgramCode]]&\"-\"&Table_clallam_Titles_Entity[[#This Row],[ProgramTitle60]]","v":"030-Mental Health"},null,"300030","030-Mental Health",null,"300","040","1000-Community Services                 ","300040"]
[null,"014-Jt Leg Audit & Review Committee","001-1 General Fund-State",{"$f":"LEFT(Table_clallam_Oversight_ActiveFunds[[#This Row],[Fund]],5)","v":"001-1"},null,"035",7,"035-Office of the State Actuary","035","002-1","002-1 Hospital Data Collection Account-State",null,1,"300","040","O",true,"Developmental Disabilities",{"$f":"Table_clallam_Titles_Entity[[#This Row],[ProgramCode]]&\"-\"&Table_clallam_Titles_Entity[[#This Row],[ProgramTitle60]]","v":"040-Developmental Disabilities"},null,"300040","040-Developmental Disabilities",null,"300","040","2000-Residential Habilitation Services  ","300040"]
[null,"014-Jt Leg Audit & Review Committee","553-1 Performance Audits of Govt Acct-State",{"$f":"LEFT(Table_clallam_Oversight_ActiveFunds[[#This Row],[Fund]],5)","v":"553-1"},null,"037",8,"037-Office of Legislative Support Svcs","037","003-1","003-1 Architects' License Account-State",null,1,"300","050","O",false,"Long-Term Care Services",{"$f":"Table_clallam_Titles_Entity[[#This Row],[ProgramCode]]&\"-\"&Table_clallam_Titles_Entity[[#This Row],[ProgramTitle60]]","v":"050-Long-Term Care Services"},null,"300050","050-Long-Term Care Services",null,"300","040","8000-Special Projects                   ","300040"]
[null,"020-LEAP Committee","108-1 Motor Vehicle Account-State",{"$f":"LEFT(Table_clallam_Oversight_ActiveFunds[[#This Row],[Fund]],5)","v":"108-1"},null,"038",9,"038-Joint Legislative Systems Comm","038","006-1","006-1 Public Records Effic/Presrv/Access-State",null,1,"300","060","O",false,"Economic Services Administration",{"$f":"Table_clallam_Titles_Entity[[#This Row],[ProgramCode]]&\"-\"&Table_clallam_Titles_Entity[[#This Row],[ProgramTitle60]]","v":"060-Economic Services Administration"},null,"300060","060-Economic Services Administration",null,"300","040","9000-Program Support                    ","300040"]
[null,"020-LEAP Committee","553-1 Performance Audits of Govt Acct-State",{"$f":"LEFT(Table_clallam_Oversight_ActiveFunds[[#This Row],[Fund]],5)","v":"553-1"},null,"040",10,"040-Statute Law Committee","040","007-1","007-1 Winter Recreation Program Account-State",null,1,"300","070","O",false,"Alcohol & Substance Abuse",{"$f":"Table_clallam_Titles_Entity[[#This Row],[ProgramCode]]&\"-\"&Table_clallam_Titles_Entity[[#This Row],[ProgramTitle60]]","v":"070-Alcohol & Substance Abuse"},null,"300070","070-Alcohol & Substance Abuse"]
[null,"035-Office of the State Actuary","001-1 General Fund-State",{"$f":"LEFT(Table_clallam_Oversight_ActiveFunds[[#This Row],[Fund]],5)","v":"001-1"},null,"045",11,"045-Supreme Court","045","014-1","014-1 Forest Development Account-State",null,1,"300","100","O",false,"Vocational Rehabilitation",{"$f":"Table_clallam_Titles_Entity[[#This Row],[ProgramCode]]&\"-\"&Table_clallam_Titles_Entity[[#This Row],[ProgramTitle60]]","v":"100-Vocational Rehabilitation"},null,"300100","100-Vocational Rehabilitation"]
[null,"035-Office of the State Actuary","418-1 St Health Care Authority Admin Acct-State",{"$f":"LEFT(Table_clallam_Oversight_ActiveFunds[[#This Row],[Fund]],5)","v":"418-1"},null,"046",12,"046-State Law Library","046","01B-1","01B-1 ORV & Non-Highway Vehicle Account-State",null,1,"300","110","O",false,"Administration & Supporting Services",{"$f":"Table_clallam_Titles_Entity[[#This Row],[ProgramCode]]&\"-\"&Table_clallam_Titles_Entity[[#This Row],[ProgramTitle60]]","v":"110-Administration & Supporting Services"},null,"300110","110-Administration & Supporting Services",null,"9000-Program Support                    "]
[null,"035-Office of the State Actuary","600-1 Dept of Retirement Systems Expense-State",{"$f":"LEFT(Table_clallam_Oversight_ActiveFunds[[#This Row],[Fund]],5)","v":"600-1"},null,"048",13,"048-Court of Appeals","048","01F-6","01F-6 Crime Victims Compensation Account-Non-Appropriated",null,1,"300","135","O",false,"Special Commitment Center",{"$f":"Table_clallam_Titles_Entity[[#This Row],[ProgramCode]]&\"-\"&Table_clallam_Titles_Entity[[#This Row],[ProgramTitle60]]","v":"135-Special Commitment Center"},null,"300135","135-Special Commitment Center",null,"2000-State Facility Services            "]
[null,"037-Office of Legislative Support Svcs","001-1 General Fund-State",{"$f":"LEFT(Table_clallam_Oversight_ActiveFunds[[#This Row],[Fund]],5)","v":"001-1"},null,"050",14,"050-Commission on Judicial Conduct","050","01M-1","01M-1 Snowmobile Account-State",null,1,"300","145","O",false,"Payments to Other Agencies",{"$f":"Table_clallam_Titles_Entity[[#This Row],[ProgramCode]]&\"-\"&Table_clallam_Titles_Entity[[#This Row],[ProgramTitle60]]","v":"145-Payments to Other Agencies"},null,"300145","145-Payments to Other Agencies",null,"1000-Community Services/RSN             "]
[null,"037-Office of Legislative Support Svcs","14N-6 Legislative Oral History Account-Non-Appropriated",{"$f":"LEFT(Table_clallam_Oversight_ActiveFunds[[#This Row],[Fund]],5)","v":"14N-6"},null,"055",15,"055-Administrative Office of the Courts","055","024-1","024-1 Professional Engineers' Account-State",null,1,"300","150","O",false,"Information System Services",{"$f":"Table_clallam_Titles_Entity[[#This Row],[ProgramCode]]&\"-\"&Table_clallam_Titles_Entity[[#This Row],[ProgramTitle60]]","v":"150-Information System Services"},null,"300150","150-Information System Services",null,"2000-State Facility Services            "]
[null,"037-Office of Legislative Support Svcs","442-6 Legislative Gift Center Account-Non-Appropriated",{"$f":"LEFT(Table_clallam_Oversight_ActiveFunds[[#This Row],[Fund]],5)","v":"442-6"},null,"056",16,"056-Office of Public Defense","056","025-6","025-6 Pilotage Account-Non-Appropriated",null,1,"300","160","O",false,"Consolidated Field Services",{"$f":"Table_clallam_Titles_Entity[[#This Row],[ProgramCode]]&\"-\"&Table_clallam_Titles_Entity[[#This Row],[ProgramTitle60]]","v":"160-Consolidated Field Services"},null,"300160","160-Consolidated Field Services",null,"9000-Program Support                    "]
[null,"038-Joint Legislative Systems Comm","001-1 General Fund-State",{"$f":"LEFT(Table_clallam_Oversight_ActiveFunds[[#This Row],[Fund]],5)","v":"001-1"},null,"057",17,"057-Office of Civil Legal Aid","057","026-1","026-1 Real Estate Commission Account-State",null,1,"305","010","O",false,"Headquarters",{"$f":"Table_clallam_Titles_Entity[[#This Row],[ProgramCode]]&\"-\"&Table_clallam_Titles_Entity[[#This Row],[ProgramTitle60]]","v":"010-Headquarters"},null,"305010","010-Headquarters"]
[null,"040-Statute Law Committee","001-1 General Fund-State",{"$f":"LEFT(Table_clallam_Oversight_ActiveFunds[[#This Row],[Fund]],5)","v":"001-1"},null,"075",18,"075-Office of the Governor","075","027-1","027-1 Reclamation Account-State",null,1,"305","020","O",false,"Field Services",{"$f":"Table_clallam_Titles_Entity[[#This Row],[ProgramCode]]&\"-\"&Table_clallam_Titles_Entity[[#This Row],[ProgramTitle60]]","v":"020-Field Services"},null,"305020","020-Field Services",null,null,null,{"$f":"IF(AND(LEFT(X5,3)=\"300\",LEFT(Y5,3)=\"030\"),$Z$5:$Z$8,IF(AND(LEFT(X5,3)=\"300\",LEFT(Y5,3)=\"040\"),$Z$9:$Z$12,\"\"))","v":{"$error":"#VALUE!"}}]
[null,"040-Statute Law Committee","03K-6 Industrial Insurance Premium Refund-Non-Appropriated",{"$f":"LEFT(Table_clallam_Oversight_ActiveFunds[[#This Row],[Fund]],5)","v":"03K-6"},null,"080",19,"080-Office of the Lieutenant Governor","080","02A-1","02A-1 Surveys and Maps Account-State",null,1,"305","035","O",false,"Institutional Services",{"$f":"Table_clallam_Titles_Entity[[#This Row],[ProgramCode]]&\"-\"&Table_clallam_Titles_Entity[[#This Row],[ProgramTitle60]]","v":"035-Institutional Services"},null,"305035","035-Institutional Services",null,null,null,{"$f":"IF(AND(LEFT(X6,3)=\"300\",LEFT(Y6,3)=\"030\"),$Z$5:$Z$8,IF(AND(LEFT(X6,3)=\"300\",LEFT(Y6,3)=\"040\"),$Z$9:$Z$12,\"\"))","v":{"$error":"#VALUE!"}}]
[null,"040-Statute Law Committee","197-6 Statute Law Committee Publications-Non-Appropriated",{"$f":"LEFT(Table_clallam_Oversight_ActiveFunds[[#This Row],[Fund]],5)","v":"197-6"},null,"082",20,"082-Public Disclosure Commission","082","02G-1","02G-1 Health Professions Account-State",null,1,"310","100","O",false,"Administration & Support Services",{"$f":"Table_clallam_Titles_Entity[[#This Row],[ProgramCode]]&\"-\"&Table_clallam_Titles_Entity[[#This Row],[ProgramTitle60]]","v":"100-Administration & Support Services"},null,"310100","100-Administration & Support Services",null,null,null,{"$error":"#VALUE!"}]
[null,"045-Supreme Court","001-1 General Fund-State",{"$f":"LEFT(Table_clallam_Oversight_ActiveFunds[[#This Row],[Fund]],5)","v":"001-1"},null,"085",21,"085-Office of the Secretary of State","085","02H-6","02H-6 Business Enterprises Revolving Acct-Non-Appropriated",null,1,"310","200","O",false,"Correctional Operations",{"$f":"Table_clallam_Titles_Entity[[#This Row],[ProgramCode]]&\"-\"&Table_clallam_Titles_Entity[[#This Row],[ProgramTitle60]]","v":"200-Correctional Operations"},null,"310200","200-Correctional Operations",null,null,null,{"$error":"#VALUE!"}]
[null,"046-State Law Library","001-1 General Fund-State",{"$f":"LEFT(Table_clallam_Oversight_ActiveFunds[[#This Row],[Fund]],5)","v":"001-1"},null,"086",22,"086-Governor's Office of Indian Affairs","086","02J-1","02J-1 Certified Public Accountants' Acct-State",null,1,"310","300","O",false,"Community Supervision",{"$f":"Table_clallam_Titles_Entity[[#This Row],[ProgramCode]]&\"-\"&Table_clallam_Titles_Entity[[#This Row],[ProgramTitle60]]","v":"300-Community Supervision"},null,"310300","300-Community Supervision",null,null,null,{"$error":"#VALUE!"}]
[null,"048-Court of Appeals","001-1 General Fund-State",{"$f":"LEFT(Table_clallam_Oversight_ActiveFunds[[#This Row],[Fund]],5)","v":"001-1"},null,"087",23,"087-Asian-Pacific-American Affrs","087","02K-1","02K-1 Death Investigations Account-State",null,1,"310","400","O",false,"Correctional Industries",{"$f":"Table_clallam_Titles_Entity[[#This Row],[ProgramCode]]&\"-\"&Table_clallam_Titles_Entity[[#This Row],[ProgramTitle60]]","v":"400-Correctional Industries"},null,"310400","400-Correctional Industries",null,null,null,{"$error":"#VALUE!"}]
[null,"050-Commission on Judicial Conduct","001-1 General Fund-State",{"$f":"LEFT(Table_clallam_Oversight_ActiveFunds[[#This Row],[Fund]],5)","v":"001-1"},null,"090",24,"090-Office of the State Treasurer","090","02P-1","02P-1 Flood Control Assistance Account-State",null,1,"310","600","O",false,"Interagency Payments",{"$f":"Table_clallam_Titles_Entity[[#This Row],[ProgramCode]]&\"-\"&Table_clallam_Titles_Entity[[#This Row],[ProgramTitle60]]","v":"600-Interagency Payments"},null,"310600","600-Interagency Payments",null,null,null,{"$error":"#VALUE!"}]
[null,"055-Administrative Office of the Courts","001-1 General Fund-State",{"$f":"LEFT(Table_clallam_Oversight_ActiveFunds[[#This Row],[Fund]],5)","v":"001-1"},null,"095",25,"095-Office of the State Auditor","095","02R-1","02R-1 Aquatic Lands Enhancement Account-State",null,1,"310","700","O",false,"Offender Change",{"$f":"Table_clallam_Titles_Entity[[#This Row],[ProgramCode]]&\"-\"&Table_clallam_Titles_Entity[[#This Row],[ProgramTitle60]]","v":"700-Offender Change"},null,"310700","700-Offender Change",null,null,null,{"$error":"#VALUE!"}]
[null,"055-Administrative Office of the Courts","001-2 General Fund-Federal",{"$f":"LEFT(Table_clallam_Oversight_ActiveFunds[[#This Row],[Fund]],5)","v":"001-2"},null,"099",26,"099-Comm Salaries for Elected Officials","099","02W-1","02W-1 Timber Tax Distribution Account-State",null,1,"340","PCA","O",false,"Policy Coordination & Administration",{"$f":"Table_clallam_Titles_Entity[[#This Row],[ProgramCode]]&\"-\"&Table_clallam_Titles_Entity[[#This Row],[ProgramTitle60]]","v":"PCA-Policy Coordination & Administration"},null,"340PCA","PCA-Policy Coordination & Administration",null,null,null,""]
[null,"055-Administrative Office of the Courts","001-7 General Fund-Private/Local",{"$f":"LEFT(Table_clallam_Oversight_ActiveFunds[[#This Row],[Fund]],5)","v":"001-7"},null,"100",27,"100-Office of the Attorney General","100","030-6","030-6 Landowner Contng Forest Fire Supp-Non-Appropriated",null,1,"340","SFA","O",false,"",{"$f":"Table_clallam_Titles_Entity[[#This Row],[ProgramCode]]&\"-\"&Table_clallam_Titles_Entity[[#This Row],[ProgramTitle60]]","v":"SFA-"},null,"340SFA","SFA-",null,null,null,""]
[null,"055-Administrative Office of the Courts","16A-1 Judicial Stabilization Trust Accoun-State",{"$f":"LEFT(Table_clallam_Oversight_ActiveFunds[[#This Row],[Fund]],5)","v":"16A-1"},null,"101",28,"101-Caseload Forecast Council","101","031-1","031-1 State Investment Board Expense Acct-State",null,1,"350","010","O",false,"OSPI & Statewide Programs",{"$f":"Table_clallam_Titles_Entity[[#This Row],[ProgramCode]]&\"-\"&Table_clallam_Titles_Entity[[#This Row],[ProgramTitle60]]","v":"010-OSPI & Statewide Programs"},null,"350010","010-OSPI & Statewide Programs"]
[null,"055-Administrative Office of the Courts","277-6 State Agency Parking Account-Non-Appropriated",{"$f":"LEFT(Table_clallam_Oversight_ActiveFunds[[#This Row],[Fund]],5)","v":"277-6"},null,"102",29,"102-Dept of Financial Institutions","102","039-1","039-1 Aeronautics Account-State",null,1,"350","021","O",false,"General Apportionment",{"$f":"Table_clallam_Titles_Entity[[#This Row],[ProgramCode]]&\"-\"&Table_clallam_Titles_Entity[[#This Row],[ProgramTitle60]]","v":"021-General Apportionment"},null,"350021","021-General Apportionment"]
[null,"055-Administrative Office of the Courts","543-1 Judicial Information Systems Acct-State",{"$f":"LEFT(Table_clallam_Oversight_ActiveFunds[[#This Row],[Fund]],5)","v":"543-1"},null,"103",30,"103-Department of Commerce","103","039-2","039-2 Aeronautics Account-Federal",null,1,"350","022","O",false,"Pupil Transportation",{"$f":"Table_clallam_Titles_Entity[[#This Row],[ProgramCode]]&\"-\"&Table_clallam_Titles_Entity[[#This Row],[ProgramTitle60]]","v":"022-Pupil Transportation"},null,"350022","022-Pupil Transportation"]
[null,"055-Administrative Office of the Courts","759-6 Miscellaneous Program Account-Non-Appropriated",{"$f":"LEFT(Table_clallam_Oversight_ActiveFunds[[#This Row],[Fund]],5)","v":"759-6"},null,"104",31,"104-Economic & Revenue Forecast Council","104","039-7","039-7 Aeronautics Account-Private/Local",null,1,"350","025","O",false,"School Food Services",{"$f":"Table_clallam_Titles_Entity[[#This Row],[ProgramCode]]&\"-\"&Table_clallam_Titles_Entity[[#This Row],[ProgramTitle60]]","v":"025-School Food Services"},null,"350025","025-School Food Services"]
[null,"056-Office of Public Defense","001-1 General Fund-State",{"$f":"LEFT(Table_clallam_Oversight_ActiveFunds[[#This Row],[Fund]],5)","v":"001-1"},null,"105",32,"105-Office of Financial Management","105","03B-1","03B-1 Asbestos Account-State",null,1,"350","026","O",false,"Special Education",{"$f":"Table_clallam_Titles_Entity[[#This Row],[ProgramCode]]&\"-\"&Table_clallam_Titles_Entity[[#This Row],[ProgramTitle60]]","v":"026-Special Education"},null,"350026","026-Special Education"]
[null,"056-Office of Public Defense","001-3 General Fund-Federal Unanticipated",{"$f":"LEFT(Table_clallam_Oversight_ActiveFunds[[#This Row],[Fund]],5)","v":"001-3"},null,"107",33,"107-WA State Health Care Authority",{"$f":"LEFT(H36,3)","v":"107"},"03C-1","03C-1 Emer Med Ser/Trauma Care Sys Trust-State",null,1,"350","028","O",false,"Educational Service Districts",{"$f":"Table_clallam_Titles_Entity[[#This Row],[ProgramCode]]&\"-\"&Table_clallam_Titles_Entity[[#This Row],[ProgramTitle60]]","v":"028-Educational Service Districts"},null,"350028","028-Educational Service Districts"]
[null,"056-Office of Public Defense","16A-1 Judicial Stabilization Trust Accoun-State",{"$f":"LEFT(Table_clallam_Oversight_ActiveFunds[[#This Row],[Fund]],5)","v":"16A-1"},null,"110",34,"110-Office of Administrative Hearings","110","03F-1","03F-1 Enhanced 911 Account-State",null,1,"350","029","O",false,"Levy Equalization",{"$f":"Table_clallam_Titles_Entity[[#This Row],[ProgramCode]]&\"-\"&Table_clallam_Titles_Entity[[#This Row],[ProgramTitle60]]","v":"029-Levy Equalization"},null,"350029","029-Levy Equalization"]
[null,"057-Office of Civil Legal Aid","001-1 General Fund-State",{"$f":"LEFT(Table_clallam_Oversight_ActiveFunds[[#This Row],[Fund]],5)","v":"001-1"},null,"116",35,"116-State Lottery Commission","116","03K-6","03K-6 Industrial Insurance Premium Refund-Non-Appropriated",null,1,"350","032","O",false,"Elementary & Secondary School Improvement",{"$f":"Table_clallam_Titles_Entity[[#This Row],[ProgramCode]]&\"-\"&Table_clallam_Titles_Entity[[#This Row],[ProgramTitle60]]","v":"032-Elementary & Secondary School Improvement"},null,"350032","032-Elementary & Secondary School Improvement"]
[null,"057-Office of Civil Legal Aid","001-7 General Fund-Private/Local",{"$f":"LEFT(Table_clallam_Oversight_ActiveFunds[[#This Row],[Fund]],5)","v":"001-7"},null,"117",36,"117-Washington State Gambling Comm","117","03L-1","03L-1 County Criminal Justice Assistance-State",null,1,"350","035","O",false,"Institutional Education",{"$f":"Table_clallam_Titles_Entity[[#This Row],[ProgramCode]]&\"-\"&Table_clallam_Titles_Entity[[#This Row],[ProgramTitle60]]","v":"035-Institutional Education"},null,"350035","035-Institutional Education"]
[null,"057-Office of Civil Legal Aid","16A-1 Judicial Stabilization Trust Accoun-State",{"$f":"LEFT(Table_clallam_Oversight_ActiveFunds[[#This Row],[Fund]],5)","v":"16A-1"},null,"118",37,"118-WA State Comm on Hispanic Affairs","118","03M-1","03M-1 Municipal Criminal Justice Assist-State",null,1,"350","045","O",false,"Education of Highly Capable Students",{"$f":"Table_clallam_Titles_Entity[[#This Row],[ProgramCode]]&\"-\"&Table_clallam_Titles_Entity[[#This Row],[ProgramTitle60]]","v":"045-Education of Highly Capable Students"},null,"350045","045-Education of Highly Capable Students"]
[null,"057-Office of Civil Legal Aid","17L-6 Foreclosure Fairness Account-Non-Appropriated",{"$f":"LEFT(Table_clallam_Oversight_ActiveFunds[[#This Row],[Fund]],5)","v":"17L-6"},null,"119",38,"119-African-American Affairs Comm","119","03N-1","03N-1 Business License Account-State",null,1,"350","055","O",false,"Education Reform",{"$f":"Table_clallam_Titles_Entity[[#This Row],[ProgramCode]]&\"-\"&Table_clallam_Titles_Entity[[#This Row],[ProgramTitle60]]","v":"055-Education Reform"},null,"350055","055-Education Reform"]
[null,"075-Office of the Governor","001-1 General Fund-State",{"$f":"LEFT(Table_clallam_Oversight_ActiveFunds[[#This Row],[Fund]],5)","v":"001-1"},null,"120",39,"120-Human Rights Commission","120","03P-1","03P-1 Fire Service Trust Account-State",null,1,"350","060","O",false,"Transitional Bilingual Instruction",{"$f":"Table_clallam_Titles_Entity[[#This Row],[ProgramCode]]&\"-\"&Table_clallam_Titles_Entity[[#This Row],[ProgramTitle60]]","v":"060-Transitional Bilingual Instruction"},null,"350060","060-Transitional Bilingual Instruction"]
[null,"075-Office of the Governor","03K-6 Industrial Insurance Premium Refund-Non-Appropriated",{"$f":"LEFT(Table_clallam_Oversight_ActiveFunds[[#This Row],[Fund]],5)","v":"03K-6"},null,"124",40,"124-Department of Retirement Systems","124","03R-1","03R-1 Safe Drinking Water Account-State",null,1,"350","061","O",false,"Learning Assistance Program (LAP)",{"$f":"Table_clallam_Titles_Entity[[#This Row],[ProgramCode]]&\"-\"&Table_clallam_Titles_Entity[[#This Row],[ProgramTitle60]]","v":"061-Learning Assistance Program (LAP)"},null,"350061","061-Learning Assistance Program (LAP)"]
[null,"075-Office of the Governor","09R-1 Econ Dev Strategic Reserve Account-State",{"$f":"LEFT(Table_clallam_Oversight_ActiveFunds[[#This Row],[Fund]],5)","v":"09R-1"},null,"126",41,"126-State Investment Board","126","041-1","041-1 Resources Management Cost Account-State",null,1,"350","068","O",false,"Public School Apportionment",{"$f":"Table_clallam_Titles_Entity[[#This Row],[ProgramCode]]&\"-\"&Table_clallam_Titles_Entity[[#This Row],[ProgramTitle60]]","v":"068-Public School Apportionment"},null,"350068","068-Public School Apportionment"]
[null,"080-Office of the Lieutenant Governor","001-1 General Fund-State",{"$f":"LEFT(Table_clallam_Oversight_ActiveFunds[[#This Row],[Fund]],5)","v":"001-1"},null,"140",42,"140-Department of Revenue","140","042-1","042-1 Char/Ed/Penal/Reform/Institutions-State",null,1,"350","714","O",false,"Compensation Adjustments",{"$f":"Table_clallam_Titles_Entity[[#This Row],[ProgramCode]]&\"-\"&Table_clallam_Titles_Entity[[#This Row],[ProgramTitle60]]","v":"714-Compensation Adjustments"},null,"350714","714-Compensation Adjustments"]
[null,"080-Office of the Lieutenant Governor","001-7 General Fund-Private/Local",{"$f":"LEFT(Table_clallam_Oversight_ActiveFunds[[#This Row],[Fund]],5)","v":"001-7"},null,"142",43,"142-Board of Tax Appeals","142","044-1","044-1 Waste Reduct/Recycle/Litter Control-State",null,1,"405","B00","T",false,"Program B - Toll Operations & Maintenance",{"$f":"Table_clallam_Titles_Entity[[#This Row],[ProgramCode]]&\"-\"&Table_clallam_Titles_Entity[[#This Row],[ProgramTitle60]]","v":"B00-Program B - Toll Operations & Maintenance"},null,"405B00","B00-Program B - Toll Operations & Maintenance"]
[null,"080-Office of the Lieutenant Governor","03K-6 Industrial Insurance Premium Refund-Non-Appropriated",{"$f":"LEFT(Table_clallam_Oversight_ActiveFunds[[#This Row],[Fund]],5)","v":"03K-6"},null,"147",44,"147-Minority & Women's Business Enterp","147","045-1","045-1 State Vehicle Parking Account-State",null,1,"405","C00","T",false,"Program C - Information Technology",{"$f":"Table_clallam_Titles_Entity[[#This Row],[ProgramCode]]&\"-\"&Table_clallam_Titles_Entity[[#This Row],[ProgramTitle60]]","v":"C00-Program C - Information Technology"},null,"405C00","C00-Program C - Information Technology"]
[null,"080-Office of the Lieutenant Governor","07L-6 Legislative International Trade-Non-Appropriated",{"$f":"LEFT(Table_clallam_Oversight_ActiveFunds[[#This Row],[Fund]],5)","v":"07L-6"},null,"160",45,"160-Office of Insurance Commissioner","160","045-6","045-6 State Vehicle Parking Account-Non-Appropriated",null,1,"405","D00","T",false,"Program D - Facilities - Operating",{"$f":"Table_clallam_Titles_Entity[[#This Row],[ProgramCode]]&\"-\"&Table_clallam_Titles_Entity[[#This Row],[ProgramTitle60]]","v":"D00-Program D - Facilities - Operating"},null,"405D00","D00-Program D - Facilities - Operating"]
[null,"082-Public Disclosure Commission","001-1 General Fund-State",{"$f":"LEFT(Table_clallam_Oversight_ActiveFunds[[#This Row],[Fund]],5)","v":"001-1"},null,"163",46,"163-Consolidated Technology Services","163","048-1","048-1 Marine Fuel Tax Refund Account-State",null,1,"405","E00","T",false,"Program E - Transportation Equipment Fund",{"$f":"Table_clallam_Titles_Entity[[#This Row],[ProgramCode]]&\"-\"&Table_clallam_Titles_Entity[[#This Row],[ProgramTitle60]]","v":"E00-Program E - Transportation Equipment Fund"},null,"405E00","E00-Program E - Transportation Equipment Fund"]
[null,"082-Public Disclosure Commission","03K-6 Industrial Insurance Premium Refund-Non-Appropriated",{"$f":"LEFT(Table_clallam_Oversight_ActiveFunds[[#This Row],[Fund]],5)","v":"03K-6"},null,"165",47,"165-State Board of Accountancy","165","04E-1","04E-1 Uniform Commercial Code Account-State",null,1,"405","F00","T",false,"Program F - Aviation",{"$f":"Table_clallam_Titles_Entity[[#This Row],[ProgramCode]]&\"-\"&Table_clallam_Titles_Entity[[#This Row],[ProgramTitle60]]","v":"F00-Program F - Aviation"},null,"405F00","F00-Program F - Aviation"]
[null,"082-Public Disclosure Commission","447-6 Info Tech Invest Rev Acct-Non-Appropriated",{"$f":"LEFT(Table_clallam_Oversight_ActiveFunds[[#This Row],[Fund]],5)","v":"447-6"},null,"167",48,"167-Forensic Investigations Council","167","04F-1","04F-1 Real Estate Education Program Acct-State",null,1,"405","G00","T",false,"Program G - Local Climate Initiatives",{"$f":"Table_clallam_Titles_Entity[[#This Row],[ProgramCode]]&\"-\"&Table_clallam_Titles_Entity[[#This Row],[ProgramTitle60]]","v":"G00-Program G - Local Climate Initiatives"},null,"405G00","G00-Program G - Local Climate Initiatives"]
[null,"085-Office of the Secretary of State","001-1 General Fund-State",{"$f":"LEFT(Table_clallam_Oversight_ActiveFunds[[#This Row],[Fund]],5)","v":"001-1"},null,"179",49,"179-Dept of Enterprise Services","179","04H-1","04H-1 Surface Mining Reclamation Account-State",null,1,"405","H00","T",false,"Program H - Program Delivery Management & Support",{"$f":"Table_clallam_Titles_Entity[[#This Row],[ProgramCode]]&\"-\"&Table_clallam_Titles_Entity[[#This Row],[ProgramTitle60]]","v":"H00-Program H - Program Delivery Management & Support"},null,"405H00","H00-Program H - Program Delivery Management & Support"]
[null,"085-Office of the Secretary of State","001-2 General Fund-Federal",{"$f":"LEFT(Table_clallam_Oversight_ActiveFunds[[#This Row],[Fund]],5)","v":"001-2"},null,"185",50,"185-Washington Horse Racing Commission","185","04M-1","04M-1 Recreational Fisheries Enhancement-State",null,1,"405","I","T",true,"Program I - Highway Construction/Improvements",{"$f":"Table_clallam_Titles_Entity[[#This Row],[ProgramCode]]&\"-\"&Table_clallam_Titles_Entity[[#This Row],[ProgramTitle60]]","v":"I-Program I - Highway Construction/Improvements"},null,"405I","I-Program I - Highway Construction/Improvements"]
[null,"085-Office of the Secretary of State","001-3 General Fund-Federal Unanticipated",{"$f":"LEFT(Table_clallam_Oversight_ActiveFunds[[#This Row],[Fund]],5)","v":"001-3"},null,"190",51,"190-Bd of Industrial Insurance Appeals","190","04R-1","04R-1 Drinking Water Assistance Account-State",null,1,"405","K00","T",false,"Program K - Public/Private Partnerships",{"$f":"Table_clallam_Titles_Entity[[#This Row],[ProgramCode]]&\"-\"&Table_clallam_Titles_Entity[[#This Row],[ProgramTitle60]]","v":"K00-Program K - Public/Private Partnerships"},null,"405K00","K00-Program K - Public/Private Partnerships"]
[null,"085-Office of the Secretary of State","001-9 General Fund-Private/Local Unanticipated",{"$f":"LEFT(Table_clallam_Oversight_ActiveFunds[[#This Row],[Fund]],5)","v":"001-9"},null,"195",52,"195-Liquor and Cannabis Board","195","04R-2","04R-2 Drinking Water Assistance Account-Federal",null,1,"405","M00","T",false,"Program M - Highway Maintenance",{"$f":"Table_clallam_Titles_Entity[[#This Row],[ProgramCode]]&\"-\"&Table_clallam_Titles_Entity[[#This Row],[ProgramTitle60]]","v":"M00-Program M - Highway Maintenance"},null,"405M00","M00-Program M - Highway Maintenance"]
[null,"085-Office of the Secretary of State","006-1 Public Records Effic/Presrv/Access-State",{"$f":"LEFT(Table_clallam_Oversight_ActiveFunds[[#This Row],[Fund]],5)","v":"006-1"},null,"205",53,"205-Board of Pilotage Commissioners","205","04V-1","04V-1 Vehicle License Fraud Account-State",null,1,"405","P","T",true,"Program P - Highway Construction/Preservation",{"$f":"Table_clallam_Titles_Entity[[#This Row],[ProgramCode]]&\"-\"&Table_clallam_Titles_Entity[[#This Row],[ProgramTitle60]]","v":"P-Program P - Highway Construction/Preservation"},null,"405P","P-Program P - Highway Construction/Preservation"]
[null,"085-Office of the Secretary of State","06H-6 WA State Legacy Project Account-Non-Appropriated",{"$f":"LEFT(Table_clallam_Oversight_ActiveFunds[[#This Row],[Fund]],5)","v":"06H-6"},null,"215",54,"215-Utilities and Transportation Comm","215","04W-1","04W-1 Waterworks Operator Certification-State",null,1,"405","Q00","T",false,"Program Q - Traffic Operations",{"$f":"Table_clallam_Titles_Entity[[#This Row],[ProgramCode]]&\"-\"&Table_clallam_Titles_Entity[[#This Row],[ProgramTitle60]]","v":"Q00-Program Q - Traffic Operations"},null,"405Q00","Q00-Program Q - Traffic Operations"]
[null,"085-Office of the Secretary of State","12M-1 Charitable Organization Ed Acct-State",{"$f":"LEFT(Table_clallam_Oversight_ActiveFunds[[#This Row],[Fund]],5)","v":"12M-1"},null,"220",55,"220-Board for Volunteer Firefighters","220","058-1","058-1 Public Works Assistance Account-State",null,1,"405","S00","T",false,"Program S - Transportation Management - Operating",{"$f":"Table_clallam_Titles_Entity[[#This Row],[ProgramCode]]&\"-\"&Table_clallam_Titles_Entity[[#This Row],[ProgramTitle60]]","v":"S00-Program S - Transportation Management - Operating"},null,"405S00","S00-Program S - Transportation Management - Operating"]
[null,"085-Office of the Secretary of State","14E-1 WA State Heritage Center Account-State",{"$f":"LEFT(Table_clallam_Oversight_ActiveFunds[[#This Row],[Fund]],5)","v":"14E-1"},null,"225",56,"225-Washington State Patrol","225","05C-1","05C-1 Criminal Justice Treatment Account-State",null,1,"405","T00","T",false,"Program T - Transportation Planning, Data and Research - Op",{"$f":"Table_clallam_Titles_Entity[[#This Row],[ProgramCode]]&\"-\"&Table_clallam_Titles_Entity[[#This Row],[ProgramTitle60]]","v":"T00-Program T - Transportation Planning, Data and Research - Op"},null,"405T00","T00-Program T - Transportation Planning, Data and Research - Op"]
[null,"085-Office of the Secretary of State","16F-6 Washington State Flag Account-Non-Appropriated",{"$f":"LEFT(Table_clallam_Oversight_ActiveFunds[[#This Row],[Fund]],5)","v":"16F-6"},null,"227",57,"227-Criminal Justice Training Comm","227","05H-1","05H-1 Disaster Response Account-State",null,1,"405","U00","T",false,"Program U - Charges from Other Agencies",{"$f":"Table_clallam_Titles_Entity[[#This Row],[ProgramCode]]&\"-\"&Table_clallam_Titles_Entity[[#This Row],[ProgramTitle60]]","v":"U00-Program U - Charges from Other Agencies"},null,"405U00","U00-Program U - Charges from Other Agencies"]
[null,"085-Office of the Secretary of State","407-6 Secretary of State's Revolving Acct-Non-Appropriated",{"$f":"LEFT(Table_clallam_Oversight_ActiveFunds[[#This Row],[Fund]],5)","v":"407-6"},null,"228",58,"228-WA Traffic Safety Commission","228","05H-2","05H-2 Disaster Response Account-Federal",null,1,"405","V00","T",false,"Program V - Public Transportation",{"$f":"Table_clallam_Titles_Entity[[#This Row],[ProgramCode]]&\"-\"&Table_clallam_Titles_Entity[[#This Row],[ProgramTitle60]]","v":"V00-Program V - Public Transportation"},null,"405V00","V00-Program V - Public Transportation"]
[null,"085-Office of the Secretary of State","441-1 Local Government Archives Account-State",{"$f":"LEFT(Table_clallam_Oversight_ActiveFunds[[#This Row],[Fund]],5)","v":"441-1"},null,"235",59,"235-Department of Labor and Industries","235","05R-1","05R-1 Drinking Water Assist Admin Acct-State",null,1,"405","X00","T",false,"Program X - Washington State Ferries - Operating",{"$f":"Table_clallam_Titles_Entity[[#This Row],[ProgramCode]]&\"-\"&Table_clallam_Titles_Entity[[#This Row],[ProgramTitle60]]","v":"X00-Program X - Washington State Ferries - Operating"},null,"405X00","X00-Program X - Washington State Ferries - Operating"]
[null,"085-Office of the Secretary of State","470-6 Imaging Account-Non-Appropriated",{"$f":"LEFT(Table_clallam_Oversight_ActiveFunds[[#This Row],[Fund]],5)","v":"470-6"},null,"240",60,"240-Department of Licensing","240","05W-1","05W-1 State Drought Preparedness-State",null,1,"405","Y00","T",false,"Program Y - Rail - Operating",{"$f":"Table_clallam_Titles_Entity[[#This Row],[ProgramCode]]&\"-\"&Table_clallam_Titles_Entity[[#This Row],[ProgramTitle60]]","v":"Y00-Program Y - Rail - Operating"},null,"405Y00","Y00-Program Y - Rail - Operating"]
[null,"085-Office of the Secretary of State","549-2 Election Account-Federal",{"$f":"LEFT(Table_clallam_Oversight_ActiveFunds[[#This Row],[Fund]],5)","v":"549-2"},null,"245",61,"245-Military Department","245","060-1","060-1 Comm/Tech Col Capital Projects Acct-State",null,1,"405","Z00","T",false,"Program Z - Local Programs - Operating",{"$f":"Table_clallam_Titles_Entity[[#This Row],[ProgramCode]]&\"-\"&Table_clallam_Titles_Entity[[#This Row],[ProgramTitle60]]","v":"Z00-Program Z - Local Programs - Operating"},null,"405Z00","Z00-Program Z - Local Programs - Operating"]
[null,"086-Governor's Office of Indian Affairs","001-1 General Fund-State",{"$f":"LEFT(Table_clallam_Oversight_ActiveFunds[[#This Row],[Fund]],5)","v":"001-1"},null,"275",62,"275-Public Employment Relations Comm","275","06G-1","06G-1 Real Estate Appraiser Comm Acct-State",null,1,"406","010","T",false,"Operating",{"$f":"Table_clallam_Titles_Entity[[#This Row],[ProgramCode]]&\"-\"&Table_clallam_Titles_Entity[[#This Row],[ProgramTitle60]]","v":"010-Operating"},null,"406010","010-Operating"]
[null,"087-Asian-Pacific-American Affrs","001-1 General Fund-State",{"$f":"LEFT(Table_clallam_Oversight_ActiveFunds[[#This Row],[Fund]],5)","v":"001-1"},null,"300",63,"300-Dept of Social and Health Services","300","06H-6","06H-6 WA State Legacy Project Account-Non-Appropriated",null,1,"407","010","T",false,"Operating",{"$f":"Table_clallam_Titles_Entity[[#This Row],[ProgramCode]]&\"-\"&Table_clallam_Titles_Entity[[#This Row],[ProgramTitle60]]","v":"010-Operating"},null,"407010","010-Operating"]
[null,"090-Office of the State Treasurer","001-1 General Fund-State",{"$f":"LEFT(Table_clallam_Oversight_ActiveFunds[[#This Row],[Fund]],5)","v":"001-1"},null,"303",64,"303-Department of Health","303","06J-6","06J-6 Securities Prosecution Account-Non-Appropriated",null,1,"411","010","T",false,"",{"$f":"Table_clallam_Titles_Entity[[#This Row],[ProgramCode]]&\"-\"&Table_clallam_Titles_Entity[[#This Row],[ProgramTitle60]]","v":"010-"},null,"411010","010-"]
[null,"090-Office of the State Treasurer","404-1 State Treasurer's Service Account-State",{"$f":"LEFT(Table_clallam_Oversight_ActiveFunds[[#This Row],[Fund]],5)","v":"404-1"},null,"305",65,"305-Department of Veterans' Affairs",{"$f":"LEFT(H68,3)","v":"305"},"06K-1","06K-1 Lead Paint Account-State"]
[null,"090-Office of the State Treasurer","523-6 Public Funds Investment Account-Non-Appropriated",{"$f":"LEFT(Table_clallam_Oversight_ActiveFunds[[#This Row],[Fund]],5)","v":"523-6"},null,"310",66,"310-Department of Corrections","310",{"$f":"MID(K69,1,5)","v":"06L-1"},"06L-1 Business & Professions Account-State"]
[null,"095-Office of the State Auditor","001-1 General Fund-State",{"$f":"LEFT(Table_clallam_Oversight_ActiveFunds[[#This Row],[Fund]],5)","v":"001-1"},null,"315",67,"315-Dept of Services for the Blind","315","06R-1","06R-1 Real Estate Research Account-State"]
[null,"095-Office of the State Auditor","413-6 Municipal Revolving Account-Non-Appropriated",{"$f":"LEFT(Table_clallam_Oversight_ActiveFunds[[#This Row],[Fund]],5)","v":"413-6"},null,"340",68,"340-Student Achievement Council","340","06T-1","06T-1 License Plate Technology Account-State"]
[null,"095-Office of the State Auditor","483-1 Auditing Services Revolving Acct-State",{"$f":"LEFT(Table_clallam_Oversight_ActiveFunds[[#This Row],[Fund]],5)","v":"483-1"},null,"341",69,"341-LEOFF 2 Retirement Board","341","071-1","071-1 Warm Water Game Fish Account-State"]
[null,"095-Office of the State Auditor","553-1 Performance Audits of Govt Acct-State",{"$f":"LEFT(Table_clallam_Oversight_ActiveFunds[[#This Row],[Fund]],5)","v":"553-1"},null,"350",70,"350-Public Schools","350","072-1","072-1 St/Loc Impr Rev Acct Water Sup Fac-State"]
[null,"095-Office of the State Auditor","553-6 Performance Audits of Govt Acct-Non-Appropriated",{"$f":"LEFT(Table_clallam_Oversight_ActiveFunds[[#This Row],[Fund]],5)","v":"553-6"},null,"351",71,"351-State School for the Blind","351","07A-6","07A-6 Mortgage Lending Fraud Pros Account-Non-Appropriated"]
[null,"099-Comm Salaries for Elected Officials","001-1 General Fund-State",{"$f":"LEFT(Table_clallam_Oversight_ActiveFunds[[#This Row],[Fund]],5)","v":"001-1"},null,"353",72,"353-Childhood Deafness & Hearing Loss","353","07E-6","07E-6 Contract Harvesting Revolving Acct-Non-Appropriated"]
[null,"099-Comm Salaries for Elected Officials","03K-6 Industrial Insurance Premium Refund-Non-Appropriated",{"$f":"LEFT(Table_clallam_Oversight_ActiveFunds[[#This Row],[Fund]],5)","v":"03K-6"},null,"354",73,"354-Workforce Trng & Educ Coord Board","354","07L-6","07L-6 Legislative International Trade-Non-Appropriated"]
[null,"100-Office of the Attorney General","001-1 General Fund-State",{"$f":"LEFT(Table_clallam_Oversight_ActiveFunds[[#This Row],[Fund]],5)","v":"001-1"},null,"355",74,"355-Archaeology & Historic Preservation","355","07V-6","07V-6 Fish & Wildlife Enforcement Reward-Non-Appropriated"]
[null,"100-Office of the Attorney General","001-2 General Fund-Federal",{"$f":"LEFT(Table_clallam_Oversight_ActiveFunds[[#This Row],[Fund]],5)","v":"001-2"},null,"357",75,"357-Department of Early Learning","357","07W-1","07W-1 Domestic Violence Prevention Acct-State"]
[null,"100-Office of the Attorney General","111-1 Public Service Revolving Account-State",{"$f":"LEFT(Table_clallam_Oversight_ActiveFunds[[#This Row],[Fund]],5)","v":"111-1"},null,"359",76,"359-Washington Charter School Comm","359","080-1","080-1 Grade Crossing Protective Account-State"]
[null,"100-Office of the Attorney General","12F-6 Manufactured/Mobile Home Dispute-Non-Appropriated",{"$f":"LEFT(Table_clallam_Oversight_ActiveFunds[[#This Row],[Fund]],5)","v":"12F-6"},null,"360",77,"360-University of Washington","360","081-1","081-1 State Patrol Highway Account-State"]
[null,"100-Office of the Attorney General","154-1 New Motor Vehicle Arbitration Acct-State",{"$f":"LEFT(Table_clallam_Oversight_ActiveFunds[[#This Row],[Fund]],5)","v":"154-1"},null,"365",78,"365-Washington State University","365","081-2","081-2 State Patrol Highway Account-Federal"]
[null,"100-Office of the Attorney General","17L-6 Foreclosure Fairness Account-Non-Appropriated",{"$f":"LEFT(Table_clallam_Oversight_ActiveFunds[[#This Row],[Fund]],5)","v":"17L-6"},null,"370",79,"370-Eastern Washington University","370","081-7","081-7 State Patrol Highway Account-Private/Local"]
[null,"100-Office of the Attorney General","19A-1 Medicaid Fraud Penalty Account-State",{"$f":"LEFT(Table_clallam_Oversight_ActiveFunds[[#This Row],[Fund]],5)","v":"19A-1"},null,"375",80,"375-Central Washington University","375","082-1","082-1 Motorcycle Safety Education Account-State"]
[null,"100-Office of the Attorney General","19P-1 Child Rescue Fund-State",{"$f":"LEFT(Table_clallam_Oversight_ActiveFunds[[#This Row],[Fund]],5)","v":"19P-1"},null,"376",81,"376-The Evergreen State College","376","084-1","084-1 Building Code Council Account-State"]
[null,"100-Office of the Attorney General","405-1 Legal Services Revolving Account-State",{"$f":"LEFT(Table_clallam_Oversight_ActiveFunds[[#This Row],[Fund]],5)","v":"405-1"},null,"380",82,"380-Western Washington University","380","086-1","086-1 Fire Service Training Account-State"]
[null,"100-Office of the Attorney General","424-6 Anti-Trust Revolving Account-Non-Appropriated",{"$f":"LEFT(Table_clallam_Oversight_ActiveFunds[[#This Row],[Fund]],5)","v":"424-6"},null,"387",83,"387-Washington State Arts Commission","387","087-6","087-6 Park Land Trust Revolving Account-Non-Appropriated"]
[null,"100-Office of the Attorney General","759-6 Miscellaneous Program Account-Non-Appropriated",{"$f":"LEFT(Table_clallam_Oversight_ActiveFunds[[#This Row],[Fund]],5)","v":"759-6"},null,"390",84,"390-Washington State Historical Society","390","08A-1","08A-1 Education Legacy Trust Account-State"]
[null,"100-Office of the Attorney General","828-1 Tobacco Prevention and Control Acct-State",{"$f":"LEFT(Table_clallam_Oversight_ActiveFunds[[#This Row],[Fund]],5)","v":"828-1"},null,"395",85,"395-East Wash State Historical Society","395","08E-6","08E-6 Individual Development Account Prog-Non-Appropriated"]
[null,"101-Caseload Forecast Council","001-1 General Fund-State",{"$f":"LEFT(Table_clallam_Oversight_ActiveFunds[[#This Row],[Fund]],5)","v":"001-1"},null,"405",86,"405-Department of Transportation","405","08G-6","08G-6 Flexible Spending Admin Acct-Non-Appropriated"]
[null,"102-Dept of Financial Institutions","06J-6 Securities Prosecution Account-Non-Appropriated",{"$f":"LEFT(Table_clallam_Oversight_ActiveFunds[[#This Row],[Fund]],5)","v":"06J-6"},null,"406",87,"406-County Road Administration Board","406","08H-1","08H-1 Military Department Rent and Lease-State"]
[null,"102-Dept of Financial Institutions","07A-6 Mortgage Lending Fraud Pros Account-Non-Appropriated",{"$f":"LEFT(Table_clallam_Oversight_ActiveFunds[[#This Row],[Fund]],5)","v":"07A-6"},null,"407",88,"407-Transportation Improvement Board","407","08J-6","08J-6 Prescription Drug Consortium Acct-Non-Appropriated"]
[null,"102-Dept of Financial Institutions","17L-6 Foreclosure Fairness Account-Non-Appropriated",{"$f":"LEFT(Table_clallam_Oversight_ActiveFunds[[#This Row],[Fund]],5)","v":"17L-6"},null,"410",89,"410-Transportation Commission","410","08K-1","08K-1 Problem Gambling Account-State"]
[null,"102-Dept of Financial Institutions","300-6 Financial Services Regulation Acct-Non-Appropriated",{"$f":"LEFT(Table_clallam_Oversight_ActiveFunds[[#This Row],[Fund]],5)","v":"300-6"},null,"411",90,"411-Freight Mobility Strategic Invest","411","08N-6","08N-6 State Financial Aid Account-Non-Appropriated"]
[null,"103-Department of Commerce","001-1 General Fund-State",{"$f":"LEFT(Table_clallam_Oversight_ActiveFunds[[#This Row],[Fund]],5)","v":"001-1"},null,"460",91,"460-Columbia River Gorge Commission","460","08P-6","08P-6 State Parks Education & Enhancement-Non-Appropriated"]
[null,"103-Department of Commerce","001-2 General Fund-Federal",{"$f":"LEFT(Table_clallam_Oversight_ActiveFunds[[#This Row],[Fund]],5)","v":"001-2"},null,"461",92,"461-Department of Ecology","461","08V-6","08V-6 Veterans Stewardship Account-Non-Appropriated"]
[null,"103-Department of Commerce","001-3 General Fund-Federal Unanticipated",{"$f":"LEFT(Table_clallam_Oversight_ActiveFunds[[#This Row],[Fund]],5)","v":"001-3"},null,"462",93,"462-WA Pollution Liab Insurance Program","462","095-1","095-1 Electrical License Account-State"]
[null,"103-Department of Commerce","001-7 General Fund-Private/Local",{"$f":"LEFT(Table_clallam_Oversight_ActiveFunds[[#This Row],[Fund]],5)","v":"001-7"},null,"465",94,"465-State Parks and Recreation Comm","465","098-1","098-1 East WA Pheasant Enhancement Acct-State"]
[null,"103-Department of Commerce","03K-6 Industrial Insurance Premium Refund-Non-Appropriated",{"$f":"LEFT(Table_clallam_Oversight_ActiveFunds[[#This Row],[Fund]],5)","v":"03K-6"},null,"467",95,"467-Rec and Conservation Funding Board","467","09B-6","09B-6 Boating Safety Edu Cert Account-Non-Appropriated"]
[null,"103-Department of Commerce","04R-1 Drinking Water Assistance Account-State",{"$f":"LEFT(Table_clallam_Oversight_ActiveFunds[[#This Row],[Fund]],5)","v":"04R-1"},null,"468",96,"468-Environ & Land Use Hearings Office","468","09F-1","09F-1 High-Occupancy Toll Lanes Op Acct-State"]
[null,"103-Department of Commerce","058-1 Public Works Assistance Account-State",{"$f":"LEFT(Table_clallam_Oversight_ActiveFunds[[#This Row],[Fund]],5)","v":"058-1"},null,"471",97,"471-State Conservation Commission",{"$f":"LEFT(H100,3)","v":"471"},"09H-1","09H-1 Transportation Partnership Account-State"]
[null,"103-Department of Commerce","05R-1 Drinking Water Assist Admin Acct-State",{"$f":"LEFT(Table_clallam_Oversight_ActiveFunds[[#This Row],[Fund]],5)","v":"05R-1"},null,"477",98,"477-Dept of Fish and Wildlife","477","09J-6","09J-6 WA Coast Crab Pot Buoy Tag Account-Non-Appropriated"]
[null,"103-Department of Commerce","06K-1 Lead Paint Account-State",{"$f":"LEFT(Table_clallam_Oversight_ActiveFunds[[#This Row],[Fund]],5)","v":"06K-1"},null,"478",99,"478-Puget Sound Partnership","478","09L-6","09L-6 Nursing Resource Center Account-Non-Appropriated"]
[null,"103-Department of Commerce","084-1 Building Code Council Account-State",{"$f":"LEFT(Table_clallam_Oversight_ActiveFunds[[#This Row],[Fund]],5)","v":"084-1"},null,"490",100,"490-Department of Natural Resources","490","09M-1","09M-1 Aquatic Invasive Species Enf. Acct.-State"]
[null,"103-Department of Commerce","08E-6 Individual Development Account Prog-Non-Appropriated",{"$f":"LEFT(Table_clallam_Oversight_ActiveFunds[[#This Row],[Fund]],5)","v":"08E-6"},null,"495",101,"495-Department of Agriculture","495","09N-1","09N-1 Aquatic Invasive Sp Prevention Acct-State"]
[null,"103-Department of Commerce","09R-1 Econ Dev Strategic Reserve Account-State",{"$f":"LEFT(Table_clallam_Oversight_ActiveFunds[[#This Row],[Fund]],5)","v":"09R-1"},null,"540",102,"540-Employment Security Department","540","09R-1","09R-1 Econ Dev Strategic Reserve Account-State"]
[null,"103-Department of Commerce","107-1 Liquor Excise Tax Account-State",{"$f":"LEFT(Table_clallam_Oversight_ActiveFunds[[#This Row],[Fund]],5)","v":"107-1"},null,"699",103,"699-Community/Technical College System","699","09T-6","09T-6 WA Main Street Trust Fund Account-Non-Appropriated"]
[null,"103-Department of Commerce","10B-1 Home Security Fund Account-State",{"$f":"LEFT(Table_clallam_Oversight_ActiveFunds[[#This Row],[Fund]],5)","v":"10B-1"},null,null,104,null,"","102-1","102-1 Rural Arterial Trust Account-State"]
[null,"103-Department of Commerce","10R-1 Energy Freedom Account-State",{"$f":"LEFT(Table_clallam_Oversight_ActiveFunds[[#This Row],[Fund]],5)","v":"10R-1"},null,null,105,null,"","104-1","104-1 State Wildlife Account-State"]
[null,"103-Department of Commerce","12C-1 Affordable Housing For All-State",{"$f":"LEFT(Table_clallam_Oversight_ActiveFunds[[#This Row],[Fund]],5)","v":"12C-1"},null,null,106,null,"","106-1","106-1 Highway Safety Account-State"]
[null,"103-Department of Commerce","14M-1 Finan Frd & Id Thft Crimes Inv & Pr-State",{"$f":"LEFT(Table_clallam_Oversight_ActiveFunds[[#This Row],[Fund]],5)","v":"14M-1"},null,null,107,null,"","106-2","106-2 Highway Safety Account-Federal"]
[null,"103-Department of Commerce","150-1 Low-Income Weath/Struct Rehab Asst-State",{"$f":"LEFT(Table_clallam_Oversight_ActiveFunds[[#This Row],[Fund]],5)","v":"150-1"},null,null,108,null,"","106-7","106-7 Highway Safety Account-Private/Local"]
[null,"103-Department of Commerce","15A-6 Transitional Housing Oper & Rent-Non-Appropriated",{"$f":"LEFT(Table_clallam_Oversight_ActiveFunds[[#This Row],[Fund]],5)","v":"15A-6"},null,null,109,null,null,"106-9","106-9 Highway Safety Account-Private/Local Unanticipated"]
[null,"103-Department of Commerce","17L-6 Foreclosure Fairness Account-Non-Appropriated",{"$f":"LEFT(Table_clallam_Oversight_ActiveFunds[[#This Row],[Fund]],5)","v":"17L-6"},null,null,110,null,null,"107-1","107-1 Liquor Excise Tax Account-State"]
[null,"103-Department of Commerce","18A-6 Investing In Innovation Account-Non-Appropriated",{"$f":"LEFT(Table_clallam_Oversight_ActiveFunds[[#This Row],[Fund]],5)","v":"18A-6"},null,null,null,null,null,"108-1","108-1 Motor Vehicle Account-State"]
[null,"103-Department of Commerce","19V-6 Cancer Research Endow Match Transfr-Non-Appropriated",{"$f":"LEFT(Table_clallam_Oversight_ActiveFunds[[#This Row],[Fund]],5)","v":"19V-6"},null,null,null,null,null,"108-2","108-2 Motor Vehicle Account-Federal"]
[null,"103-Department of Commerce","205-6 Mobile Home Park Relocation Account-Non-Appropriated",{"$f":"LEFT(Table_clallam_Oversight_ActiveFunds[[#This Row],[Fund]],5)","v":"205-6"},null,null,null,null,null,"108-3","108-3 Motor Vehicle Account-Federal Unanticipated"]
[null,"103-Department of Commerce","21C-6 Sexual Assault Kit Account-Non-Appropriated",{"$f":"LEFT(Table_clallam_Oversight_ActiveFunds[[#This Row],[Fund]],5)","v":"21C-6"},null,null,null,null,null,"108-7","108-7 Motor Vehicle Account-Private/Local"]
[null,"103-Department of Commerce","237-1 Recreation Access Pass Account-State",{"$f":"LEFT(Table_clallam_Oversight_ActiveFunds[[#This Row],[Fund]],5)","v":"237-1"},null,null,null,null,null,"109-1","109-1 Puget Sound Ferry Operations Acct-State"]
[null,"103-Department of Commerce","263-1 Community/Economic Development Fee-State",{"$f":"LEFT(Table_clallam_Oversight_ActiveFunds[[#This Row],[Fund]],5)","v":"263-1"},null,null,null,null,null,"109-2","109-2 Puget Sound Ferry Operations Acct-Federal"]
[null,"103-Department of Commerce","300-1 Financial Services Regulation Acct-State",{"$f":"LEFT(Table_clallam_Oversight_ActiveFunds[[#This Row],[Fund]],5)","v":"300-1"},null,null,null,null,null,"109-7","109-7 Puget Sound Ferry Operations Acct-Private/Local"]
[null,"103-Department of Commerce","501-1 Liquor Revolving Account-State",{"$f":"LEFT(Table_clallam_Oversight_ActiveFunds[[#This Row],[Fund]],5)","v":"501-1"},null,null,null,null,null,"10A-1","10A-1 Aquatic Algae Control Account-State"]
[null,"103-Department of Commerce","532-1 Washington Housing Trust Account-State",{"$f":"LEFT(Table_clallam_Oversight_ActiveFunds[[#This Row],[Fund]],5)","v":"532-1"},null,null,null,null,null,"10B-1","10B-1 Home Security Fund Account-State"]
[null,"103-Department of Commerce","731-6 Child Care Facility Revolving Acct-Non-Appropriated",{"$f":"LEFT(Table_clallam_Oversight_ActiveFunds[[#This Row],[Fund]],5)","v":"731-6"},null,null,null,null,null,"10G-1","10G-1 Water Rights Tracking System Acct-State"]
[null,"103-Department of Commerce","746-6 Hanford Area Economic Investment-Non-Appropriated",{"$f":"LEFT(Table_clallam_Oversight_ActiveFunds[[#This Row],[Fund]],5)","v":"746-6"},null,null,null,null,null,"10R-1","10R-1 Energy Freedom Account-State"]
[null,"103-Department of Commerce","759-6 Miscellaneous Program Account-Non-Appropriated",{"$f":"LEFT(Table_clallam_Oversight_ActiveFunds[[#This Row],[Fund]],5)","v":"759-6"},null,null,null,null,null,"110-1","110-1 Special Wildlife Account-State"]
[null,"103-Department of Commerce","777-1 Prostitution Prevent & Intervention-State",{"$f":"LEFT(Table_clallam_Oversight_ActiveFunds[[#This Row],[Fund]],5)","v":"777-1"},null,null,null,null,null,"110-2","110-2 Special Wildlife Account-Federal"]
[null,"103-Department of Commerce","833-6 Develop Disability Endowment Trust-Non-Appropriated",{"$f":"LEFT(Table_clallam_Oversight_ActiveFunds[[#This Row],[Fund]],5)","v":"833-6"},null,null,null,null,null,"110-7","110-7 Special Wildlife Account-Private/Local"]
[null,"103-Department of Commerce","887-1 Public Facility Const Loan Revolv-State",{"$f":"LEFT(Table_clallam_Oversight_ActiveFunds[[#This Row],[Fund]],5)","v":"887-1"},null,null,null,null,null,"111-1","111-1 Public Service Revolving Account-State"]
[null,"104-Economic & Revenue Forecast Council","001-1 General Fund-State",{"$f":"LEFT(Table_clallam_Oversight_ActiveFunds[[#This Row],[Fund]],5)","v":"001-1"},null,null,null,null,null,"116-6","116-6 Basic Data Account-Non-Appropriated"]
[null,"104-Economic & Revenue Forecast Council","578-1 Lottery Administrative Account-State",{"$f":"LEFT(Table_clallam_Oversight_ActiveFunds[[#This Row],[Fund]],5)","v":"578-1"},null,null,null,null,null,"119-2","119-2 Unemployment Compensation Admin-Federal"]
[null,"105-Office of Financial Management","001-1 General Fund-State",{"$f":"LEFT(Table_clallam_Oversight_ActiveFunds[[#This Row],[Fund]],5)","v":"001-1"},null,null,null,null,null,"11A-6","11A-6 Employment Training Finance Account-Non-Appropriated"]
[null,"105-Office of Financial Management","001-2 General Fund-Federal",{"$f":"LEFT(Table_clallam_Oversight_ActiveFunds[[#This Row],[Fund]],5)","v":"001-2"},null,null,null,null,null,"11B-1","11B-1 Regional Mobility Grant Pgm Account-State"]
[null,"105-Office of Financial Management","001-7 General Fund-Private/Local",{"$f":"LEFT(Table_clallam_Oversight_ActiveFunds[[#This Row],[Fund]],5)","v":"001-7"},null,null,null,null,null,{"$f":"MID(K133,1,5)","v":"11H-1"},"11H-1 Forest and Fish Support Account-State"]
[null,"105-Office of Financial Management","03K-6 Industrial Insurance Premium Refund-Non-Appropriated",{"$f":"LEFT(Table_clallam_Oversight_ActiveFunds[[#This Row],[Fund]],5)","v":"03K-6"},null,null,null,null,null,"11J-6","11J-6 Electronic Products Recycling-Non-Appropriated"]
[null,"105-Office of Financial Management","081-1 State Patrol Highway Account-State",{"$f":"LEFT(Table_clallam_Oversight_ActiveFunds[[#This Row],[Fund]],5)","v":"081-1"},null,null,null,null,null,"11K-1","11K-1 Washington Auto Theft Prevention-State"]
[null,"105-Office of Financial Management","09R-1 Econ Dev Strategic Reserve Account-State",{"$f":"LEFT(Table_clallam_Oversight_ActiveFunds[[#This Row],[Fund]],5)","v":"09R-1"},null,null,null,null,null,"11V-7","11V-7 Veteran Estate Management Account-Private/Local"]
[null,"105-Office of Financial Management","108-1 Motor Vehicle Account-State",{"$f":"LEFT(Table_clallam_Oversight_ActiveFunds[[#This Row],[Fund]],5)","v":"108-1"},null,null,null,null,null,"11V-9","11V-9 Veteran Estate Management Account-Private/Local Unanticipated"]
[null,"105-Office of Financial Management","109-1 Puget Sound Ferry Operations Acct-State",{"$f":"LEFT(Table_clallam_Oversight_ActiveFunds[[#This Row],[Fund]],5)","v":"109-1"},null,null,null,null,null,"120-1","120-1 Administrative Contingency Account-State"]
[null,"105-Office of Financial Management","16R-6 Multiagency Permitting Team Account-Non-Appropriated",{"$f":"LEFT(Table_clallam_Oversight_ActiveFunds[[#This Row],[Fund]],5)","v":"16R-6"},null,null,null,null,null,"125-1","125-1 Site Closure Account-State"]
[null,"105-Office of Financial Management","277-6 State Agency Parking Account-Non-Appropriated",{"$f":"LEFT(Table_clallam_Oversight_ActiveFunds[[#This Row],[Fund]],5)","v":"277-6"},null,null,null,null,null,"126-6","126-6 Agricultural Local Account-Non-Appropriated"]
[null,"105-Office of Financial Management","415-1 Personnel Service Account-State",{"$f":"LEFT(Table_clallam_Oversight_ActiveFunds[[#This Row],[Fund]],5)","v":"415-1"},null,null,null,null,null,"128-6","128-6 Grain Inspection Revolving Acct-Non-Appropriated"]
[null,"105-Office of Financial Management","419-1 Data Processing Revolving Account-State",{"$f":"LEFT(Table_clallam_Oversight_ActiveFunds[[#This Row],[Fund]],5)","v":"419-1"},null,null,null,null,null,"12C-1","12C-1 Affordable Housing For All-State"]
[null,"105-Office of Financial Management","419-6 Data Processing Revolving Account-Non-Appropriated",{"$f":"LEFT(Table_clallam_Oversight_ActiveFunds[[#This Row],[Fund]],5)","v":"419-6"},null,null,null,null,null,"12E-6","12E-6 Assisted Living Fac Temp Mgmt Acct-Non-Appropriated"]
[null,"105-Office of Financial Management","421-6 Education Technology Revolving Acct-Non-Appropriated",{"$f":"LEFT(Table_clallam_Oversight_ActiveFunds[[#This Row],[Fund]],5)","v":"421-6"},null,null,null,null,null,"12F-6","12F-6 Manufactured/Mobile Home Dispute-Non-Appropriated"]
[null,"105-Office of Financial Management","436-6 OFM Labor Relations Service Acct-Non-Appropriated",{"$f":"LEFT(Table_clallam_Oversight_ActiveFunds[[#This Row],[Fund]],5)","v":"436-6"},null,null,null,null,null,"12G-6","12G-6 Rockfish Research Account-Non-Appropriated"]
[null,"105-Office of Financial Management","455-1 Higher Education Personnel Services-State",{"$f":"LEFT(Table_clallam_Oversight_ActiveFunds[[#This Row],[Fund]],5)","v":"455-1"},null,null,null,null,null,"12H-6","12H-6 Uniformed Service Shared Leave Pool-Non-Appropriated"]
[null,"105-Office of Financial Management","466-1 Statewide IT System Devel Rev Acct-State",{"$f":"LEFT(Table_clallam_Oversight_ActiveFunds[[#This Row],[Fund]],5)","v":"466-1"},null,null,null,null,null,"12L-6","12L-6 Outdoor Education & Recreation Acct-Non-Appropriated"]
[null,"105-Office of Financial Management","468-1 OFM Central Services-State",{"$f":"LEFT(Table_clallam_Oversight_ActiveFunds[[#This Row],[Fund]],5)","v":"468-1"},null,null,null,null,null,"12M-1","12M-1 Charitable Organization Ed Acct-State"]
[null,"105-Office of Financial Management","472-6 Statewide IT Systems M&O Rev Acct-Non-Appropriated",{"$f":"LEFT(Table_clallam_Oversight_ActiveFunds[[#This Row],[Fund]],5)","v":"472-6"},null,null,null,null,null,"12T-1","12T-1 Traumatic Brain Injury Account-State"]
[null,"105-Office of Financial Management","553-1 Performance Audits of Govt Acct-State",{"$f":"LEFT(Table_clallam_Oversight_ActiveFunds[[#This Row],[Fund]],5)","v":"553-1"},null,null,null,null,null,"131-6","131-6 Fair Account-Non-Appropriated"]
[null,"105-Office of Financial Management","749-6 Governor's ICSEW Account-Non-Appropriated",{"$f":"LEFT(Table_clallam_Oversight_ActiveFunds[[#This Row],[Fund]],5)","v":"749-6"},null,null,null,null,null,"133-6","133-6 Childrens' Trust Account-Non-Appropriated"]
[null,"107-WA State Health Care Authority","001-1 General Fund-State",{"$f":"LEFT(Table_clallam_Oversight_ActiveFunds[[#This Row],[Fund]],5)","v":"001-1"},null,null,null,null,null,"134-1","134-1 Employment Services Administrative-State"]
[null,"107-WA State Health Care Authority","001-2 General Fund-Federal",{"$f":"LEFT(Table_clallam_Oversight_ActiveFunds[[#This Row],[Fund]],5)","v":"001-2"},null,null,null,null,null,"138-1","138-1 Insurance Commissioner's Regulatory-State"]
[null,"107-WA State Health Care Authority","001-7 General Fund-Private/Local",{"$f":"LEFT(Table_clallam_Oversight_ActiveFunds[[#This Row],[Fund]],5)","v":"001-7"},null,null,null,null,null,"141-6","141-6 Federal Seizure Account-Non-Appropriated"]
[null,"107-WA State Health Care Authority","03C-1 Emer Med Ser/Trauma Care Sys Trust-State",{"$f":"LEFT(Table_clallam_Oversight_ActiveFunds[[#This Row],[Fund]],5)","v":"03C-1"},null,null,null,null,null,"143-6","143-6 Inst of Hi Ed-Federal Approp Acct-Non-Appropriated"]
[null,"107-WA State Health Care Authority","08G-6 Flexible Spending Admin Acct-Non-Appropriated",{"$f":"LEFT(Table_clallam_Oversight_ActiveFunds[[#This Row],[Fund]],5)","v":"08G-6"},null,null,null,null,null,"144-1","144-1 Transportation Improvement Account-State"]
[null,"107-WA State Health Care Authority","08J-6 Prescription Drug Consortium Acct-Non-Appropriated",{"$f":"LEFT(Table_clallam_Oversight_ActiveFunds[[#This Row],[Fund]],5)","v":"08J-6"},null,null,null,null,null,"145-6","145-6 Inst of Hi Ed-Grants/Contracts Acct-Non-Appropriated"]
[null,"107-WA State Health Care Authority","16W-1 Hospital Safety Net Assessment Acct-State",{"$f":"LEFT(Table_clallam_Oversight_ActiveFunds[[#This Row],[Fund]],5)","v":"16W-1"},null,null,null,null,null,"145-N","145-N Inst of Hi Ed-Grants/Contracts Acct-Federal Non-Approp ARRA"]
[null,"107-WA State Health Care Authority","172-6 Basic Health Plan Trust Account-Non-Appropriated",{"$f":"LEFT(Table_clallam_Oversight_ActiveFunds[[#This Row],[Fund]],5)","v":"172-6"},null,null,null,null,null,"146-1","146-1 Firearms Range Account-State"]
[null,"107-WA State Health Care Authority","17T-1 Health Benefit Exchange Account-State",{"$f":"LEFT(Table_clallam_Oversight_ActiveFunds[[#This Row],[Fund]],5)","v":"17T-1"},null,null,null,null,null,"148-6","148-6 Inst of Hi Ed-Dedicated Local Acct-Non-Appropriated"]
[null,"107-WA State Health Care Authority","19A-1 Medicaid Fraud Penalty Account-State",{"$f":"LEFT(Table_clallam_Oversight_ActiveFunds[[#This Row],[Fund]],5)","v":"19A-1"},null,null,null,null,null,"149-6","149-6 Inst of Hi Ed-Operating Fees Acct-Non-Appropriated"]
[null,"107-WA State Health Care Authority","315-1 Dedicated Marijuana Account-State",{"$f":"LEFT(Table_clallam_Oversight_ActiveFunds[[#This Row],[Fund]],5)","v":"315-1"},null,null,null,null,null,"14A-1","14A-1 Wildlife Rehabilitation Account-State"]
[null,"107-WA State Health Care Authority","418-1 St Health Care Authority Admin Acct-State",{"$f":"LEFT(Table_clallam_Oversight_ActiveFunds[[#This Row],[Fund]],5)","v":"418-1"},null,null,null,null,null,"14B-1","14B-1 Budget Stabilization Account-State"]
[null,"107-WA State Health Care Authority","438-6 Uniform Dental Plan Benefits Admin-Non-Appropriated",{"$f":"LEFT(Table_clallam_Oversight_ActiveFunds[[#This Row],[Fund]],5)","v":"438-6"},null,null,null,null,null,"14E-1","14E-1 WA State Heritage Center Account-State"]
[null,"107-WA State Health Care Authority","439-6 Uniform Medical Plan Benefits Acct-Non-Appropriated",{"$f":"LEFT(Table_clallam_Oversight_ActiveFunds[[#This Row],[Fund]],5)","v":"439-6"},null,null,null,null,null,"14J-6","14J-6 Ambulatory Surgical Facility Acct-Non-Appropriated"]
[null,"107-WA State Health Care Authority","447-6 Info Tech Invest Rev Acct-Non-Appropriated",{"$f":"LEFT(Table_clallam_Oversight_ActiveFunds[[#This Row],[Fund]],5)","v":"447-6"},null,null,null,null,null,"14M-1","14M-1 Finan Frd & Id Thft Crimes Inv & Pr-State"]
[null,"107-WA State Health Care Authority","609-1 Medical Aid Account-State",{"$f":"LEFT(Table_clallam_Oversight_ActiveFunds[[#This Row],[Fund]],5)","v":"609-1"},null,null,null,null,null,"14N-6","14N-6 Legislative Oral History Account-Non-Appropriated"]
[null,"107-WA State Health Care Authority","721-6 Public Employees/Retirees Insurance-Non-Appropriated",{"$f":"LEFT(Table_clallam_Oversight_ActiveFunds[[#This Row],[Fund]],5)","v":"721-6"},null,null,null,null,null,"14P-6","14P-6 Skeletal Human Remains Assistance-Non-Appropriated"]
[null,"110-Office of Administrative Hearings","03K-6 Industrial Insurance Premium Refund-Non-Appropriated",{"$f":"LEFT(Table_clallam_Oversight_ActiveFunds[[#This Row],[Fund]],5)","v":"03K-6"},null,null,null,null,null,"14V-1","14V-1 Ignition Interlock Device Revolving-State"]
[null,"110-Office of Administrative Hearings","180-6 Local Gov Administrative Hearings-Non-Appropriated",{"$f":"LEFT(Table_clallam_Oversight_ActiveFunds[[#This Row],[Fund]],5)","v":"180-6"},null,null,null,null,null,"14W-6","14W-6 Reduced Cigarette Ignition Acct.-Non-Appropriated"]
[null,"110-Office of Administrative Hearings","484-1 Administrative Hearings Revolving-State",{"$f":"LEFT(Table_clallam_Oversight_ActiveFunds[[#This Row],[Fund]],5)","v":"484-1"},null,null,null,null,null,"150-1","150-1 Low-Income Weath/Struct Rehab Asst-State"]
[null,"116-State Lottery Commission","03K-6 Industrial Insurance Premium Refund-Non-Appropriated",{"$f":"LEFT(Table_clallam_Oversight_ActiveFunds[[#This Row],[Fund]],5)","v":"03K-6"},null,null,null,null,null,"153-1","153-1 Rural Mobility Grant Program Acct-State"]
[null,"116-State Lottery Commission","433-6 Shared Game Lottery Acct-Non-Appropriated",{"$f":"LEFT(Table_clallam_Oversight_ActiveFunds[[#This Row],[Fund]],5)","v":"433-6"},null,null,null,null,null,"154-1","154-1 New Motor Vehicle Arbitration Acct-State"]
[null,"116-State Lottery Commission","577-6 State Lottery Account-Non-Appropriated",{"$f":"LEFT(Table_clallam_Oversight_ActiveFunds[[#This Row],[Fund]],5)","v":"577-6"},null,null,null,null,null,"158-1","158-1 Aquatic Land Dredged Mat Disp Site-State"]
[null,"116-State Lottery Commission","578-1 Lottery Administrative Account-State",{"$f":"LEFT(Table_clallam_Oversight_ActiveFunds[[#This Row],[Fund]],5)","v":"578-1"},null,null,null,null,null,"159-6","159-6 Parks Improvement Account-Non-Appropriated"]
[null,"117-Washington State Gambling Comm","03K-6 Industrial Insurance Premium Refund-Non-Appropriated",{"$f":"LEFT(Table_clallam_Oversight_ActiveFunds[[#This Row],[Fund]],5)","v":"03K-6"},null,null,null,null,null,"15A-6","15A-6 Transitional Housing Oper & Rent-Non-Appropriated"]
[null,"117-Washington State Gambling Comm","884-6 Gambling Revolving Account-Non-Appropriated",{"$f":"LEFT(Table_clallam_Oversight_ActiveFunds[[#This Row],[Fund]],5)","v":"884-6"},null,null,null,null,null,"15M-1","15M-1 Biotoxin Account-State"]
[null,"118-WA State Comm on Hispanic Affairs","001-1 General Fund-State",{"$f":"LEFT(Table_clallam_Oversight_ActiveFunds[[#This Row],[Fund]],5)","v":"001-1"},null,null,null,null,null,"15V-6","15V-6 Funeral and Cemetery Account-Non-Appropriated"]
[null,"119-African-American Affairs Comm","001-1 General Fund-State",{"$f":"LEFT(Table_clallam_Oversight_ActiveFunds[[#This Row],[Fund]],5)","v":"001-1"},null,null,null,null,null,"160-1","160-1 Wood Stove Education/Enforcement-State"]
[null,"120-Human Rights Commission","001-1 General Fund-State",{"$f":"LEFT(Table_clallam_Oversight_ActiveFunds[[#This Row],[Fund]],5)","v":"001-1"},null,null,null,null,null,"162-1","162-1 Farm Labor Contractor Account-State"]
[null,"120-Human Rights Commission","001-2 General Fund-Federal",{"$f":"LEFT(Table_clallam_Oversight_ActiveFunds[[#This Row],[Fund]],5)","v":"001-2"},null,null,null,null,null,"163-1","163-1 Worker/Community Right to Know Acct-State"]
[null,"124-Department of Retirement Systems","600-1 Dept of Retirement Systems Expense-State",{"$f":"LEFT(Table_clallam_Oversight_ActiveFunds[[#This Row],[Fund]],5)","v":"600-1"},null,null,null,null,null,"167-1","167-1 Nat Res Conserv Areas Stewardship-State"]
[null,"124-Department of Retirement Systems","600-6 Dept of Retirement Systems Expense-Non-Appropriated",{"$f":"LEFT(Table_clallam_Oversight_ActiveFunds[[#This Row],[Fund]],5)","v":"600-6"},null,null,null,null,null,"169-1","169-1 Horse Racing Commission Op Account-State"]
[null,"124-Department of Retirement Systems","615-6 Washington State Patrol Retirement-Non-Appropriated",{"$f":"LEFT(Table_clallam_Oversight_ActiveFunds[[#This Row],[Fund]],5)","v":"615-6"},null,null,null,null,null,"16A-1","16A-1 Judicial Stabilization Trust Accoun-State"]
[null,"124-Department of Retirement Systems","616-6 Judges' Retirement Account-Non-Appropriated",{"$f":"LEFT(Table_clallam_Oversight_ActiveFunds[[#This Row],[Fund]],5)","v":"616-6"},null,null,null,null,null,"16B-6","16B-6 Landscape Architects' License Acct-Non-Appropriated"]
[null,"124-Department of Retirement Systems","630-6 WSP Retirement System Plan 2 Acct-Non-Appropriated",{"$f":"LEFT(Table_clallam_Oversight_ActiveFunds[[#This Row],[Fund]],5)","v":"630-6"},null,null,null,null,null,"16F-6","16F-6 Washington State Flag Account-Non-Appropriated"]
[null,"124-Department of Retirement Systems","631-6 Public Employees' Retire Sys Plan I-Non-Appropriated",{"$f":"LEFT(Table_clallam_Oversight_ActiveFunds[[#This Row],[Fund]],5)","v":"631-6"},null,null,null,null,null,"16G-6","16G-6 Universal Vaccine Purchase Account-Non-Appropriated"]
[null,"124-Department of Retirement Systems","632-6 Teachers' Retirement Plan I Acct-Non-Appropriated",{"$f":"LEFT(Table_clallam_Oversight_ActiveFunds[[#This Row],[Fund]],5)","v":"632-6"},null,null,null,null,null,"16H-6","16H-6 Col Rvr Rec Salmon/Steelhead Endrs-Non-Appropriated"]
[null,"124-Department of Retirement Systems","633-6 School Employee Comb Plan 2 & 3-Non-Appropriated",{"$f":"LEFT(Table_clallam_Oversight_ActiveFunds[[#This Row],[Fund]],5)","v":"633-6"},null,null,null,null,null,"16J-1","16J-1 SR 520 Corridor Account-State"]
[null,"124-Department of Retirement Systems","635-6 Public Employees Retirement Plan 2-Non-Appropriated",{"$f":"LEFT(Table_clallam_Oversight_ActiveFunds[[#This Row],[Fund]],5)","v":"635-6"},null,null,null,null,null,"16L-6","16L-6 Accessible Communities Account-Non-Appropriated"]
[null,"124-Department of Retirement Systems","641-6 Public Employees' Comb Plan 2 & 3-Non-Appropriated",{"$f":"LEFT(Table_clallam_Oversight_ActiveFunds[[#This Row],[Fund]],5)","v":"641-6"},null,null,null,null,null,"16M-6","16M-6 Appraisal Management Company Acct-Non-Appropriated"]
[null,"124-Department of Retirement Systems","642-6 Teachers' Combined Plan II & III-Non-Appropriated",{"$f":"LEFT(Table_clallam_Oversight_ActiveFunds[[#This Row],[Fund]],5)","v":"642-6"},null,null,null,null,null,"16P-1","16P-1 Marine Resources Stewardship Trust-State"]
[null,"124-Department of Retirement Systems","722-6 Deferred Compensation Principal-Non-Appropriated",{"$f":"LEFT(Table_clallam_Oversight_ActiveFunds[[#This Row],[Fund]],5)","v":"722-6"},null,null,null,null,null,"16R-6","16R-6 Multiagency Permitting Team Account-Non-Appropriated"]
[null,"124-Department of Retirement Systems","729-6 Judicial Retirement Principal Acct-Non-Appropriated",{"$f":"LEFT(Table_clallam_Oversight_ActiveFunds[[#This Row],[Fund]],5)","v":"729-6"},null,null,null,null,null,"16T-6","16T-6 Product Stewardship Programs Acct-Non-Appropriated"]
[null,"124-Department of Retirement Systems","819-6 LEOFF Retirement Plan I Acct-Non-Appropriated",{"$f":"LEFT(Table_clallam_Oversight_ActiveFunds[[#This Row],[Fund]],5)","v":"819-6"},null,null,null,null,null,"16V-1","16V-1 Water Rights Processing Account-State"]
[null,"124-Department of Retirement Systems","829-6 LEOFF Retirement Plan II Acct-Non-Appropriated",{"$f":"LEFT(Table_clallam_Oversight_ActiveFunds[[#This Row],[Fund]],5)","v":"829-6"},null,null,null,null,null,"16W-1","16W-1 Hospital Safety Net Assessment Acct-State"]
[null,"124-Department of Retirement Systems","874-6 OASI Revolving Account-Non-Appropriated",{"$f":"LEFT(Table_clallam_Oversight_ActiveFunds[[#This Row],[Fund]],5)","v":"874-6"},null,null,null,null,null,{"$f":"MID(K197,1,5)","v":"172-6"},"172-6 Basic Health Plan Trust Account-Non-Appropriated"]
[null,"124-Department of Retirement Systems","882-6 Washington Judicial Retirement Acct-Non-Appropriated",{"$f":"LEFT(Table_clallam_Oversight_ActiveFunds[[#This Row],[Fund]],5)","v":"882-6"},null,null,null,null,null,"173-1","173-1 State Toxics Control Account-State"]
[null,"124-Department of Retirement Systems","888-6 Deferred Compensation Admin Account-Non-Appropriated",{"$f":"LEFT(Table_clallam_Oversight_ActiveFunds[[#This Row],[Fund]],5)","v":"888-6"},null,null,null,null,null,"173-7","173-7 State Toxics Control Account-Private/Local"]
[null,"126-State Investment Board","031-1 State Investment Board Expense Acct-State",{"$f":"LEFT(Table_clallam_Oversight_ActiveFunds[[#This Row],[Fund]],5)","v":"031-1"},null,null,null,null,null,"174-1","174-1 Local Toxics Control Account-State"]
[null,"126-State Investment Board","03K-6 Industrial Insurance Premium Refund-Non-Appropriated",{"$f":"LEFT(Table_clallam_Oversight_ActiveFunds[[#This Row],[Fund]],5)","v":"03K-6"},null,null,null,null,null,"176-1","176-1 Water Quality Permit Account-State"]
[null,"140-Department of Revenue","001-1 General Fund-State",{"$f":"LEFT(Table_clallam_Oversight_ActiveFunds[[#This Row],[Fund]],5)","v":"001-1"},null,null,null,null,null,"17B-1","17B-1 Home Visiting Services Account-State"]
[null,"140-Department of Revenue","02W-1 Timber Tax Distribution Account-State",{"$f":"LEFT(Table_clallam_Oversight_ActiveFunds[[#This Row],[Fund]],5)","v":"02W-1"},null,null,null,null,null,"17B-2","17B-2 Home Visiting Services Account-Federal"]
[null,"140-Department of Revenue","03N-1 Business License Account-State",{"$f":"LEFT(Table_clallam_Oversight_ActiveFunds[[#This Row],[Fund]],5)","v":"03N-1"},null,null,null,null,null,"17F-1","17F-1 WA Opportunity Pathways Account-State"]
[null,"140-Department of Revenue","044-1 Waste Reduct/Recycle/Litter Control-State",{"$f":"LEFT(Table_clallam_Oversight_ActiveFunds[[#This Row],[Fund]],5)","v":"044-1"},null,null,null,null,null,"17L-6","17L-6 Foreclosure Fairness Account-Non-Appropriated"]
[null,"140-Department of Revenue","173-1 State Toxics Control Account-State",{"$f":"LEFT(Table_clallam_Oversight_ActiveFunds[[#This Row],[Fund]],5)","v":"173-1"},null,null,null,null,null,"17M-6","17M-6 Indivi-Based/Portable Background Ch-Non-Appropriated"]
[null,"140-Department of Revenue","196-6 Unclaimed Personal Property Account-Non-Appropriated",{"$f":"LEFT(Table_clallam_Oversight_ActiveFunds[[#This Row],[Fund]],5)","v":"196-6"},null,null,null,null,null,"17P-1","17P-1 SR 520 Civil Penalties Account-State"]
[null,"140-Department of Revenue","300-1 Financial Services Regulation Acct-State",{"$f":"LEFT(Table_clallam_Oversight_ActiveFunds[[#This Row],[Fund]],5)","v":"300-1"},null,null,null,null,null,"17R-1","17R-1 Aerospace Training Student Loan Acc-State"]
[null,"142-Board of Tax Appeals","001-1 General Fund-State",{"$f":"LEFT(Table_clallam_Oversight_ActiveFunds[[#This Row],[Fund]],5)","v":"001-1"},null,null,null,null,null,"17R-6","17R-6 Aerospace Training Student Loan Acc-Non-Appropriated"]
[null,"147-Minority & Women's Business Enterp","453-1 OMWBE Enterprises Account-State",{"$f":"LEFT(Table_clallam_Oversight_ActiveFunds[[#This Row],[Fund]],5)","v":"453-1"},null,null,null,null,null,"17T-1","17T-1 Health Benefit Exchange Account-State"]
[null,"160-Office of Insurance Commissioner","001-1 General Fund-State",{"$f":"LEFT(Table_clallam_Oversight_ActiveFunds[[#This Row],[Fund]],5)","v":"001-1"},null,null,null,null,null,"180-6","180-6 Local Gov Administrative Hearings-Non-Appropriated"]
[null,"160-Office of Insurance Commissioner","001-2 General Fund-Federal",{"$f":"LEFT(Table_clallam_Oversight_ActiveFunds[[#This Row],[Fund]],5)","v":"001-2"},null,null,null,null,null,"182-1","182-1 Underground Storage Tank Account-State"]
[null,"160-Office of Insurance Commissioner","138-1 Insurance Commissioner's Regulatory-State",{"$f":"LEFT(Table_clallam_Oversight_ActiveFunds[[#This Row],[Fund]],5)","v":"138-1"},null,null,null,null,null,"184-6","184-6 Local Museum Acct-Wa St Hist Soc-Non-Appropriated"]
[null,"163-Consolidated Technology Services","001-1 General Fund-State",{"$f":"LEFT(Table_clallam_Oversight_ActiveFunds[[#This Row],[Fund]],5)","v":"001-1"},null,null,null,null,null,"185-6","185-6 Local Museum Acct-E Wa St Hist Soc-Non-Appropriated"]
[null,"163-Consolidated Technology Services","03K-6 Industrial Insurance Premium Refund-Non-Appropriated",{"$f":"LEFT(Table_clallam_Oversight_ActiveFunds[[#This Row],[Fund]],5)","v":"03K-6"},null,null,null,null,null,"186-1","186-1 County Arterial Preservation Acct-State"]
[null,"163-Consolidated Technology Services","419-6 Data Processing Revolving Account-Non-Appropriated",{"$f":"LEFT(Table_clallam_Oversight_ActiveFunds[[#This Row],[Fund]],5)","v":"419-6"},null,null,null,null,null,"18A-6","18A-6 Investing In Innovation Account-Non-Appropriated"]
[null,"163-Consolidated Technology Services","458-1 Consolidated Tech Services Rev Acct-State",{"$f":"LEFT(Table_clallam_Oversight_ActiveFunds[[#This Row],[Fund]],5)","v":"458-1"},null,null,null,null,null,"18E-6","18E-6 Educator Certification Proccessing-Non-Appropriated"]
[null,"163-Consolidated Technology Services","458-6 Consolidated Tech Services Rev Acct-Non-Appropriated",{"$f":"LEFT(Table_clallam_Oversight_ActiveFunds[[#This Row],[Fund]],5)","v":"458-6"},null,null,null,null,null,"18G-6","18G-6 Opportunity Scholarship Match Trans-Non-Appropriated"]
[null,"163-Consolidated Technology Services","458-9 Consolidated Tech Services Rev Acct-Private/Local Unanticipated",{"$f":"LEFT(Table_clallam_Oversight_ActiveFunds[[#This Row],[Fund]],5)","v":"458-9"},null,null,null,null,null,"18H-1","18H-1 Opportunity Expansion Account-State"]
[null,"163-Consolidated Technology Services","461-6 Shared IT Systems Revolving Acct-Non-Appropriated",{"$f":"LEFT(Table_clallam_Oversight_ActiveFunds[[#This Row],[Fund]],5)","v":"461-6"},null,null,null,null,null,"18K-1","18K-1 24/7 Sobriety Account-State"]
[null,"163-Consolidated Technology Services","472-6 Statewide IT Systems M&O Rev Acct-Non-Appropriated",{"$f":"LEFT(Table_clallam_Oversight_ActiveFunds[[#This Row],[Fund]],5)","v":"472-6"},null,null,null,null,null,"18L-1","18L-1 Hydraulic Project Approval Account-State"]
[null,"165-State Board of Accountancy","02J-1 Certified Public Accountants' Acct-State",{"$f":"LEFT(Table_clallam_Oversight_ActiveFunds[[#This Row],[Fund]],5)","v":"02J-1"},null,null,null,null,null,"18N-6","18N-6 Damage Prevention Account-Non-Appropriated"]
[null,"167-Forensic Investigations Council","02K-1 Death Investigations Account-State",{"$f":"LEFT(Table_clallam_Oversight_ActiveFunds[[#This Row],[Fund]],5)","v":"02K-1"},null,null,null,null,null,"18T-1","18T-1 Child and Family Reinvestment Acc-State"]
[null,"179-Dept of Enterprise Services","001-1 General Fund-State",{"$f":"LEFT(Table_clallam_Oversight_ActiveFunds[[#This Row],[Fund]],5)","v":"001-1"},null,null,null,null,null,"190-6","190-6 Forest Fire Protection Assessment-Non-Appropriated"]
[null,"179-Dept of Enterprise Services","001-7 General Fund-Private/Local",{"$f":"LEFT(Table_clallam_Oversight_ActiveFunds[[#This Row],[Fund]],5)","v":"001-7"},null,null,null,null,null,"193-6","193-6 State Forest Nursery Revolving Acct-Non-Appropriated"]
[null,"179-Dept of Enterprise Services","045-6 State Vehicle Parking Account-Non-Appropriated",{"$f":"LEFT(Table_clallam_Oversight_ActiveFunds[[#This Row],[Fund]],5)","v":"045-6"},null,null,null,null,null,"196-6","196-6 Unclaimed Personal Property Account-Non-Appropriated"]
[null,"179-Dept of Enterprise Services","084-1 Building Code Council Account-State",{"$f":"LEFT(Table_clallam_Oversight_ActiveFunds[[#This Row],[Fund]],5)","v":"084-1"},null,null,null,null,null,"197-6","197-6 Statute Law Committee Publications-Non-Appropriated"]
[null,"179-Dept of Enterprise Services","315-1 Dedicated Marijuana Account-State",{"$f":"LEFT(Table_clallam_Oversight_ActiveFunds[[#This Row],[Fund]],5)","v":"315-1"},null,null,null,null,null,"198-6","198-6 Access Road Revolving Account-Non-Appropriated"]
[null,"179-Dept of Enterprise Services","419-6 Data Processing Revolving Account-Non-Appropriated",{"$f":"LEFT(Table_clallam_Oversight_ActiveFunds[[#This Row],[Fund]],5)","v":"419-6"},null,null,null,null,null,"199-1","199-1 Biosolids Permit Account-State"]
[null,"179-Dept of Enterprise Services","422-6 Enterprise Services Account-Non-Appropriated",{"$f":"LEFT(Table_clallam_Oversight_ActiveFunds[[#This Row],[Fund]],5)","v":"422-6"},null,null,null,null,null,"19A-1","19A-1 Medicaid Fraud Penalty Account-State"]
[null,"179-Dept of Enterprise Services","546-6 Risk Management Administration Acct-Non-Appropriated",{"$f":"LEFT(Table_clallam_Oversight_ActiveFunds[[#This Row],[Fund]],5)","v":"546-6"},null,null,null,null,null,"19B-6","19B-6 School for the Blind Account-Non-Appropriated"]
[null,"179-Dept of Enterprise Services","547-6 Liability Account-Non-Appropriated",{"$f":"LEFT(Table_clallam_Oversight_ActiveFunds[[#This Row],[Fund]],5)","v":"547-6"},null,null,null,null,null,"19C-1","19C-1 Forest Practices Application Acct-State"]
[null,"185-Washington Horse Racing Commission","03K-6 Industrial Insurance Premium Refund-Non-Appropriated",{"$f":"LEFT(Table_clallam_Oversight_ActiveFunds[[#This Row],[Fund]],5)","v":"03K-6"},null,null,null,null,null,"19G-1","19G-1 Environmental Legacy Stewardship-State"]
[null,"185-Washington Horse Racing Commission","169-1 Horse Racing Commission Op Account-State",{"$f":"LEFT(Table_clallam_Oversight_ActiveFunds[[#This Row],[Fund]],5)","v":"169-1"},null,null,null,null,null,"19H-6","19H-6 Center for Childhood Deafness HLA-Non-Appropriated"]
[null,"185-Washington Horse Racing Commission","485-6 Horse Racing Comm-WA Bred Owners'-Non-Appropriated",{"$f":"LEFT(Table_clallam_Oversight_ActiveFunds[[#This Row],[Fund]],5)","v":"485-6"},null,null,null,null,null,"19J-6","19J-6 Universal Communications Svcs Acct-Non-Appropriated"]
[null,"185-Washington Horse Racing Commission","497-6 Horse Racing Comm Class C Purse-Non-Appropriated",{"$f":"LEFT(Table_clallam_Oversight_ActiveFunds[[#This Row],[Fund]],5)","v":"497-6"},null,null,null,null,null,"19L-1","19L-1 Charter School Oversight Account-State"]
[null,"190-Bd of Industrial Insurance Appeals","163-1 Worker/Community Right to Know Acct-State",{"$f":"LEFT(Table_clallam_Oversight_ActiveFunds[[#This Row],[Fund]],5)","v":"163-1"},null,null,null,null,null,"19P-1","19P-1 Child Rescue Fund-State"]
[null,"190-Bd of Industrial Insurance Appeals","608-1 Accident Account-State",{"$f":"LEFT(Table_clallam_Oversight_ActiveFunds[[#This Row],[Fund]],5)","v":"608-1"},null,null,null,null,null,"19V-6","19V-6 Cancer Research Endow Match Transfr-Non-Appropriated"]
[null,"190-Bd of Industrial Insurance Appeals","609-1 Medical Aid Account-State",{"$f":"LEFT(Table_clallam_Oversight_ActiveFunds[[#This Row],[Fund]],5)","v":"609-1"},null,null,null,null,null,"19W-6","19W-6 Wolf-Livestock Conflict Account-Non-Appropriated"]
[null,"195-Liquor and Cannabis Board","001-1 General Fund-State",{"$f":"LEFT(Table_clallam_Oversight_ActiveFunds[[#This Row],[Fund]],5)","v":"001-1"},null,null,null,null,null,"200-2","200-2 Regnl Fisheries Enh Salmonid Recov-Federal"]
[null,"195-Liquor and Cannabis Board","001-2 General Fund-Federal",{"$f":"LEFT(Table_clallam_Oversight_ActiveFunds[[#This Row],[Fund]],5)","v":"001-2"},null,null,null,null,null,"201-1","201-1 DOL Services Account-State"]
[null,"195-Liquor and Cannabis Board","001-7 General Fund-Private/Local",{"$f":"LEFT(Table_clallam_Oversight_ActiveFunds[[#This Row],[Fund]],5)","v":"001-7"},null,null,null,null,null,"202-1","202-1 Medical Test Site Licensure Account-State"]
[null,"195-Liquor and Cannabis Board","141-6 Federal Seizure Account-Non-Appropriated",{"$f":"LEFT(Table_clallam_Oversight_ActiveFunds[[#This Row],[Fund]],5)","v":"141-6"},null,null,null,null,null,"204-1","204-1 Vol Firefight/Resv Officer Admin-State"]
[null,"195-Liquor and Cannabis Board","315-1 Dedicated Marijuana Account-State",{"$f":"LEFT(Table_clallam_Oversight_ActiveFunds[[#This Row],[Fund]],5)","v":"315-1"},null,null,null,null,null,"205-6","205-6 Mobile Home Park Relocation Account-Non-Appropriated"]
[null,"195-Liquor and Cannabis Board","501-1 Liquor Revolving Account-State",{"$f":"LEFT(Table_clallam_Oversight_ActiveFunds[[#This Row],[Fund]],5)","v":"501-1"},null,null,null,null,null,"206-6","206-6 Cost of Supervision Account-Non-Appropriated"]
[null,"205-Board of Pilotage Commissioners","025-6 Pilotage Account-Non-Appropriated",{"$f":"LEFT(Table_clallam_Oversight_ActiveFunds[[#This Row],[Fund]],5)","v":"025-6"},null,null,null,null,null,"207-1","207-1 Hazardous Waste Assistance Account-State"]
[null,"215-Utilities and Transportation Comm","001-1 General Fund-State",{"$f":"LEFT(Table_clallam_Oversight_ActiveFunds[[#This Row],[Fund]],5)","v":"001-1"},null,null,null,null,null,"209-6","209-6 Regional Fisheries Enhance Group-Non-Appropriated"]
[null,"215-Utilities and Transportation Comm","001-7 General Fund-Private/Local",{"$f":"LEFT(Table_clallam_Oversight_ActiveFunds[[#This Row],[Fund]],5)","v":"001-7"},null,null,null,null,null,"20E-6","20E-6 WA Internet Crimes Children-Non-Appropriated"]
[null,"215-Utilities and Transportation Comm","03K-6 Industrial Insurance Premium Refund-Non-Appropriated",{"$f":"LEFT(Table_clallam_Oversight_ActiveFunds[[#This Row],[Fund]],5)","v":"03K-6"},null,null,null,null,null,"20H-1","20H-1 Connecting Washington Account-State"]
[null,"215-Utilities and Transportation Comm","080-1 Grade Crossing Protective Account-State",{"$f":"LEFT(Table_clallam_Oversight_ActiveFunds[[#This Row],[Fund]],5)","v":"080-1"},null,null,null,null,null,"20J-1","20J-1 Electric Vehicle Charging Infras-State"]
[null,"215-Utilities and Transportation Comm","111-1 Public Service Revolving Account-State",{"$f":"LEFT(Table_clallam_Oversight_ActiveFunds[[#This Row],[Fund]],5)","v":"111-1"},null,null,null,null,null,"20R-1","20R-1 Radioactive Mixed Waste Account-State"]
[null,"215-Utilities and Transportation Comm","18N-6 Damage Prevention Account-Non-Appropriated",{"$f":"LEFT(Table_clallam_Oversight_ActiveFunds[[#This Row],[Fund]],5)","v":"18N-6"},null,null,null,null,null,"20S-1","20S-1 Gov's Behavioral Health Innovation-State"]
[null,"215-Utilities and Transportation Comm","19J-6 Universal Communications Svcs Acct-Non-Appropriated",{"$f":"LEFT(Table_clallam_Oversight_ActiveFunds[[#This Row],[Fund]],5)","v":"19J-6"},null,null,null,null,null,"20T-1","20T-1 Underground Storage Tank Revolving-State"]
[null,"215-Utilities and Transportation Comm","297-1 Pipeline Safety-State",{"$f":"LEFT(Table_clallam_Oversight_ActiveFunds[[#This Row],[Fund]],5)","v":"297-1"},null,null,null,null,null,"210-6","210-6 Fire Protection Contractor License-Non-Appropriated"]
[null,"215-Utilities and Transportation Comm","297-2 Pipeline Safety-Federal",{"$f":"LEFT(Table_clallam_Oversight_ActiveFunds[[#This Row],[Fund]],5)","v":"297-2"},null,null,null,null,null,"213-6","213-6 Veterans' Emblem Account-Non-Appropriated"]
[null,"220-Board for Volunteer Firefighters","204-1 Vol Firefight/Resv Officer Admin-State",{"$f":"LEFT(Table_clallam_Oversight_ActiveFunds[[#This Row],[Fund]],5)","v":"204-1"},null,null,null,null,null,"214-6","214-6 Temporary Worker Housing Account-Non-Appropriated"]
[null,"220-Board for Volunteer Firefighters","614-6 Vol Firefight/Rsrv Officers Princip-Non-Appropriated",{"$f":"LEFT(Table_clallam_Oversight_ActiveFunds[[#This Row],[Fund]],5)","v":"614-6"},null,null,null,null,null,"216-1","216-1 Air Pollution Control Account-State"]
[null,"225-Washington State Patrol","001-1 General Fund-State",{"$f":"LEFT(Table_clallam_Oversight_ActiveFunds[[#This Row],[Fund]],5)","v":"001-1"},null,null,null,null,null,"217-1","217-1 Oil Spill Prevention Account-State"]
[null,"225-Washington State Patrol","001-2 General Fund-Federal",{"$f":"LEFT(Table_clallam_Oversight_ActiveFunds[[#This Row],[Fund]],5)","v":"001-2"},null,null,null,null,null,"218-1","218-1 Multimodal Transportation Account-State"]
[null,"225-Washington State Patrol","001-7 General Fund-Private/Local",{"$f":"LEFT(Table_clallam_Oversight_ActiveFunds[[#This Row],[Fund]],5)","v":"001-7"},null,null,null,null,null,"218-2","218-2 Multimodal Transportation Account-Federal"]
[null,"225-Washington State Patrol","02K-1 Death Investigations Account-State",{"$f":"LEFT(Table_clallam_Oversight_ActiveFunds[[#This Row],[Fund]],5)","v":"02K-1"},null,null,null,null,null,{"$f":"MID(K261,1,5)","v":"218-7"},"218-7 Multimodal Transportation Account-Private/Local"]
[null,"225-Washington State Patrol","03F-1 Enhanced 911 Account-State",{"$f":"LEFT(Table_clallam_Oversight_ActiveFunds[[#This Row],[Fund]],5)","v":"03F-1"},null,null,null,null,null,"219-1","219-1 Air Operating Permit Account-State"]
[null,"225-Washington State Patrol","03L-1 County Criminal Justice Assistance-State",{"$f":"LEFT(Table_clallam_Oversight_ActiveFunds[[#This Row],[Fund]],5)","v":"03L-1"},null,null,null,null,null,"21C-6","21C-6 Sexual Assault Kit Account-Non-Appropriated"]
[null,"225-Washington State Patrol","03M-1 Municipal Criminal Justice Assist-State",{"$f":"LEFT(Table_clallam_Oversight_ActiveFunds[[#This Row],[Fund]],5)","v":"03M-1"},null,null,null,null,null,"222-1","222-1 Freshwater Aquatic Weeds Account-State"]
[null,"225-Washington State Patrol","03P-1 Fire Service Trust Account-State",{"$f":"LEFT(Table_clallam_Oversight_ActiveFunds[[#This Row],[Fund]],5)","v":"03P-1"},null,null,null,null,null,"223-1","223-1 Oil Spill Response Account-State"]
[null,"225-Washington State Patrol","04V-1 Vehicle License Fraud Account-State",{"$f":"LEFT(Table_clallam_Oversight_ActiveFunds[[#This Row],[Fund]],5)","v":"04V-1"},null,null,null,null,null,"225-1","225-1 Fingerprint Identification Account-State"]
[null,"225-Washington State Patrol","05H-1 Disaster Response Account-State",{"$f":"LEFT(Table_clallam_Oversight_ActiveFunds[[#This Row],[Fund]],5)","v":"05H-1"},null,null,null,null,null,"226-6","226-6 State Seizure Account-Non-Appropriated"]
[null,"225-Washington State Patrol","081-1 State Patrol Highway Account-State",{"$f":"LEFT(Table_clallam_Oversight_ActiveFunds[[#This Row],[Fund]],5)","v":"081-1"},null,null,null,null,null,"234-1","234-1 Public Works Administration Acct-State"]
[null,"225-Washington State Patrol","081-2 State Patrol Highway Account-Federal",{"$f":"LEFT(Table_clallam_Oversight_ActiveFunds[[#This Row],[Fund]],5)","v":"081-2"},null,null,null,null,null,"235-1","235-1 Youth Tobacco/Vapor Prod Prev Acct-State"]
[null,"225-Washington State Patrol","081-7 State Patrol Highway Account-Private/Local",{"$f":"LEFT(Table_clallam_Oversight_ActiveFunds[[#This Row],[Fund]],5)","v":"081-7"},null,null,null,null,null,"237-1","237-1 Recreation Access Pass Account-State"]
[null,"225-Washington State Patrol","086-1 Fire Service Training Account-State",{"$f":"LEFT(Table_clallam_Oversight_ActiveFunds[[#This Row],[Fund]],5)","v":"086-1"},null,null,null,null,null,"252-6","252-6 Hi Ed Non-Proprietary Local Capital-Non-Appropriated"]
[null,"225-Washington State Patrol","09M-1 Aquatic Invasive Species Enf. Acct.-State",{"$f":"LEFT(Table_clallam_Oversight_ActiveFunds[[#This Row],[Fund]],5)","v":"09M-1"},null,null,null,null,null,"253-1","253-1 Education Construction Account-State"]
[null,"225-Washington State Patrol","106-1 Highway Safety Account-State",{"$f":"LEFT(Table_clallam_Oversight_ActiveFunds[[#This Row],[Fund]],5)","v":"106-1"},null,null,null,null,null,"259-6","259-6 Coastal Crab Account-Non-Appropriated"]
[null,"225-Washington State Patrol","141-6 Federal Seizure Account-Non-Appropriated",{"$f":"LEFT(Table_clallam_Oversight_ActiveFunds[[#This Row],[Fund]],5)","v":"141-6"},null,null,null,null,null,"262-1","262-1 Manufacture Home Install/Training-State"]
[null,"225-Washington State Patrol","14B-1 Budget Stabilization Account-State",{"$f":"LEFT(Table_clallam_Oversight_ActiveFunds[[#This Row],[Fund]],5)","v":"14B-1"},null,null,null,null,null,"263-1","263-1 Community/Economic Development Fee-State"]
[null,"225-Washington State Patrol","14W-6 Reduced Cigarette Ignition Acct.-Non-Appropriated",{"$f":"LEFT(Table_clallam_Oversight_ActiveFunds[[#This Row],[Fund]],5)","v":"14W-6"},null,null,null,null,null,"267-1","267-1 Recreation Resources Account-State"]
[null,"225-Washington State Patrol","173-1 State Toxics Control Account-State",{"$f":"LEFT(Table_clallam_Oversight_ActiveFunds[[#This Row],[Fund]],5)","v":"173-1"},null,null,null,null,null,"268-1","268-1 NOVA Program Account-State"]
[null,"225-Washington State Patrol","210-6 Fire Protection Contractor License-Non-Appropriated",{"$f":"LEFT(Table_clallam_Oversight_ActiveFunds[[#This Row],[Fund]],5)","v":"210-6"},null,null,null,null,null,"269-1","269-1 Parks Renewal & Stewardship Acct-State"]
[null,"225-Washington State Patrol","218-1 Multimodal Transportation Account-State",{"$f":"LEFT(Table_clallam_Oversight_ActiveFunds[[#This Row],[Fund]],5)","v":"218-1"},null,null,null,null,null,"269-7","269-7 Parks Renewal & Stewardship Acct-Private/Local"]
[null,"225-Washington State Patrol","21C-6 Sexual Assault Kit Account-Non-Appropriated",{"$f":"LEFT(Table_clallam_Oversight_ActiveFunds[[#This Row],[Fund]],5)","v":"21C-6"},null,null,null,null,null,"274-6","274-6 Adult Family Home Account-Non-Appropriated"]
[null,"225-Washington State Patrol","225-1 Fingerprint Identification Account-State",{"$f":"LEFT(Table_clallam_Oversight_ActiveFunds[[#This Row],[Fund]],5)","v":"225-1"},null,null,null,null,null,"277-6","277-6 State Agency Parking Account-Non-Appropriated"]
[null,"225-Washington State Patrol","226-6 State Seizure Account-Non-Appropriated",{"$f":"LEFT(Table_clallam_Oversight_ActiveFunds[[#This Row],[Fund]],5)","v":"226-6"},null,null,null,null,null,"283-2","283-2 Juvenile Acctbl Incentive Acct-Federal"]
[null,"225-Washington State Patrol","447-6 Info Tech Invest Rev Acct-Non-Appropriated",{"$f":"LEFT(Table_clallam_Oversight_ActiveFunds[[#This Row],[Fund]],5)","v":"447-6"},null,null,null,null,null,"297-1","297-1 Pipeline Safety-State"]
[null,"225-Washington State Patrol","471-6 State Patrol N Air Rev Account-Non-Appropriated",{"$f":"LEFT(Table_clallam_Oversight_ActiveFunds[[#This Row],[Fund]],5)","v":"471-6"},null,null,null,null,null,"297-2","297-2 Pipeline Safety-Federal"]
[null,"225-Washington State Patrol","515-6 DNA Data Base Account-Non-Appropriated",{"$f":"LEFT(Table_clallam_Oversight_ActiveFunds[[#This Row],[Fund]],5)","v":"515-6"},null,null,null,null,null,"298-1","298-1 Geologists' Account-State"]
[null,"227-Criminal Justice Training Comm","001-1 General Fund-State",{"$f":"LEFT(Table_clallam_Oversight_ActiveFunds[[#This Row],[Fund]],5)","v":"001-1"},null,null,null,null,null,"298-6","298-6 Geologists' Account-Non-Appropriated"]
[null,"227-Criminal Justice Training Comm","001-7 General Fund-Private/Local",{"$f":"LEFT(Table_clallam_Oversight_ActiveFunds[[#This Row],[Fund]],5)","v":"001-7"},null,null,null,null,null,"300-1","300-1 Financial Services Regulation Acct-State"]
[null,"227-Criminal Justice Training Comm","001-9 General Fund-Private/Local Unanticipated",{"$f":"LEFT(Table_clallam_Oversight_ActiveFunds[[#This Row],[Fund]],5)","v":"001-9"},null,null,null,null,null,"300-6","300-6 Financial Services Regulation Acct-Non-Appropriated"]
[null,"227-Criminal Justice Training Comm","02K-1 Death Investigations Account-State",{"$f":"LEFT(Table_clallam_Oversight_ActiveFunds[[#This Row],[Fund]],5)","v":"02K-1"},null,null,null,null,null,"315-1","315-1 Dedicated Marijuana Account-State"]
[null,"227-Criminal Justice Training Comm","03M-1 Municipal Criminal Justice Assist-State",{"$f":"LEFT(Table_clallam_Oversight_ActiveFunds[[#This Row],[Fund]],5)","v":"03M-1"},null,null,null,null,null,"319-7","319-7 Public Health Supplemental Acct-Private/Local"]
[null,"227-Criminal Justice Training Comm","11K-1 Washington Auto Theft Prevention-State",{"$f":"LEFT(Table_clallam_Oversight_ActiveFunds[[#This Row],[Fund]],5)","v":"11K-1"},null,null,null,null,null,"320-6","320-6 Puget Sound Crab Pot Buoy Tag Acct-Non-Appropriated"]
[null,"227-Criminal Justice Training Comm","18K-1 24/7 Sobriety Account-State",{"$f":"LEFT(Table_clallam_Oversight_ActiveFunds[[#This Row],[Fund]],5)","v":"18K-1"},null,null,null,null,null,"347-6","347-6 WSU Bond Retirement Account-Non-Appropriated"]
[null,"227-Criminal Justice Training Comm","20E-6 WA Internet Crimes Children-Non-Appropriated",{"$f":"LEFT(Table_clallam_Oversight_ActiveFunds[[#This Row],[Fund]],5)","v":"20E-6"},null,null,null,null,null,"401-6","401-6 Correctional Industries Account-Non-Appropriated"]
[null,"228-WA Traffic Safety Commission","106-1 Highway Safety Account-State",{"$f":"LEFT(Table_clallam_Oversight_ActiveFunds[[#This Row],[Fund]],5)","v":"106-1"},null,null,null,null,null,"403-6","403-6 Self-Insurance Revolving Account-Non-Appropriated"]
[null,"228-WA Traffic Safety Commission","106-2 Highway Safety Account-Federal",{"$f":"LEFT(Table_clallam_Oversight_ActiveFunds[[#This Row],[Fund]],5)","v":"106-2"},null,null,null,null,null,"404-1","404-1 State Treasurer's Service Account-State"]
[null,"228-WA Traffic Safety Commission","106-7 Highway Safety Account-Private/Local",{"$f":"LEFT(Table_clallam_Oversight_ActiveFunds[[#This Row],[Fund]],5)","v":"106-7"},null,null,null,null,null,"405-1","405-1 Legal Services Revolving Account-State"]
[null,"228-WA Traffic Safety Commission","106-9 Highway Safety Account-Private/Local Unanticipated",{"$f":"LEFT(Table_clallam_Oversight_ActiveFunds[[#This Row],[Fund]],5)","v":"106-9"},null,null,null,null,null,"407-6","407-6 Secretary of State's Revolving Acct-Non-Appropriated"]
[null,"228-WA Traffic Safety Commission","780-1 School Zone Safety Account-State",{"$f":"LEFT(Table_clallam_Oversight_ActiveFunds[[#This Row],[Fund]],5)","v":"780-1"},null,null,null,null,null,"408-6","408-6 Coastal Protection Account-Non-Appropriated"]
[null,"235-Department of Labor and Industries","001-1 General Fund-State",{"$f":"LEFT(Table_clallam_Oversight_ActiveFunds[[#This Row],[Fund]],5)","v":"001-1"},null,null,null,null,null,"410-6","410-6 Transportation Equipment Account-Non-Appropriated"]
[null,"235-Department of Labor and Industries","001-2 General Fund-Federal",{"$f":"LEFT(Table_clallam_Oversight_ActiveFunds[[#This Row],[Fund]],5)","v":"001-2"},null,null,null,null,null,"411-6","411-6 Natural Resources Equipment Account-Non-Appropriated"]
[null,"235-Department of Labor and Industries","01F-6 Crime Victims Compensation Account-Non-Appropriated",{"$f":"LEFT(Table_clallam_Oversight_ActiveFunds[[#This Row],[Fund]],5)","v":"01F-6"},null,null,null,null,null,"413-6","413-6 Municipal Revolving Account-Non-Appropriated"]
[null,"235-Department of Labor and Industries","03B-1 Asbestos Account-State",{"$f":"LEFT(Table_clallam_Oversight_ActiveFunds[[#This Row],[Fund]],5)","v":"03B-1"},null,null,null,null,null,"415-1","415-1 Personnel Service Account-State"]
[null,"235-Department of Labor and Industries","03K-6 Industrial Insurance Premium Refund-Non-Appropriated",{"$f":"LEFT(Table_clallam_Oversight_ActiveFunds[[#This Row],[Fund]],5)","v":"03K-6"},null,null,null,null,null,"416-6","416-6 Surplus/Donated Food Commod Revolv-Non-Appropriated"]
[null,"235-Department of Labor and Industries","095-1 Electrical License Account-State",{"$f":"LEFT(Table_clallam_Oversight_ActiveFunds[[#This Row],[Fund]],5)","v":"095-1"},null,null,null,null,null,"418-1","418-1 St Health Care Authority Admin Acct-State"]
[null,"235-Department of Labor and Industries","162-1 Farm Labor Contractor Account-State",{"$f":"LEFT(Table_clallam_Oversight_ActiveFunds[[#This Row],[Fund]],5)","v":"162-1"},null,null,null,null,null,"419-1","419-1 Data Processing Revolving Account-State"]
[null,"235-Department of Labor and Industries","163-1 Worker/Community Right to Know Acct-State",{"$f":"LEFT(Table_clallam_Oversight_ActiveFunds[[#This Row],[Fund]],5)","v":"163-1"},null,null,null,null,null,"419-6","419-6 Data Processing Revolving Account-Non-Appropriated"]
[null,"235-Department of Labor and Industries","234-1 Public Works Administration Acct-State",{"$f":"LEFT(Table_clallam_Oversight_ActiveFunds[[#This Row],[Fund]],5)","v":"234-1"},null,null,null,null,null,"421-6","421-6 Education Technology Revolving Acct-Non-Appropriated"]
[null,"235-Department of Labor and Industries","262-1 Manufacture Home Install/Training-State",{"$f":"LEFT(Table_clallam_Oversight_ActiveFunds[[#This Row],[Fund]],5)","v":"262-1"},null,null,null,null,null,"422-6","422-6 Enterprise Services Account-Non-Appropriated"]
[null,"235-Department of Labor and Industries","445-6 Self Insur Emp Overpay Reim Acct-Non-Appropriated",{"$f":"LEFT(Table_clallam_Oversight_ActiveFunds[[#This Row],[Fund]],5)","v":"445-6"},null,null,null,null,null,"424-6","424-6 Anti-Trust Revolving Account-Non-Appropriated"]
[null,"235-Department of Labor and Industries","608-1 Accident Account-State",{"$f":"LEFT(Table_clallam_Oversight_ActiveFunds[[#This Row],[Fund]],5)","v":"608-1"},null,null,null,null,null,"433-6","433-6 Shared Game Lottery Acct-Non-Appropriated"]
[null,"235-Department of Labor and Industries","608-2 Accident Account-Federal",{"$f":"LEFT(Table_clallam_Oversight_ActiveFunds[[#This Row],[Fund]],5)","v":"608-2"},null,null,null,null,null,"436-6","436-6 OFM Labor Relations Service Acct-Non-Appropriated"]
[null,"235-Department of Labor and Industries","608-3 Accident Account-Federal Unanticipated",{"$f":"LEFT(Table_clallam_Oversight_ActiveFunds[[#This Row],[Fund]],5)","v":"608-3"},null,null,null,null,null,"438-6","438-6 Uniform Dental Plan Benefits Admin-Non-Appropriated"]
[null,"235-Department of Labor and Industries","608-6 Accident Account-Non-Appropriated",{"$f":"LEFT(Table_clallam_Oversight_ActiveFunds[[#This Row],[Fund]],5)","v":"608-6"},null,null,null,null,null,"439-6","439-6 Uniform Medical Plan Benefits Acct-Non-Appropriated"]
[null,"235-Department of Labor and Industries","608-9 Accident Account-Private/Local Unanticipated",{"$f":"LEFT(Table_clallam_Oversight_ActiveFunds[[#This Row],[Fund]],5)","v":"608-9"},null,null,null,null,null,"440-6","440-6 Inst of Hi Ed-Stores Account-Non-Appropriated"]
[null,"235-Department of Labor and Industries","609-1 Medical Aid Account-State",{"$f":"LEFT(Table_clallam_Oversight_ActiveFunds[[#This Row],[Fund]],5)","v":"609-1"},null,null,null,null,null,"441-1","441-1 Local Government Archives Account-State"]
[null,"235-Department of Labor and Industries","609-2 Medical Aid Account-Federal",{"$f":"LEFT(Table_clallam_Oversight_ActiveFunds[[#This Row],[Fund]],5)","v":"609-2"},null,null,null,null,null,"442-6","442-6 Legislative Gift Center Account-Non-Appropriated"]
[null,"235-Department of Labor and Industries","609-3 Medical Aid Account-Federal Unanticipated",{"$f":"LEFT(Table_clallam_Oversight_ActiveFunds[[#This Row],[Fund]],5)","v":"609-3"},null,null,null,null,null,"443-6","443-6 Inst of Hi Ed-Data Processing Acct-Non-Appropriated"]
[null,"235-Department of Labor and Industries","609-6 Medical Aid Account-Non-Appropriated",{"$f":"LEFT(Table_clallam_Oversight_ActiveFunds[[#This Row],[Fund]],5)","v":"609-6"},null,null,null,null,null,"444-6","444-6 Fish & Wildlife Equip Revolv Acct-Non-Appropriated"]
[null,"235-Department of Labor and Industries","609-9 Medical Aid Account-Private/Local Unanticipated",{"$f":"LEFT(Table_clallam_Oversight_ActiveFunds[[#This Row],[Fund]],5)","v":"609-9"},null,null,null,null,null,"445-6","445-6 Self Insur Emp Overpay Reim Acct-Non-Appropriated"]
[null,"235-Department of Labor and Industries","610-6 Accident Reserve Account-Non-Appropriated",{"$f":"LEFT(Table_clallam_Oversight_ActiveFunds[[#This Row],[Fund]],5)","v":"610-6"},null,null,null,null,null,"447-6","447-6 Info Tech Invest Rev Acct-Non-Appropriated"]
[null,"235-Department of Labor and Industries","881-6 Supplemental Pension Account-Non-Appropriated",{"$f":"LEFT(Table_clallam_Oversight_ActiveFunds[[#This Row],[Fund]],5)","v":"881-6"},null,null,null,null,null,"448-6","448-6 Inst of Hi Ed-Printing Account-Non-Appropriated"]
[null,"235-Department of Labor and Industries","883-6 Second Injury Account-Non-Appropriated",{"$f":"LEFT(Table_clallam_Oversight_ActiveFunds[[#This Row],[Fund]],5)","v":"883-6"},null,null,null,null,null,"450-6","450-6 Inst of Hi Ed-Other Facilities Acct-Non-Appropriated"]
[null,"235-Department of Labor and Industries","885-1 Plumbing Certificate Account-State",{"$f":"LEFT(Table_clallam_Oversight_ActiveFunds[[#This Row],[Fund]],5)","v":"885-1"},null,null,null,null,null,"453-1","453-1 OMWBE Enterprises Account-State"]
[null,"235-Department of Labor and Industries","892-1 Pressure Systems Safety Account-State",{"$f":"LEFT(Table_clallam_Oversight_ActiveFunds[[#This Row],[Fund]],5)","v":"892-1"},null,null,null,null,null,"455-1","455-1 Higher Education Personnel Services-State"]
[null,"240-Department of Licensing","001-1 General Fund-State",{"$f":"LEFT(Table_clallam_Oversight_ActiveFunds[[#This Row],[Fund]],5)","v":"001-1"},null,null,null,null,null,{"$f":"MID(K325,1,5)","v":"457-6"},"457-6 Higher Ed Retirement Benefits Revol-Non-Appropriated"]
[null,"240-Department of Licensing","003-1 Architects' License Account-State",{"$f":"LEFT(Table_clallam_Oversight_ActiveFunds[[#This Row],[Fund]],5)","v":"003-1"},null,null,null,null,null,"458-1","458-1 Consolidated Tech Services Rev Acct-State"]
[null,"240-Department of Licensing","024-1 Professional Engineers' Account-State",{"$f":"LEFT(Table_clallam_Oversight_ActiveFunds[[#This Row],[Fund]],5)","v":"024-1"},null,null,null,null,null,"458-6","458-6 Consolidated Tech Services Rev Acct-Non-Appropriated"]
[null,"240-Department of Licensing","026-1 Real Estate Commission Account-State",{"$f":"LEFT(Table_clallam_Oversight_ActiveFunds[[#This Row],[Fund]],5)","v":"026-1"},null,null,null,null,null,"458-9","458-9 Consolidated Tech Services Rev Acct-Private/Local Unanticipated"]
[null,"240-Department of Licensing","03K-6 Industrial Insurance Premium Refund-Non-Appropriated",{"$f":"LEFT(Table_clallam_Oversight_ActiveFunds[[#This Row],[Fund]],5)","v":"03K-6"},null,null,null,null,null,"460-6","460-6 Inst of Hi Ed-Motor Pool Account-Non-Appropriated"]
[null,"240-Department of Licensing","048-1 Marine Fuel Tax Refund Account-State",{"$f":"LEFT(Table_clallam_Oversight_ActiveFunds[[#This Row],[Fund]],5)","v":"048-1"},null,null,null,null,null,"461-6","461-6 Shared IT Systems Revolving Acct-Non-Appropriated"]
[null,"240-Department of Licensing","04E-1 Uniform Commercial Code Account-State",{"$f":"LEFT(Table_clallam_Oversight_ActiveFunds[[#This Row],[Fund]],5)","v":"04E-1"},null,null,null,null,null,"466-1","466-1 Statewide IT System Devel Rev Acct-State"]
[null,"240-Department of Licensing","04F-1 Real Estate Education Program Acct-State",{"$f":"LEFT(Table_clallam_Oversight_ActiveFunds[[#This Row],[Fund]],5)","v":"04F-1"},null,null,null,null,null,"468-1","468-1 OFM Central Services-State"]
[null,"240-Department of Licensing","06G-1 Real Estate Appraiser Comm Acct-State",{"$f":"LEFT(Table_clallam_Oversight_ActiveFunds[[#This Row],[Fund]],5)","v":"06G-1"},null,null,null,null,null,"470-6","470-6 Imaging Account-Non-Appropriated"]
[null,"240-Department of Licensing","06L-1 Business & Professions Account-State",{"$f":"LEFT(Table_clallam_Oversight_ActiveFunds[[#This Row],[Fund]],5)","v":"06L-1"},null,null,null,null,null,"471-6","471-6 State Patrol N Air Rev Account-Non-Appropriated"]
[null,"240-Department of Licensing","06R-1 Real Estate Research Account-State",{"$f":"LEFT(Table_clallam_Oversight_ActiveFunds[[#This Row],[Fund]],5)","v":"06R-1"},null,null,null,null,null,"472-6","472-6 Statewide IT Systems M&O Rev Acct-Non-Appropriated"]
[null,"240-Department of Licensing","06T-1 License Plate Technology Account-State",{"$f":"LEFT(Table_clallam_Oversight_ActiveFunds[[#This Row],[Fund]],5)","v":"06T-1"},null,null,null,null,null,"480-6","480-6 Financial Education Public-Private-Non-Appropriated"]
[null,"240-Department of Licensing","082-1 Motorcycle Safety Education Account-State",{"$f":"LEFT(Table_clallam_Oversight_ActiveFunds[[#This Row],[Fund]],5)","v":"082-1"},null,null,null,null,null,"483-1","483-1 Auditing Services Revolving Acct-State"]
[null,"240-Department of Licensing","104-1 State Wildlife Account-State",{"$f":"LEFT(Table_clallam_Oversight_ActiveFunds[[#This Row],[Fund]],5)","v":"104-1"},null,null,null,null,null,"484-1","484-1 Administrative Hearings Revolving-State"]
[null,"240-Department of Licensing","106-1 Highway Safety Account-State",{"$f":"LEFT(Table_clallam_Oversight_ActiveFunds[[#This Row],[Fund]],5)","v":"106-1"},null,null,null,null,null,"485-6","485-6 Horse Racing Comm-WA Bred Owners'-Non-Appropriated"]
[null,"240-Department of Licensing","106-2 Highway Safety Account-Federal",{"$f":"LEFT(Table_clallam_Oversight_ActiveFunds[[#This Row],[Fund]],5)","v":"106-2"},null,null,null,null,null,"495-6","495-6 Toll Collection Account-Non-Appropriated"]
[null,"240-Department of Licensing","106-9 Highway Safety Account-Private/Local Unanticipated",{"$f":"LEFT(Table_clallam_Oversight_ActiveFunds[[#This Row],[Fund]],5)","v":"106-9"},null,null,null,null,null,"496-6","496-6 Future Teachers Condtnl Scholarship-Non-Appropriated"]
[null,"240-Department of Licensing","108-1 Motor Vehicle Account-State",{"$f":"LEFT(Table_clallam_Oversight_ActiveFunds[[#This Row],[Fund]],5)","v":"108-1"},null,null,null,null,null,"497-6","497-6 Horse Racing Comm Class C Purse-Non-Appropriated"]
[null,"240-Department of Licensing","108-2 Motor Vehicle Account-Federal",{"$f":"LEFT(Table_clallam_Oversight_ActiveFunds[[#This Row],[Fund]],5)","v":"108-2"},null,null,null,null,null,"501-1","501-1 Liquor Revolving Account-State"]
[null,"240-Department of Licensing","108-7 Motor Vehicle Account-Private/Local",{"$f":"LEFT(Table_clallam_Oversight_ActiveFunds[[#This Row],[Fund]],5)","v":"108-7"},null,null,null,null,null,"503-6","503-6 Tuition Recovery Trust Fund-Non-Appropriated"]
[null,"240-Department of Licensing","14V-1 Ignition Interlock Device Revolving-State",{"$f":"LEFT(Table_clallam_Oversight_ActiveFunds[[#This Row],[Fund]],5)","v":"14V-1"},null,null,null,null,null,"505-6","505-6 University of Washington Hospital-Non-Appropriated"]
[null,"240-Department of Licensing","15V-6 Funeral and Cemetery Account-Non-Appropriated",{"$f":"LEFT(Table_clallam_Oversight_ActiveFunds[[#This Row],[Fund]],5)","v":"15V-6"},null,null,null,null,null,"507-1","507-1 Oyster Reserve Land Account-State"]
[null,"240-Department of Licensing","16B-6 Landscape Architects' License Acct-Non-Appropriated",{"$f":"LEFT(Table_clallam_Oversight_ActiveFunds[[#This Row],[Fund]],5)","v":"16B-6"},null,null,null,null,null,"508-6","508-6 Miscellaneous Enterprise Activities-Non-Appropriated"]
[null,"240-Department of Licensing","16M-6 Appraisal Management Company Acct-Non-Appropriated",{"$f":"LEFT(Table_clallam_Oversight_ActiveFunds[[#This Row],[Fund]],5)","v":"16M-6"},null,null,null,null,null,"511-1","511-1 Tacoma Narrows Toll Bridge Account-State"]
[null,"240-Department of Licensing","201-1 DOL Services Account-State",{"$f":"LEFT(Table_clallam_Oversight_ActiveFunds[[#This Row],[Fund]],5)","v":"201-1"},null,null,null,null,null,"512-6","512-6 Institutional Stores Account-Non-Appropriated"]
[null,"240-Department of Licensing","277-6 State Agency Parking Account-Non-Appropriated",{"$f":"LEFT(Table_clallam_Oversight_ActiveFunds[[#This Row],[Fund]],5)","v":"277-6"},null,null,null,null,null,"513-1","513-1 Derelict Vessel Removal Account-State"]
[null,"240-Department of Licensing","298-1 Geologists' Account-State",{"$f":"LEFT(Table_clallam_Oversight_ActiveFunds[[#This Row],[Fund]],5)","v":"298-1"},null,null,null,null,null,"515-6","515-6 DNA Data Base Account-Non-Appropriated"]
[null,"240-Department of Licensing","298-6 Geologists' Account-Non-Appropriated",{"$f":"LEFT(Table_clallam_Oversight_ActiveFunds[[#This Row],[Fund]],5)","v":"298-6"},null,null,null,null,null,"516-6","516-6 Fruit and Vegetable Inspection Acct-Non-Appropriated"]
[null,"240-Department of Licensing","513-1 Derelict Vessel Removal Account-State",{"$f":"LEFT(Table_clallam_Oversight_ActiveFunds[[#This Row],[Fund]],5)","v":"513-1"},null,null,null,null,null,"522-6","522-6 Inst of Hi Ed-Associated Students'-Non-Appropriated"]
[null,"245-Military Department","001-1 General Fund-State",{"$f":"LEFT(Table_clallam_Oversight_ActiveFunds[[#This Row],[Fund]],5)","v":"001-1"},null,null,null,null,null,"523-6","523-6 Public Funds Investment Account-Non-Appropriated"]
[null,"245-Military Department","001-2 General Fund-Federal",{"$f":"LEFT(Table_clallam_Oversight_ActiveFunds[[#This Row],[Fund]],5)","v":"001-2"},null,null,null,null,null,"524-6","524-6 Inst of Hi Ed-Bookstore Account-Non-Appropriated"]
[null,"245-Military Department","03F-1 Enhanced 911 Account-State",{"$f":"LEFT(Table_clallam_Oversight_ActiveFunds[[#This Row],[Fund]],5)","v":"03F-1"},null,null,null,null,null,"526-6","526-6 Veterans' Memorial Account-Non-Appropriated"]
[null,"245-Military Department","03K-6 Industrial Insurance Premium Refund-Non-Appropriated",{"$f":"LEFT(Table_clallam_Oversight_ActiveFunds[[#This Row],[Fund]],5)","v":"03K-6"},null,null,null,null,null,"528-6","528-6 Inst of Hi Ed-Parking Account-Non-Appropriated"]
[null,"245-Military Department","05H-1 Disaster Response Account-State",{"$f":"LEFT(Table_clallam_Oversight_ActiveFunds[[#This Row],[Fund]],5)","v":"05H-1"},null,null,null,null,null,"532-1","532-1 Washington Housing Trust Account-State"]
[null,"245-Military Department","05H-2 Disaster Response Account-Federal",{"$f":"LEFT(Table_clallam_Oversight_ActiveFunds[[#This Row],[Fund]],5)","v":"05H-2"},null,null,null,null,null,"536-6","536-6 Federal Food Service Revolving Acct-Non-Appropriated"]
[null,"245-Military Department","08H-1 Military Department Rent and Lease-State",{"$f":"LEFT(Table_clallam_Oversight_ActiveFunds[[#This Row],[Fund]],5)","v":"08H-1"},null,null,null,null,null,"543-1","543-1 Judicial Information Systems Acct-State"]
[null,"245-Military Department","12H-6 Uniformed Service Shared Leave Pool-Non-Appropriated",{"$f":"LEFT(Table_clallam_Oversight_ActiveFunds[[#This Row],[Fund]],5)","v":"12H-6"},null,null,null,null,null,"544-1","544-1 Pollution Liab Insurance Prog Trust-State"]
[null,"245-Military Department","163-1 Worker/Community Right to Know Acct-State",{"$f":"LEFT(Table_clallam_Oversight_ActiveFunds[[#This Row],[Fund]],5)","v":"163-1"},null,null,null,null,null,"544-6","544-6 Pollution Liab Insurance Prog Trust-Non-Appropriated"]
[null,"245-Military Department","217-1 Oil Spill Prevention Account-State",{"$f":"LEFT(Table_clallam_Oversight_ActiveFunds[[#This Row],[Fund]],5)","v":"217-1"},null,null,null,null,null,"545-6","545-6 Heating Oil Pollution Liab Trust-Non-Appropriated"]
[null,"275-Public Employment Relations Comm","001-1 General Fund-State",{"$f":"LEFT(Table_clallam_Oversight_ActiveFunds[[#This Row],[Fund]],5)","v":"001-1"},null,null,null,null,null,"546-6","546-6 Risk Management Administration Acct-Non-Appropriated"]
[null,"275-Public Employment Relations Comm","03K-6 Industrial Insurance Premium Refund-Non-Appropriated",{"$f":"LEFT(Table_clallam_Oversight_ActiveFunds[[#This Row],[Fund]],5)","v":"03K-6"},null,null,null,null,null,"547-6","547-6 Liability Account-Non-Appropriated"]
[null,"275-Public Employment Relations Comm","415-1 Personnel Service Account-State",{"$f":"LEFT(Table_clallam_Oversight_ActiveFunds[[#This Row],[Fund]],5)","v":"415-1"},null,null,null,null,null,"548-6","548-6 LEOFF Plan 2 Expense Fund-Non-Appropriated"]
[null,"275-Public Employment Relations Comm","455-1 Higher Education Personnel Services-State",{"$f":"LEFT(Table_clallam_Oversight_ActiveFunds[[#This Row],[Fund]],5)","v":"455-1"},null,null,null,null,null,"549-2","549-2 Election Account-Federal"]
[null,"300-Dept of Social and Health Services","001-1 General Fund-State",{"$f":"LEFT(Table_clallam_Oversight_ActiveFunds[[#This Row],[Fund]],5)","v":"001-1"},null,null,null,null,null,"550-1","550-1 Transportation 2003 Acct (Nickel)-State"]
[null,"300-Dept of Social and Health Services","001-2 General Fund-Federal",{"$f":"LEFT(Table_clallam_Oversight_ActiveFunds[[#This Row],[Fund]],5)","v":"001-2"},null,null,null,null,null,"553-1","553-1 Performance Audits of Govt Acct-State"]
[null,"300-Dept of Social and Health Services","001-3 General Fund-Federal Unanticipated",{"$f":"LEFT(Table_clallam_Oversight_ActiveFunds[[#This Row],[Fund]],5)","v":"001-3"},null,null,null,null,null,"553-6","553-6 Performance Audits of Govt Acct-Non-Appropriated"]
[null,"300-Dept of Social and Health Services","001-7 General Fund-Private/Local",{"$f":"LEFT(Table_clallam_Oversight_ActiveFunds[[#This Row],[Fund]],5)","v":"001-7"},null,null,null,null,null,"561-6","561-6 Comm/Tech College Innovation Accoun-Non-Appropriated"]
[null,"300-Dept of Social and Health Services","001-9 General Fund-Private/Local Unanticipated",{"$f":"LEFT(Table_clallam_Oversight_ActiveFunds[[#This Row],[Fund]],5)","v":"001-9"},null,null,null,null,null,"562-1","562-1 Skilled Nursing Facil Saf Net Trust-State"]
[null,"300-Dept of Social and Health Services","03K-6 Industrial Insurance Premium Refund-Non-Appropriated",{"$f":"LEFT(Table_clallam_Oversight_ActiveFunds[[#This Row],[Fund]],5)","v":"03K-6"},null,null,null,null,null,"564-1","564-1 Water Pollution Ctrl Revl Admin-State"]
[null,"300-Dept of Social and Health Services","05C-1 Criminal Justice Treatment Account-State",{"$f":"LEFT(Table_clallam_Oversight_ActiveFunds[[#This Row],[Fund]],5)","v":"05C-1"},null,null,null,null,null,"566-1","566-1 Community Forest Trust Account-State"]
[null,"300-Dept of Social and Health Services","07W-1 Domestic Violence Prevention Acct-State",{"$f":"LEFT(Table_clallam_Oversight_ActiveFunds[[#This Row],[Fund]],5)","v":"07W-1"},null,null,null,null,null,"569-6","569-6 Inst of Hi Ed-Food Services Account-Non-Appropriated"]
[null,"300-Dept of Social and Health Services","08K-1 Problem Gambling Account-State",{"$f":"LEFT(Table_clallam_Oversight_ActiveFunds[[#This Row],[Fund]],5)","v":"08K-1"},null,null,null,null,null,"570-6","570-6 Inst of Hi Ed-Other Enterprises-Non-Appropriated"]
[null,"300-Dept of Social and Health Services","11K-1 Washington Auto Theft Prevention-State",{"$f":"LEFT(Table_clallam_Oversight_ActiveFunds[[#This Row],[Fund]],5)","v":"11K-1"},null,null,null,null,null,"571-1","571-1 Multiuse Roadway Safety Account-State"]
[null,"300-Dept of Social and Health Services","120-1 Administrative Contingency Account-State",{"$f":"LEFT(Table_clallam_Oversight_ActiveFunds[[#This Row],[Fund]],5)","v":"120-1"},null,null,null,null,null,"573-6","573-6 Inst of Hi Ed-Housing & Food Acct-Non-Appropriated"]
[null,"300-Dept of Social and Health Services","12E-6 Assisted Living Fac Temp Mgmt Acct-Non-Appropriated",{"$f":"LEFT(Table_clallam_Oversight_ActiveFunds[[#This Row],[Fund]],5)","v":"12E-6"},null,null,null,null,null,"575-6","575-6 Vocational Ed Revolving-Corrections-Non-Appropriated"]
[null,"300-Dept of Social and Health Services","12T-1 Traumatic Brain Injury Account-State",{"$f":"LEFT(Table_clallam_Oversight_ActiveFunds[[#This Row],[Fund]],5)","v":"12T-1"},null,null,null,null,null,"577-6","577-6 State Lottery Account-Non-Appropriated"]
[null,"300-Dept of Social and Health Services","18T-1 Child and Family Reinvestment Acc-State",{"$f":"LEFT(Table_clallam_Oversight_ActiveFunds[[#This Row],[Fund]],5)","v":"18T-1"},null,null,null,null,null,"578-1","578-1 Lottery Administrative Account-State"]
[null,"300-Dept of Social and Health Services","20S-1 Gov's Behavioral Health Innovation-State",{"$f":"LEFT(Table_clallam_Oversight_ActiveFunds[[#This Row],[Fund]],5)","v":"20S-1"},null,null,null,null,null,"595-1","595-1 I-405 Express Toll Lanes Operations-State"]
[null,"300-Dept of Social and Health Services","274-6 Adult Family Home Account-Non-Appropriated",{"$f":"LEFT(Table_clallam_Oversight_ActiveFunds[[#This Row],[Fund]],5)","v":"274-6"},null,null,null,null,null,"600-1","600-1 Dept of Retirement Systems Expense-State"]
[null,"300-Dept of Social and Health Services","283-2 Juvenile Acctbl Incentive Acct-Federal",{"$f":"LEFT(Table_clallam_Oversight_ActiveFunds[[#This Row],[Fund]],5)","v":"283-2"},null,null,null,null,null,"600-6","600-6 Dept of Retirement Systems Expense-Non-Appropriated"]
[null,"300-Dept of Social and Health Services","315-1 Dedicated Marijuana Account-State",{"$f":"LEFT(Table_clallam_Oversight_ActiveFunds[[#This Row],[Fund]],5)","v":"315-1"},null,null,null,null,null,"608-1","608-1 Accident Account-State"]
[null,"300-Dept of Social and Health Services","447-6 Info Tech Invest Rev Acct-Non-Appropriated",{"$f":"LEFT(Table_clallam_Oversight_ActiveFunds[[#This Row],[Fund]],5)","v":"447-6"},null,null,null,null,null,"608-2","608-2 Accident Account-Federal"]
[null,"300-Dept of Social and Health Services","512-6 Institutional Stores Account-Non-Appropriated",{"$f":"LEFT(Table_clallam_Oversight_ActiveFunds[[#This Row],[Fund]],5)","v":"512-6"},null,null,null,null,null,"608-3","608-3 Accident Account-Federal Unanticipated"]
[null,"300-Dept of Social and Health Services","562-1 Skilled Nursing Facil Saf Net Trust-State",{"$f":"LEFT(Table_clallam_Oversight_ActiveFunds[[#This Row],[Fund]],5)","v":"562-1"},null,null,null,null,null,"608-6","608-6 Accident Account-Non-Appropriated"]
[null,"300-Dept of Social and Health Services","800-6 Institutional Welfare/Betterment-Non-Appropriated",{"$f":"LEFT(Table_clallam_Oversight_ActiveFunds[[#This Row],[Fund]],5)","v":"800-6"},null,null,null,null,null,{"$f":"MID(K389,1,5)","v":"608-9"},"608-9 Accident Account-Private/Local Unanticipated"]
[null,"303-Department of Health","001-1 General Fund-State",{"$f":"LEFT(Table_clallam_Oversight_ActiveFunds[[#This Row],[Fund]],5)","v":"001-1"},null,null,null,null,null,"609-1","609-1 Medical Aid Account-State"]
[null,"303-Department of Health","001-2 General Fund-Federal",{"$f":"LEFT(Table_clallam_Oversight_ActiveFunds[[#This Row],[Fund]],5)","v":"001-2"},null,null,null,null,null,"609-2","609-2 Medical Aid Account-Federal"]
[null,"303-Department of Health","001-7 General Fund-Private/Local",{"$f":"LEFT(Table_clallam_Oversight_ActiveFunds[[#This Row],[Fund]],5)","v":"001-7"},null,null,null,null,null,"609-3","609-3 Medical Aid Account-Federal Unanticipated"]
[null,"303-Department of Health","001-8 General Fund-Federal ARRA",{"$f":"LEFT(Table_clallam_Oversight_ActiveFunds[[#This Row],[Fund]],5)","v":"001-8"},null,null,null,null,null,"609-6","609-6 Medical Aid Account-Non-Appropriated"]
[null,"303-Department of Health","002-1 Hospital Data Collection Account-State",{"$f":"LEFT(Table_clallam_Oversight_ActiveFunds[[#This Row],[Fund]],5)","v":"002-1"},null,null,null,null,null,"609-9","609-9 Medical Aid Account-Private/Local Unanticipated"]
[null,"303-Department of Health","02G-1 Health Professions Account-State",{"$f":"LEFT(Table_clallam_Oversight_ActiveFunds[[#This Row],[Fund]],5)","v":"02G-1"},null,null,null,null,null,"610-6","610-6 Accident Reserve Account-Non-Appropriated"]
[null,"303-Department of Health","02R-1 Aquatic Lands Enhancement Account-State",{"$f":"LEFT(Table_clallam_Oversight_ActiveFunds[[#This Row],[Fund]],5)","v":"02R-1"},null,null,null,null,null,"614-6","614-6 Vol Firefight/Rsrv Officers Princip-Non-Appropriated"]
[null,"303-Department of Health","03C-1 Emer Med Ser/Trauma Care Sys Trust-State",{"$f":"LEFT(Table_clallam_Oversight_ActiveFunds[[#This Row],[Fund]],5)","v":"03C-1"},null,null,null,null,null,"615-6","615-6 Washington State Patrol Retirement-Non-Appropriated"]
[null,"303-Department of Health","03R-1 Safe Drinking Water Account-State",{"$f":"LEFT(Table_clallam_Oversight_ActiveFunds[[#This Row],[Fund]],5)","v":"03R-1"},null,null,null,null,null,"616-6","616-6 Judges' Retirement Account-Non-Appropriated"]
[null,"303-Department of Health","04R-2 Drinking Water Assistance Account-Federal",{"$f":"LEFT(Table_clallam_Oversight_ActiveFunds[[#This Row],[Fund]],5)","v":"04R-2"},null,null,null,null,null,"620-6","620-6 Unemployment Compensation Account-Non-Appropriated"]
[null,"303-Department of Health","04W-1 Waterworks Operator Certification-State",{"$f":"LEFT(Table_clallam_Oversight_ActiveFunds[[#This Row],[Fund]],5)","v":"04W-1"},null,null,null,null,null,"622-6","622-6 Unemployment Comp Fed Emp Ben Pmt-Non-Appropriated"]
[null,"303-Department of Health","05R-1 Drinking Water Assist Admin Acct-State",{"$f":"LEFT(Table_clallam_Oversight_ActiveFunds[[#This Row],[Fund]],5)","v":"05R-1"},null,null,null,null,null,"630-6","630-6 WSP Retirement System Plan 2 Acct-Non-Appropriated"]
[null,"303-Department of Health","09L-6 Nursing Resource Center Account-Non-Appropriated",{"$f":"LEFT(Table_clallam_Oversight_ActiveFunds[[#This Row],[Fund]],5)","v":"09L-6"},null,null,null,null,null,"631-6","631-6 Public Employees' Retire Sys Plan I-Non-Appropriated"]
[null,"303-Department of Health","125-1 Site Closure Account-State",{"$f":"LEFT(Table_clallam_Oversight_ActiveFunds[[#This Row],[Fund]],5)","v":"125-1"},null,null,null,null,null,"632-6","632-6 Teachers' Retirement Plan I Acct-Non-Appropriated"]
[null,"303-Department of Health","14J-6 Ambulatory Surgical Facility Acct-Non-Appropriated",{"$f":"LEFT(Table_clallam_Oversight_ActiveFunds[[#This Row],[Fund]],5)","v":"14J-6"},null,null,null,null,null,"633-6","633-6 School Employee Comb Plan 2 & 3-Non-Appropriated"]
[null,"303-Department of Health","15M-1 Biotoxin Account-State",{"$f":"LEFT(Table_clallam_Oversight_ActiveFunds[[#This Row],[Fund]],5)","v":"15M-1"},null,null,null,null,null,"635-6","635-6 Public Employees Retirement Plan 2-Non-Appropriated"]
[null,"303-Department of Health","16G-6 Universal Vaccine Purchase Account-Non-Appropriated",{"$f":"LEFT(Table_clallam_Oversight_ActiveFunds[[#This Row],[Fund]],5)","v":"16G-6"},null,null,null,null,null,"641-6","641-6 Public Employees' Comb Plan 2 & 3-Non-Appropriated"]
[null,"303-Department of Health","173-1 State Toxics Control Account-State",{"$f":"LEFT(Table_clallam_Oversight_ActiveFunds[[#This Row],[Fund]],5)","v":"173-1"},null,null,null,null,null,"642-6","642-6 Teachers' Combined Plan II & III-Non-Appropriated"]
[null,"303-Department of Health","19A-1 Medicaid Fraud Penalty Account-State",{"$f":"LEFT(Table_clallam_Oversight_ActiveFunds[[#This Row],[Fund]],5)","v":"19A-1"},null,null,null,null,null,"687-6","687-6 Rural Rehabilitation Account-Non-Appropriated"]
[null,"303-Department of Health","202-1 Medical Test Site Licensure Account-State",{"$f":"LEFT(Table_clallam_Oversight_ActiveFunds[[#This Row],[Fund]],5)","v":"202-1"},null,null,null,null,null,"721-6","721-6 Public Employees/Retirees Insurance-Non-Appropriated"]
[null,"303-Department of Health","214-6 Temporary Worker Housing Account-Non-Appropriated",{"$f":"LEFT(Table_clallam_Oversight_ActiveFunds[[#This Row],[Fund]],5)","v":"214-6"},null,null,null,null,null,"722-6","722-6 Deferred Compensation Principal-Non-Appropriated"]
[null,"303-Department of Health","235-1 Youth Tobacco/Vapor Prod Prev Acct-State",{"$f":"LEFT(Table_clallam_Oversight_ActiveFunds[[#This Row],[Fund]],5)","v":"235-1"},null,null,null,null,null,"727-1","727-1 Water Pollution Control Revolving-State"]
[null,"303-Department of Health","277-6 State Agency Parking Account-Non-Appropriated",{"$f":"LEFT(Table_clallam_Oversight_ActiveFunds[[#This Row],[Fund]],5)","v":"277-6"},null,null,null,null,null,"727-2","727-2 Water Pollution Control Revolving-Federal"]
[null,"303-Department of Health","315-1 Dedicated Marijuana Account-State",{"$f":"LEFT(Table_clallam_Oversight_ActiveFunds[[#This Row],[Fund]],5)","v":"315-1"},null,null,null,null,null,"729-6","729-6 Judicial Retirement Principal Acct-Non-Appropriated"]
[null,"303-Department of Health","319-7 Public Health Supplemental Acct-Private/Local",{"$f":"LEFT(Table_clallam_Oversight_ActiveFunds[[#This Row],[Fund]],5)","v":"319-7"},null,null,null,null,null,"731-6","731-6 Child Care Facility Revolving Acct-Non-Appropriated"]
[null,"303-Department of Health","608-1 Accident Account-State",{"$f":"LEFT(Table_clallam_Oversight_ActiveFunds[[#This Row],[Fund]],5)","v":"608-1"},null,null,null,null,null,"746-6","746-6 Hanford Area Economic Investment-Non-Appropriated"]
[null,"303-Department of Health","609-1 Medical Aid Account-State",{"$f":"LEFT(Table_clallam_Oversight_ActiveFunds[[#This Row],[Fund]],5)","v":"609-1"},null,null,null,null,null,"747-1","747-1 Health Prof Loan Repay/Scholar Prog-State"]
[null,"303-Department of Health","821-6 Impaired Physician Account-Non-Appropriated",{"$f":"LEFT(Table_clallam_Oversight_ActiveFunds[[#This Row],[Fund]],5)","v":"821-6"},null,null,null,null,null,"747-6","747-6 Health Prof Loan Repay/Scholar Prog-Non-Appropriated"]
[null,"305-Department of Veterans' Affairs","001-1 General Fund-State",{"$f":"LEFT(Table_clallam_Oversight_ActiveFunds[[#This Row],[Fund]],5)","v":"001-1"},null,null,null,null,null,"749-6","749-6 Governor's ICSEW Account-Non-Appropriated"]
[null,"305-Department of Veterans' Affairs","001-2 General Fund-Federal",{"$f":"LEFT(Table_clallam_Oversight_ActiveFunds[[#This Row],[Fund]],5)","v":"001-2"},null,null,null,null,null,"759-6","759-6 Miscellaneous Program Account-Non-Appropriated"]
[null,"305-Department of Veterans' Affairs","001-3 General Fund-Federal Unanticipated",{"$f":"LEFT(Table_clallam_Oversight_ActiveFunds[[#This Row],[Fund]],5)","v":"001-3"},null,null,null,null,null,"776-6","776-6 WSU License Plate Account-Non-Appropriated"]
[null,"305-Department of Veterans' Affairs","001-7 General Fund-Private/Local",{"$f":"LEFT(Table_clallam_Oversight_ActiveFunds[[#This Row],[Fund]],5)","v":"001-7"},null,null,null,null,null,"777-1","777-1 Prostitution Prevent & Intervention-State"]
[null,"305-Department of Veterans' Affairs","001-9 General Fund-Private/Local Unanticipated",{"$f":"LEFT(Table_clallam_Oversight_ActiveFunds[[#This Row],[Fund]],5)","v":"001-9"},null,null,null,null,null,"778-6","778-6 WWU License Plate Account-Non-Appropriated"]
[null,"305-Department of Veterans' Affairs","03K-6 Industrial Insurance Premium Refund-Non-Appropriated",{"$f":"LEFT(Table_clallam_Oversight_ActiveFunds[[#This Row],[Fund]],5)","v":"03K-6"},null,null,null,null,null,"779-6","779-6 EWU License Plate Account-Non-Appropriated"]
[null,"305-Department of Veterans' Affairs","042-1 Char/Ed/Penal/Reform/Institutions-State",{"$f":"LEFT(Table_clallam_Oversight_ActiveFunds[[#This Row],[Fund]],5)","v":"042-1"},null,null,null,null,null,"780-1","780-1 School Zone Safety Account-State"]
[null,"305-Department of Veterans' Affairs","08V-6 Veterans Stewardship Account-Non-Appropriated",{"$f":"LEFT(Table_clallam_Oversight_ActiveFunds[[#This Row],[Fund]],5)","v":"08V-6"},null,null,null,null,null,"784-6","784-6 Misc Transportation Programs Acct-Non-Appropriated"]
[null,"305-Department of Veterans' Affairs","11V-7 Veteran Estate Management Account-Private/Local",{"$f":"LEFT(Table_clallam_Oversight_ActiveFunds[[#This Row],[Fund]],5)","v":"11V-7"},null,null,null,null,null,"785-6","785-6 State Educational Trust Fund Acct-Non-Appropriated"]
[null,"305-Department of Veterans' Affairs","11V-9 Veteran Estate Management Account-Private/Local Unanticipated",{"$f":"LEFT(Table_clallam_Oversight_ActiveFunds[[#This Row],[Fund]],5)","v":"11V-9"},null,null,null,null,null,"786-6","786-6 TESC License Plate Account-Non-Appropriated"]
[null,"305-Department of Veterans' Affairs","213-6 Veterans' Emblem Account-Non-Appropriated",{"$f":"LEFT(Table_clallam_Oversight_ActiveFunds[[#This Row],[Fund]],5)","v":"213-6"},null,null,null,null,null,"788-6","788-6 Adv College Tuition Payment Pgm-Non-Appropriated"]
[null,"305-Department of Veterans' Affairs","526-6 Veterans' Memorial Account-Non-Appropriated",{"$f":"LEFT(Table_clallam_Oversight_ActiveFunds[[#This Row],[Fund]],5)","v":"526-6"},null,null,null,null,null,"800-6","800-6 Institutional Welfare/Betterment-Non-Appropriated"]
[null,"305-Department of Veterans' Affairs","759-6 Miscellaneous Program Account-Non-Appropriated",{"$f":"LEFT(Table_clallam_Oversight_ActiveFunds[[#This Row],[Fund]],5)","v":"759-6"},null,null,null,null,null,"818-6","818-6 Youth Athletic Facility Account-Non-Appropriated"]
[null,"305-Department of Veterans' Affairs","800-6 Institutional Welfare/Betterment-Non-Appropriated",{"$f":"LEFT(Table_clallam_Oversight_ActiveFunds[[#This Row],[Fund]],5)","v":"800-6"},null,null,null,null,null,"819-6","819-6 LEOFF Retirement Plan I Acct-Non-Appropriated"]
[null,"310-Department of Corrections","001-1 General Fund-State",{"$f":"LEFT(Table_clallam_Oversight_ActiveFunds[[#This Row],[Fund]],5)","v":"001-1"},null,null,null,null,null,"821-6","821-6 Impaired Physician Account-Non-Appropriated"]
[null,"310-Department of Corrections","001-2 General Fund-Federal",{"$f":"LEFT(Table_clallam_Oversight_ActiveFunds[[#This Row],[Fund]],5)","v":"001-2"},null,null,null,null,null,"823-6","823-6 Livestock Nutrient Management Acct-Non-Appropriated"]
[null,"310-Department of Corrections","001-3 General Fund-Federal Unanticipated",{"$f":"LEFT(Table_clallam_Oversight_ActiveFunds[[#This Row],[Fund]],5)","v":"001-3"},null,null,null,null,null,"828-1","828-1 Tobacco Prevention and Control Acct-State"]
[null,"310-Department of Corrections","11K-1 Washington Auto Theft Prevention-State",{"$f":"LEFT(Table_clallam_Oversight_ActiveFunds[[#This Row],[Fund]],5)","v":"11K-1"},null,null,null,null,null,"829-6","829-6 LEOFF Retirement Plan II Acct-Non-Appropriated"]
[null,"310-Department of Corrections","141-6 Federal Seizure Account-Non-Appropriated",{"$f":"LEFT(Table_clallam_Oversight_ActiveFunds[[#This Row],[Fund]],5)","v":"141-6"},null,null,null,null,null,"830-1","830-1 Agricultural Coll Trust Mgmt Acct-State"]
[null,"310-Department of Corrections","173-1 State Toxics Control Account-State",{"$f":"LEFT(Table_clallam_Oversight_ActiveFunds[[#This Row],[Fund]],5)","v":"173-1"},null,null,null,null,null,"833-6","833-6 Develop Disability Endowment Trust-Non-Appropriated"]
[null,"310-Department of Corrections","206-6 Cost of Supervision Account-Non-Appropriated",{"$f":"LEFT(Table_clallam_Oversight_ActiveFunds[[#This Row],[Fund]],5)","v":"206-6"},null,null,null,null,null,"834-6","834-6 Capitol Furnishing Preserv Comm-Non-Appropriated"]
[null,"310-Department of Corrections","226-6 State Seizure Account-Non-Appropriated",{"$f":"LEFT(Table_clallam_Oversight_ActiveFunds[[#This Row],[Fund]],5)","v":"226-6"},null,null,null,null,null,"835-6","835-6 4-Yr Student Child Care in HE Acct-Non-Appropriated"]
[null,"310-Department of Corrections","401-6 Correctional Industries Account-Non-Appropriated",{"$f":"LEFT(Table_clallam_Oversight_ActiveFunds[[#This Row],[Fund]],5)","v":"401-6"},null,null,null,null,null,"841-6","841-6 G. Robert Ross Endowment Account-Non-Appropriated"]
[null,"310-Department of Corrections","447-6 Info Tech Invest Rev Acct-Non-Appropriated",{"$f":"LEFT(Table_clallam_Oversight_ActiveFunds[[#This Row],[Fund]],5)","v":"447-6"},null,null,null,null,null,"842-6","842-6 Amer Indian Scholarship Endowment-Non-Appropriated"]
[null,"310-Department of Corrections","512-6 Institutional Stores Account-Non-Appropriated",{"$f":"LEFT(Table_clallam_Oversight_ActiveFunds[[#This Row],[Fund]],5)","v":"512-6"},null,null,null,null,null,"846-6","846-6 Grant-In-Aid Scholarship/Fellowship-Non-Appropriated"]
[null,"310-Department of Corrections","575-6 Vocational Ed Revolving-Corrections-Non-Appropriated",{"$f":"LEFT(Table_clallam_Oversight_ActiveFunds[[#This Row],[Fund]],5)","v":"575-6"},null,null,null,null,null,"849-6","849-6 Inst of Hi Ed-Student Loan Account-Non-Appropriated"]
[null,"310-Department of Corrections","759-6 Miscellaneous Program Account-Non-Appropriated",{"$f":"LEFT(Table_clallam_Oversight_ActiveFunds[[#This Row],[Fund]],5)","v":"759-6"},null,null,null,null,null,"850-6","850-6 Inst of Hi Ed-Work Study Account-Non-Appropriated"]
[null,"310-Department of Corrections","800-6 Institutional Welfare/Betterment-Non-Appropriated",{"$f":"LEFT(Table_clallam_Oversight_ActiveFunds[[#This Row],[Fund]],5)","v":"800-6"},null,null,null,null,null,"857-6","857-6 Inst of Hi Ed-Annuity & Life Income-Non-Appropriated"]
[null,"315-Dept of Services for the Blind","001-1 General Fund-State",{"$f":"LEFT(Table_clallam_Oversight_ActiveFunds[[#This Row],[Fund]],5)","v":"001-1"},null,null,null,null,null,"859-6","859-6 Inst of Hi Ed-Endowment Local Acct-Non-Appropriated"]
[null,"315-Dept of Services for the Blind","001-2 General Fund-Federal",{"$f":"LEFT(Table_clallam_Oversight_ActiveFunds[[#This Row],[Fund]],5)","v":"001-2"},null,null,null,null,null,"860-6","860-6 Inst of Hi Ed-Long Term Loan Acct-Non-Appropriated"]
[null,"315-Dept of Services for the Blind","001-7 General Fund-Private/Local",{"$f":"LEFT(Table_clallam_Oversight_ActiveFunds[[#This Row],[Fund]],5)","v":"001-7"},null,null,null,null,null,"874-6","874-6 OASI Revolving Account-Non-Appropriated"]
[null,"315-Dept of Services for the Blind","02H-6 Business Enterprises Revolving Acct-Non-Appropriated",{"$f":"LEFT(Table_clallam_Oversight_ActiveFunds[[#This Row],[Fund]],5)","v":"02H-6"},null,null,null,null,null,"881-6","881-6 Supplemental Pension Account-Non-Appropriated"]
[null,"315-Dept of Services for the Blind","03K-6 Industrial Insurance Premium Refund-Non-Appropriated",{"$f":"LEFT(Table_clallam_Oversight_ActiveFunds[[#This Row],[Fund]],5)","v":"03K-6"},null,null,null,null,null,"882-6","882-6 Washington Judicial Retirement Acct-Non-Appropriated"]
[null,"340-Student Achievement Council","001-1 General Fund-State",{"$f":"LEFT(Table_clallam_Oversight_ActiveFunds[[#This Row],[Fund]],5)","v":"001-1"},null,null,null,null,null,"883-6","883-6 Second Injury Account-Non-Appropriated"]
[null,"340-Student Achievement Council","001-2 General Fund-Federal",{"$f":"LEFT(Table_clallam_Oversight_ActiveFunds[[#This Row],[Fund]],5)","v":"001-2"},null,null,null,null,null,"884-6","884-6 Gambling Revolving Account-Non-Appropriated"]
[null,"340-Student Achievement Council","001-7 General Fund-Private/Local",{"$f":"LEFT(Table_clallam_Oversight_ActiveFunds[[#This Row],[Fund]],5)","v":"001-7"},null,null,null,null,null,{"$f":"MID(K453,1,5)","v":"885-1"},"885-1 Plumbing Certificate Account-State"]
[null,"340-Student Achievement Council","03K-6 Industrial Insurance Premium Refund-Non-Appropriated",{"$f":"LEFT(Table_clallam_Oversight_ActiveFunds[[#This Row],[Fund]],5)","v":"03K-6"},null,null,null,null,null,"887-1","887-1 Public Facility Const Loan Revolv-State"]
[null,"340-Student Achievement Council","08A-1 Education Legacy Trust Account-State",{"$f":"LEFT(Table_clallam_Oversight_ActiveFunds[[#This Row],[Fund]],5)","v":"08A-1"},null,null,null,null,null,"888-6","888-6 Deferred Compensation Admin Account-Non-Appropriated"]
[null,"340-Student Achievement Council","08N-6 State Financial Aid Account-Non-Appropriated",{"$f":"LEFT(Table_clallam_Oversight_ActiveFunds[[#This Row],[Fund]],5)","v":"08N-6"},null,null,null,null,null,"892-1","892-1 Pressure Systems Safety Account-State"]
[null,"340-Student Achievement Council","17F-1 WA Opportunity Pathways Account-State",{"$f":"LEFT(Table_clallam_Oversight_ActiveFunds[[#This Row],[Fund]],5)","v":"17F-1"}]
[null,"340-Student Achievement Council","17R-1 Aerospace Training Student Loan Acc-State",{"$f":"LEFT(Table_clallam_Oversight_ActiveFunds[[#This Row],[Fund]],5)","v":"17R-1"}]
[null,"340-Student Achievement Council","17R-6 Aerospace Training Student Loan Acc-Non-Appropriated",{"$f":"LEFT(Table_clallam_Oversight_ActiveFunds[[#This Row],[Fund]],5)","v":"17R-6"}]
[null,"340-Student Achievement Council","18G-6 Opportunity Scholarship Match Trans-Non-Appropriated",{"$f":"LEFT(Table_clallam_Oversight_ActiveFunds[[#This Row],[Fund]],5)","v":"18G-6"}]
[null,"340-Student Achievement Council","18H-1 Opportunity Expansion Account-State",{"$f":"LEFT(Table_clallam_Oversight_ActiveFunds[[#This Row],[Fund]],5)","v":"18H-1"}]
[null,"340-Student Achievement Council","496-6 Future Teachers Condtnl Scholarship-Non-Appropriated",{"$f":"LEFT(Table_clallam_Oversight_ActiveFunds[[#This Row],[Fund]],5)","v":"496-6"}]
[null,"340-Student Achievement Council","747-1 Health Prof Loan Repay/Scholar Prog-State",{"$f":"LEFT(Table_clallam_Oversight_ActiveFunds[[#This Row],[Fund]],5)","v":"747-1"}]
[null,"340-Student Achievement Council","747-6 Health Prof Loan Repay/Scholar Prog-Non-Appropriated",{"$f":"LEFT(Table_clallam_Oversight_ActiveFunds[[#This Row],[Fund]],5)","v":"747-6"}]
[null,"340-Student Achievement Council","785-6 State Educational Trust Fund Acct-Non-Appropriated",{"$f":"LEFT(Table_clallam_Oversight_ActiveFunds[[#This Row],[Fund]],5)","v":"785-6"}]
[null,"340-Student Achievement Council","788-6 Adv College Tuition Payment Pgm-Non-Appropriated",{"$f":"LEFT(Table_clallam_Oversight_ActiveFunds[[#This Row],[Fund]],5)","v":"788-6"}]
[null,"340-Student Achievement Council","835-6 4-Yr Student Child Care in HE Acct-Non-Appropriated",{"$f":"LEFT(Table_clallam_Oversight_ActiveFunds[[#This Row],[Fund]],5)","v":"835-6"}]
[null,"340-Student Achievement Council","842-6 Amer Indian Scholarship Endowment-Non-Appropriated",{"$f":"LEFT(Table_clallam_Oversight_ActiveFunds[[#This Row],[Fund]],5)","v":"842-6"}]
[null,"341-LEOFF 2 Retirement Board","548-6 LEOFF Plan 2 Expense Fund-Non-Appropriated",{"$f":"LEFT(Table_clallam_Oversight_ActiveFunds[[#This Row],[Fund]],5)","v":"548-6"}]
[null,"350-Public Schools","001-1 General Fund-State",{"$f":"LEFT(Table_clallam_Oversight_ActiveFunds[[#This Row],[Fund]],5)","v":"001-1"}]
[null,"350-Public Schools","001-2 General Fund-Federal",{"$f":"LEFT(Table_clallam_Oversight_ActiveFunds[[#This Row],[Fund]],5)","v":"001-2"}]
[null,"350-Public Schools","001-7 General Fund-Private/Local",{"$f":"LEFT(Table_clallam_Oversight_ActiveFunds[[#This Row],[Fund]],5)","v":"001-7"}]
[null,"350-Public Schools","08A-1 Education Legacy Trust Account-State",{"$f":"LEFT(Table_clallam_Oversight_ActiveFunds[[#This Row],[Fund]],5)","v":"08A-1"}]
[null,"350-Public Schools","17F-1 WA Opportunity Pathways Account-State",{"$f":"LEFT(Table_clallam_Oversight_ActiveFunds[[#This Row],[Fund]],5)","v":"17F-1"}]
[null,"350-Public Schools","18E-6 Educator Certification Proccessing-Non-Appropriated",{"$f":"LEFT(Table_clallam_Oversight_ActiveFunds[[#This Row],[Fund]],5)","v":"18E-6"}]
[null,"350-Public Schools","315-1 Dedicated Marijuana Account-State",{"$f":"LEFT(Table_clallam_Oversight_ActiveFunds[[#This Row],[Fund]],5)","v":"315-1"}]
[null,"350-Public Schools","416-6 Surplus/Donated Food Commod Revolv-Non-Appropriated",{"$f":"LEFT(Table_clallam_Oversight_ActiveFunds[[#This Row],[Fund]],5)","v":"416-6"}]
[null,"350-Public Schools","480-6 Financial Education Public-Private-Non-Appropriated",{"$f":"LEFT(Table_clallam_Oversight_ActiveFunds[[#This Row],[Fund]],5)","v":"480-6"}]
[null,"350-Public Schools","536-6 Federal Food Service Revolving Acct-Non-Appropriated",{"$f":"LEFT(Table_clallam_Oversight_ActiveFunds[[#This Row],[Fund]],5)","v":"536-6"}]
[null,"350-Public Schools","553-1 Performance Audits of Govt Acct-State",{"$f":"LEFT(Table_clallam_Oversight_ActiveFunds[[#This Row],[Fund]],5)","v":"553-1"}]
[null,"350-Public Schools","759-6 Miscellaneous Program Account-Non-Appropriated",{"$f":"LEFT(Table_clallam_Oversight_ActiveFunds[[#This Row],[Fund]],5)","v":"759-6"}]
[null,"351-State School for the Blind","001-1 General Fund-State",{"$f":"LEFT(Table_clallam_Oversight_ActiveFunds[[#This Row],[Fund]],5)","v":"001-1"}]
[null,"351-State School for the Blind","001-7 General Fund-Private/Local",{"$f":"LEFT(Table_clallam_Oversight_ActiveFunds[[#This Row],[Fund]],5)","v":"001-7"}]
[null,"351-State School for the Blind","03K-6 Industrial Insurance Premium Refund-Non-Appropriated",{"$f":"LEFT(Table_clallam_Oversight_ActiveFunds[[#This Row],[Fund]],5)","v":"03K-6"}]
[null,"351-State School for the Blind","19B-6 School for the Blind Account-Non-Appropriated",{"$f":"LEFT(Table_clallam_Oversight_ActiveFunds[[#This Row],[Fund]],5)","v":"19B-6"}]
[null,"351-State School for the Blind","508-6 Miscellaneous Enterprise Activities-Non-Appropriated",{"$f":"LEFT(Table_clallam_Oversight_ActiveFunds[[#This Row],[Fund]],5)","v":"508-6"}]
[null,"351-State School for the Blind","800-6 Institutional Welfare/Betterment-Non-Appropriated",{"$f":"LEFT(Table_clallam_Oversight_ActiveFunds[[#This Row],[Fund]],5)","v":"800-6"}]
[null,"353-Childhood Deafness & Hearing Loss","001-1 General Fund-State",{"$f":"LEFT(Table_clallam_Oversight_ActiveFunds[[#This Row],[Fund]],5)","v":"001-1"}]
[null,"353-Childhood Deafness & Hearing Loss","19H-6 Center for Childhood Deafness HLA-Non-Appropriated",{"$f":"LEFT(Table_clallam_Oversight_ActiveFunds[[#This Row],[Fund]],5)","v":"19H-6"}]
[null,"353-Childhood Deafness & Hearing Loss","800-6 Institutional Welfare/Betterment-Non-Appropriated",{"$f":"LEFT(Table_clallam_Oversight_ActiveFunds[[#This Row],[Fund]],5)","v":"800-6"}]
[null,"354-Workforce Trng & Educ Coord Board","001-1 General Fund-State",{"$f":"LEFT(Table_clallam_Oversight_ActiveFunds[[#This Row],[Fund]],5)","v":"001-1"}]
[null,"354-Workforce Trng & Educ Coord Board","001-2 General Fund-Federal",{"$f":"LEFT(Table_clallam_Oversight_ActiveFunds[[#This Row],[Fund]],5)","v":"001-2"}]
[null,"354-Workforce Trng & Educ Coord Board","001-7 General Fund-Private/Local",{"$f":"LEFT(Table_clallam_Oversight_ActiveFunds[[#This Row],[Fund]],5)","v":"001-7"}]
[null,"354-Workforce Trng & Educ Coord Board","03K-6 Industrial Insurance Premium Refund-Non-Appropriated",{"$f":"LEFT(Table_clallam_Oversight_ActiveFunds[[#This Row],[Fund]],5)","v":"03K-6"}]
[null,"354-Workforce Trng & Educ Coord Board","503-6 Tuition Recovery Trust Fund-Non-Appropriated",{"$f":"LEFT(Table_clallam_Oversight_ActiveFunds[[#This Row],[Fund]],5)","v":"503-6"}]
[null,"355-Archaeology & Historic Preservation","001-1 General Fund-State",{"$f":"LEFT(Table_clallam_Oversight_ActiveFunds[[#This Row],[Fund]],5)","v":"001-1"}]
[null,"355-Archaeology & Historic Preservation","001-2 General Fund-Federal",{"$f":"LEFT(Table_clallam_Oversight_ActiveFunds[[#This Row],[Fund]],5)","v":"001-2"}]
[null,"355-Archaeology & Historic Preservation","001-7 General Fund-Private/Local",{"$f":"LEFT(Table_clallam_Oversight_ActiveFunds[[#This Row],[Fund]],5)","v":"001-7"}]
[null,"355-Archaeology & Historic Preservation","001-9 General Fund-Private/Local Unanticipated",{"$f":"LEFT(Table_clallam_Oversight_ActiveFunds[[#This Row],[Fund]],5)","v":"001-9"}]
[null,"355-Archaeology & Historic Preservation","09T-6 WA Main Street Trust Fund Account-Non-Appropriated",{"$f":"LEFT(Table_clallam_Oversight_ActiveFunds[[#This Row],[Fund]],5)","v":"09T-6"}]
[null,"355-Archaeology & Historic Preservation","108-1 Motor Vehicle Account-State",{"$f":"LEFT(Table_clallam_Oversight_ActiveFunds[[#This Row],[Fund]],5)","v":"108-1"}]
[null,"355-Archaeology & Historic Preservation","14P-6 Skeletal Human Remains Assistance-Non-Appropriated",{"$f":"LEFT(Table_clallam_Oversight_ActiveFunds[[#This Row],[Fund]],5)","v":"14P-6"}]
[null,"357-Department of Early Learning","001-1 General Fund-State",{"$f":"LEFT(Table_clallam_Oversight_ActiveFunds[[#This Row],[Fund]],5)","v":"001-1"}]
[null,"357-Department of Early Learning","001-2 General Fund-Federal",{"$f":"LEFT(Table_clallam_Oversight_ActiveFunds[[#This Row],[Fund]],5)","v":"001-2"}]
[null,"357-Department of Early Learning","08A-1 Education Legacy Trust Account-State",{"$f":"LEFT(Table_clallam_Oversight_ActiveFunds[[#This Row],[Fund]],5)","v":"08A-1"}]
[null,"357-Department of Early Learning","133-6 Childrens' Trust Account-Non-Appropriated",{"$f":"LEFT(Table_clallam_Oversight_ActiveFunds[[#This Row],[Fund]],5)","v":"133-6"}]
[null,"357-Department of Early Learning","17B-1 Home Visiting Services Account-State",{"$f":"LEFT(Table_clallam_Oversight_ActiveFunds[[#This Row],[Fund]],5)","v":"17B-1"}]
[null,"357-Department of Early Learning","17B-2 Home Visiting Services Account-Federal",{"$f":"LEFT(Table_clallam_Oversight_ActiveFunds[[#This Row],[Fund]],5)","v":"17B-2"}]
[null,"357-Department of Early Learning","17F-1 WA Opportunity Pathways Account-State",{"$f":"LEFT(Table_clallam_Oversight_ActiveFunds[[#This Row],[Fund]],5)","v":"17F-1"}]
[null,"357-Department of Early Learning","17M-6 Indivi-Based/Portable Background Ch-Non-Appropriated",{"$f":"LEFT(Table_clallam_Oversight_ActiveFunds[[#This Row],[Fund]],5)","v":"17M-6"}]
[null,"357-Department of Early Learning","759-6 Miscellaneous Program Account-Non-Appropriated",{"$f":"LEFT(Table_clallam_Oversight_ActiveFunds[[#This Row],[Fund]],5)","v":"759-6"}]
[null,"359-Washington Charter School Comm","001-1 General Fund-State",{"$f":"LEFT(Table_clallam_Oversight_ActiveFunds[[#This Row],[Fund]],5)","v":"001-1"}]
[null,"359-Washington Charter School Comm","17F-1 WA Opportunity Pathways Account-State",{"$f":"LEFT(Table_clallam_Oversight_ActiveFunds[[#This Row],[Fund]],5)","v":"17F-1"}]
[null,"359-Washington Charter School Comm","19L-1 Charter School Oversight Account-State",{"$f":"LEFT(Table_clallam_Oversight_ActiveFunds[[#This Row],[Fund]],5)","v":"19L-1"}]
[null,"360-University of Washington","001-1 General Fund-State",{"$f":"LEFT(Table_clallam_Oversight_ActiveFunds[[#This Row],[Fund]],5)","v":"001-1"}]
[null,"360-University of Washington","02R-1 Aquatic Lands Enhancement Account-State",{"$f":"LEFT(Table_clallam_Oversight_ActiveFunds[[#This Row],[Fund]],5)","v":"02R-1"}]
[null,"360-University of Washington","03K-6 Industrial Insurance Premium Refund-Non-Appropriated",{"$f":"LEFT(Table_clallam_Oversight_ActiveFunds[[#This Row],[Fund]],5)","v":"03K-6"}]
[null,"360-University of Washington","08A-1 Education Legacy Trust Account-State",{"$f":"LEFT(Table_clallam_Oversight_ActiveFunds[[#This Row],[Fund]],5)","v":"08A-1"}]
[null,"360-University of Washington","09R-1 Econ Dev Strategic Reserve Account-State",{"$f":"LEFT(Table_clallam_Oversight_ActiveFunds[[#This Row],[Fund]],5)","v":"09R-1"}]
[null,"360-University of Washington","145-6 Inst of Hi Ed-Grants/Contracts Acct-Non-Appropriated",{"$f":"LEFT(Table_clallam_Oversight_ActiveFunds[[#This Row],[Fund]],5)","v":"145-6"}]
[null,"360-University of Washington","145-N Inst of Hi Ed-Grants/Contracts Acct-Federal Non-Approp ARRA",{"$f":"LEFT(Table_clallam_Oversight_ActiveFunds[[#This Row],[Fund]],5)","v":"145-N"}]
[null,"360-University of Washington","148-6 Inst of Hi Ed-Dedicated Local Acct-Non-Appropriated",{"$f":"LEFT(Table_clallam_Oversight_ActiveFunds[[#This Row],[Fund]],5)","v":"148-6"}]
[null,"360-University of Washington","149-6 Inst of Hi Ed-Operating Fees Acct-Non-Appropriated",{"$f":"LEFT(Table_clallam_Oversight_ActiveFunds[[#This Row],[Fund]],5)","v":"149-6"}]
[null,"360-University of Washington","15M-1 Biotoxin Account-State",{"$f":"LEFT(Table_clallam_Oversight_ActiveFunds[[#This Row],[Fund]],5)","v":"15M-1"}]
[null,"360-University of Washington","315-1 Dedicated Marijuana Account-State",{"$f":"LEFT(Table_clallam_Oversight_ActiveFunds[[#This Row],[Fund]],5)","v":"315-1"}]
[null,"360-University of Washington","403-6 Self-Insurance Revolving Account-Non-Appropriated",{"$f":"LEFT(Table_clallam_Oversight_ActiveFunds[[#This Row],[Fund]],5)","v":"403-6"}]
[null,"360-University of Washington","440-6 Inst of Hi Ed-Stores Account-Non-Appropriated",{"$f":"LEFT(Table_clallam_Oversight_ActiveFunds[[#This Row],[Fund]],5)","v":"440-6"}]
[null,"360-University of Washington","443-6 Inst of Hi Ed-Data Processing Acct-Non-Appropriated",{"$f":"LEFT(Table_clallam_Oversight_ActiveFunds[[#This Row],[Fund]],5)","v":"443-6"}]
[null,"360-University of Washington","448-6 Inst of Hi Ed-Printing Account-Non-Appropriated",{"$f":"LEFT(Table_clallam_Oversight_ActiveFunds[[#This Row],[Fund]],5)","v":"448-6"}]
[null,"360-University of Washington","450-6 Inst of Hi Ed-Other Facilities Acct-Non-Appropriated",{"$f":"LEFT(Table_clallam_Oversight_ActiveFunds[[#This Row],[Fund]],5)","v":"450-6"}]
[null,"360-University of Washington","457-6 Higher Ed Retirement Benefits Revol-Non-Appropriated",{"$f":"LEFT(Table_clallam_Oversight_ActiveFunds[[#This Row],[Fund]],5)","v":"457-6"}]
[null,"360-University of Washington","460-6 Inst of Hi Ed-Motor Pool Account-Non-Appropriated",{"$f":"LEFT(Table_clallam_Oversight_ActiveFunds[[#This Row],[Fund]],5)","v":"460-6"}]
[null,"360-University of Washington","505-6 University of Washington Hospital-Non-Appropriated",{"$f":"LEFT(Table_clallam_Oversight_ActiveFunds[[#This Row],[Fund]],5)","v":"505-6"}]
[null,"360-University of Washington","522-6 Inst of Hi Ed-Associated Students'-Non-Appropriated",{"$f":"LEFT(Table_clallam_Oversight_ActiveFunds[[#This Row],[Fund]],5)","v":"522-6"}]
[null,"360-University of Washington","528-6 Inst of Hi Ed-Parking Account-Non-Appropriated",{"$f":"LEFT(Table_clallam_Oversight_ActiveFunds[[#This Row],[Fund]],5)","v":"528-6"}]
[null,"360-University of Washington","570-6 Inst of Hi Ed-Other Enterprises-Non-Appropriated",{"$f":"LEFT(Table_clallam_Oversight_ActiveFunds[[#This Row],[Fund]],5)","v":"570-6"}]
[null,"360-University of Washington","573-6 Inst of Hi Ed-Housing & Food Acct-Non-Appropriated",{"$f":"LEFT(Table_clallam_Oversight_ActiveFunds[[#This Row],[Fund]],5)","v":"573-6"}]
[null,"360-University of Washington","608-1 Accident Account-State",{"$f":"LEFT(Table_clallam_Oversight_ActiveFunds[[#This Row],[Fund]],5)","v":"608-1"}]
[null,"360-University of Washington","609-1 Medical Aid Account-State",{"$f":"LEFT(Table_clallam_Oversight_ActiveFunds[[#This Row],[Fund]],5)","v":"609-1"}]
[null,"360-University of Washington","846-6 Grant-In-Aid Scholarship/Fellowship-Non-Appropriated",{"$f":"LEFT(Table_clallam_Oversight_ActiveFunds[[#This Row],[Fund]],5)","v":"846-6"}]
[null,"360-University of Washington","849-6 Inst of Hi Ed-Student Loan Account-Non-Appropriated",{"$f":"LEFT(Table_clallam_Oversight_ActiveFunds[[#This Row],[Fund]],5)","v":"849-6"}]
[null,"360-University of Washington","857-6 Inst of Hi Ed-Annuity & Life Income-Non-Appropriated",{"$f":"LEFT(Table_clallam_Oversight_ActiveFunds[[#This Row],[Fund]],5)","v":"857-6"}]
[null,"360-University of Washington","859-6 Inst of Hi Ed-Endowment Local Acct-Non-Appropriated",{"$f":"LEFT(Table_clallam_Oversight_ActiveFunds[[#This Row],[Fund]],5)","v":"859-6"}]
[null,"360-University of Washington","860-6 Inst of Hi Ed-Long Term Loan Acct-Non-Appropriated",{"$f":"LEFT(Table_clallam_Oversight_ActiveFunds[[#This Row],[Fund]],5)","v":"860-6"}]
[null,"365-Washington State University","001-1 General Fund-State",{"$f":"LEFT(Table_clallam_Oversight_ActiveFunds[[#This Row],[Fund]],5)","v":"001-1"}]
[null,"365-Washington State University","08A-1 Education Legacy Trust Account-State",{"$f":"LEFT(Table_clallam_Oversight_ActiveFunds[[#This Row],[Fund]],5)","v":"08A-1"}]
[null,"365-Washington State University","143-6 Inst of Hi Ed-Federal Approp Acct-Non-Appropriated",{"$f":"LEFT(Table_clallam_Oversight_ActiveFunds[[#This Row],[Fund]],5)","v":"143-6"}]
[null,"365-Washington State University","145-6 Inst of Hi Ed-Grants/Contracts Acct-Non-Appropriated",{"$f":"LEFT(Table_clallam_Oversight_ActiveFunds[[#This Row],[Fund]],5)","v":"145-6"}]
[null,"365-Washington State University","145-N Inst of Hi Ed-Grants/Contracts Acct-Federal Non-Approp ARRA",{"$f":"LEFT(Table_clallam_Oversight_ActiveFunds[[#This Row],[Fund]],5)","v":"145-N"}]
[null,"365-Washington State University","148-6 Inst of Hi Ed-Dedicated Local Acct-Non-Appropriated",{"$f":"LEFT(Table_clallam_Oversight_ActiveFunds[[#This Row],[Fund]],5)","v":"148-6"}]
[null,"365-Washington State University","149-6 Inst of Hi Ed-Operating Fees Acct-Non-Appropriated",{"$f":"LEFT(Table_clallam_Oversight_ActiveFunds[[#This Row],[Fund]],5)","v":"149-6"}]
[null,"365-Washington State University","315-1 Dedicated Marijuana Account-State",{"$f":"LEFT(Table_clallam_Oversight_ActiveFunds[[#This Row],[Fund]],5)","v":"315-1"}]
[null,"365-Washington State University","347-6 WSU Bond Retirement Account-Non-Appropriated",{"$f":"LEFT(Table_clallam_Oversight_ActiveFunds[[#This Row],[Fund]],5)","v":"347-6"}]
[null,"365-Washington State University","440-6 Inst of Hi Ed-Stores Account-Non-Appropriated",{"$f":"LEFT(Table_clallam_Oversight_ActiveFunds[[#This Row],[Fund]],5)","v":"440-6"}]
[null,"365-Washington State University","448-6 Inst of Hi Ed-Printing Account-Non-Appropriated",{"$f":"LEFT(Table_clallam_Oversight_ActiveFunds[[#This Row],[Fund]],5)","v":"448-6"}]
[null,"365-Washington State University","450-6 Inst of Hi Ed-Other Facilities Acct-Non-Appropriated",{"$f":"LEFT(Table_clallam_Oversight_ActiveFunds[[#This Row],[Fund]],5)","v":"450-6"}]
[null,"365-Washington State University","460-6 Inst of Hi Ed-Motor Pool Account-Non-Appropriated",{"$f":"LEFT(Table_clallam_Oversight_ActiveFunds[[#This Row],[Fund]],5)","v":"460-6"}]
[null,"365-Washington State University","522-6 Inst of Hi Ed-Associated Students'-Non-Appropriated",{"$f":"LEFT(Table_clallam_Oversight_ActiveFunds[[#This Row],[Fund]],5)","v":"522-6"}]
[null,"365-Washington State University","528-6 Inst of Hi Ed-Parking Account-Non-Appropriated",{"$f":"LEFT(Table_clallam_Oversight_ActiveFunds[[#This Row],[Fund]],5)","v":"528-6"}]
[null,"365-Washington State University","570-6 Inst of Hi Ed-Other Enterprises-Non-Appropriated",{"$f":"LEFT(Table_clallam_Oversight_ActiveFunds[[#This Row],[Fund]],5)","v":"570-6"}]
[null,"365-Washington State University","573-6 Inst of Hi Ed-Housing & Food Acct-Non-Appropriated",{"$f":"LEFT(Table_clallam_Oversight_ActiveFunds[[#This Row],[Fund]],5)","v":"573-6"}]
[null,"365-Washington State University","776-6 WSU License Plate Account-Non-Appropriated",{"$f":"LEFT(Table_clallam_Oversight_ActiveFunds[[#This Row],[Fund]],5)","v":"776-6"}]
[null,"365-Washington State University","846-6 Grant-In-Aid Scholarship/Fellowship-Non-Appropriated",{"$f":"LEFT(Table_clallam_Oversight_ActiveFunds[[#This Row],[Fund]],5)","v":"846-6"}]
[null,"365-Washington State University","849-6 Inst of Hi Ed-Student Loan Account-Non-Appropriated",{"$f":"LEFT(Table_clallam_Oversight_ActiveFunds[[#This Row],[Fund]],5)","v":"849-6"}]
[null,"370-Eastern Washington University","001-1 General Fund-State",{"$f":"LEFT(Table_clallam_Oversight_ActiveFunds[[#This Row],[Fund]],5)","v":"001-1"}]
[null,"370-Eastern Washington University","08A-1 Education Legacy Trust Account-State",{"$f":"LEFT(Table_clallam_Oversight_ActiveFunds[[#This Row],[Fund]],5)","v":"08A-1"}]
[null,"370-Eastern Washington University","145-6 Inst of Hi Ed-Grants/Contracts Acct-Non-Appropriated",{"$f":"LEFT(Table_clallam_Oversight_ActiveFunds[[#This Row],[Fund]],5)","v":"145-6"}]
[null,"370-Eastern Washington University","148-6 Inst of Hi Ed-Dedicated Local Acct-Non-Appropriated",{"$f":"LEFT(Table_clallam_Oversight_ActiveFunds[[#This Row],[Fund]],5)","v":"148-6"}]
[null,"370-Eastern Washington University","149-6 Inst of Hi Ed-Operating Fees Acct-Non-Appropriated",{"$f":"LEFT(Table_clallam_Oversight_ActiveFunds[[#This Row],[Fund]],5)","v":"149-6"}]
[null,"370-Eastern Washington University","448-6 Inst of Hi Ed-Printing Account-Non-Appropriated",{"$f":"LEFT(Table_clallam_Oversight_ActiveFunds[[#This Row],[Fund]],5)","v":"448-6"}]
[null,"370-Eastern Washington University","450-6 Inst of Hi Ed-Other Facilities Acct-Non-Appropriated",{"$f":"LEFT(Table_clallam_Oversight_ActiveFunds[[#This Row],[Fund]],5)","v":"450-6"}]
[null,"370-Eastern Washington University","460-6 Inst of Hi Ed-Motor Pool Account-Non-Appropriated",{"$f":"LEFT(Table_clallam_Oversight_ActiveFunds[[#This Row],[Fund]],5)","v":"460-6"}]
[null,"370-Eastern Washington University","522-6 Inst of Hi Ed-Associated Students'-Non-Appropriated",{"$f":"LEFT(Table_clallam_Oversight_ActiveFunds[[#This Row],[Fund]],5)","v":"522-6"}]
[null,"370-Eastern Washington University","524-6 Inst of Hi Ed-Bookstore Account-Non-Appropriated",{"$f":"LEFT(Table_clallam_Oversight_ActiveFunds[[#This Row],[Fund]],5)","v":"524-6"}]
[null,"370-Eastern Washington University","528-6 Inst of Hi Ed-Parking Account-Non-Appropriated",{"$f":"LEFT(Table_clallam_Oversight_ActiveFunds[[#This Row],[Fund]],5)","v":"528-6"}]
[null,"370-Eastern Washington University","570-6 Inst of Hi Ed-Other Enterprises-Non-Appropriated",{"$f":"LEFT(Table_clallam_Oversight_ActiveFunds[[#This Row],[Fund]],5)","v":"570-6"}]
[null,"370-Eastern Washington University","573-6 Inst of Hi Ed-Housing & Food Acct-Non-Appropriated",{"$f":"LEFT(Table_clallam_Oversight_ActiveFunds[[#This Row],[Fund]],5)","v":"573-6"}]
[null,"370-Eastern Washington University","779-6 EWU License Plate Account-Non-Appropriated",{"$f":"LEFT(Table_clallam_Oversight_ActiveFunds[[#This Row],[Fund]],5)","v":"779-6"}]
[null,"370-Eastern Washington University","846-6 Grant-In-Aid Scholarship/Fellowship-Non-Appropriated",{"$f":"LEFT(Table_clallam_Oversight_ActiveFunds[[#This Row],[Fund]],5)","v":"846-6"}]
[null,"370-Eastern Washington University","849-6 Inst of Hi Ed-Student Loan Account-Non-Appropriated",{"$f":"LEFT(Table_clallam_Oversight_ActiveFunds[[#This Row],[Fund]],5)","v":"849-6"}]
[null,"375-Central Washington University","001-1 General Fund-State",{"$f":"LEFT(Table_clallam_Oversight_ActiveFunds[[#This Row],[Fund]],5)","v":"001-1"}]
[null,"375-Central Washington University","08A-1 Education Legacy Trust Account-State",{"$f":"LEFT(Table_clallam_Oversight_ActiveFunds[[#This Row],[Fund]],5)","v":"08A-1"}]
[null,"375-Central Washington University","145-6 Inst of Hi Ed-Grants/Contracts Acct-Non-Appropriated",{"$f":"LEFT(Table_clallam_Oversight_ActiveFunds[[#This Row],[Fund]],5)","v":"145-6"}]
[null,"375-Central Washington University","148-6 Inst of Hi Ed-Dedicated Local Acct-Non-Appropriated",{"$f":"LEFT(Table_clallam_Oversight_ActiveFunds[[#This Row],[Fund]],5)","v":"148-6"}]
[null,"375-Central Washington University","149-6 Inst of Hi Ed-Operating Fees Acct-Non-Appropriated",{"$f":"LEFT(Table_clallam_Oversight_ActiveFunds[[#This Row],[Fund]],5)","v":"149-6"}]
[null,"375-Central Washington University","252-6 Hi Ed Non-Proprietary Local Capital-Non-Appropriated",{"$f":"LEFT(Table_clallam_Oversight_ActiveFunds[[#This Row],[Fund]],5)","v":"252-6"}]
[null,"375-Central Washington University","440-6 Inst of Hi Ed-Stores Account-Non-Appropriated",{"$f":"LEFT(Table_clallam_Oversight_ActiveFunds[[#This Row],[Fund]],5)","v":"440-6"}]
[null,"375-Central Washington University","448-6 Inst of Hi Ed-Printing Account-Non-Appropriated",{"$f":"LEFT(Table_clallam_Oversight_ActiveFunds[[#This Row],[Fund]],5)","v":"448-6"}]
[null,"375-Central Washington University","450-6 Inst of Hi Ed-Other Facilities Acct-Non-Appropriated",{"$f":"LEFT(Table_clallam_Oversight_ActiveFunds[[#This Row],[Fund]],5)","v":"450-6"}]
[null,"375-Central Washington University","460-6 Inst of Hi Ed-Motor Pool Account-Non-Appropriated",{"$f":"LEFT(Table_clallam_Oversight_ActiveFunds[[#This Row],[Fund]],5)","v":"460-6"}]
[null,"375-Central Washington University","522-6 Inst of Hi Ed-Associated Students'-Non-Appropriated",{"$f":"LEFT(Table_clallam_Oversight_ActiveFunds[[#This Row],[Fund]],5)","v":"522-6"}]
[null,"375-Central Washington University","524-6 Inst of Hi Ed-Bookstore Account-Non-Appropriated",{"$f":"LEFT(Table_clallam_Oversight_ActiveFunds[[#This Row],[Fund]],5)","v":"524-6"}]
[null,"375-Central Washington University","528-6 Inst of Hi Ed-Parking Account-Non-Appropriated",{"$f":"LEFT(Table_clallam_Oversight_ActiveFunds[[#This Row],[Fund]],5)","v":"528-6"}]
[null,"375-Central Washington University","573-6 Inst of Hi Ed-Housing & Food Acct-Non-Appropriated",{"$f":"LEFT(Table_clallam_Oversight_ActiveFunds[[#This Row],[Fund]],5)","v":"573-6"}]
[null,"375-Central Washington University","846-6 Grant-In-Aid Scholarship/Fellowship-Non-Appropriated",{"$f":"LEFT(Table_clallam_Oversight_ActiveFunds[[#This Row],[Fund]],5)","v":"846-6"}]
[null,"375-Central Washington University","859-6 Inst of Hi Ed-Endowment Local Acct-Non-Appropriated",{"$f":"LEFT(Table_clallam_Oversight_ActiveFunds[[#This Row],[Fund]],5)","v":"859-6"}]
[null,"375-Central Washington University","860-6 Inst of Hi Ed-Long Term Loan Acct-Non-Appropriated",{"$f":"LEFT(Table_clallam_Oversight_ActiveFunds[[#This Row],[Fund]],5)","v":"860-6"}]
[null,"376-The Evergreen State College","001-1 General Fund-State",{"$f":"LEFT(Table_clallam_Oversight_ActiveFunds[[#This Row],[Fund]],5)","v":"001-1"}]
[null,"376-The Evergreen State College","08A-1 Education Legacy Trust Account-State",{"$f":"LEFT(Table_clallam_Oversight_ActiveFunds[[#This Row],[Fund]],5)","v":"08A-1"}]
[null,"376-The Evergreen State College","108-1 Motor Vehicle Account-State",{"$f":"LEFT(Table_clallam_Oversight_ActiveFunds[[#This Row],[Fund]],5)","v":"108-1"}]
[null,"376-The Evergreen State College","145-6 Inst of Hi Ed-Grants/Contracts Acct-Non-Appropriated",{"$f":"LEFT(Table_clallam_Oversight_ActiveFunds[[#This Row],[Fund]],5)","v":"145-6"}]
[null,"376-The Evergreen State College","148-6 Inst of Hi Ed-Dedicated Local Acct-Non-Appropriated",{"$f":"LEFT(Table_clallam_Oversight_ActiveFunds[[#This Row],[Fund]],5)","v":"148-6"}]
[null,"376-The Evergreen State College","149-6 Inst of Hi Ed-Operating Fees Acct-Non-Appropriated",{"$f":"LEFT(Table_clallam_Oversight_ActiveFunds[[#This Row],[Fund]],5)","v":"149-6"}]
[null,"376-The Evergreen State College","440-6 Inst of Hi Ed-Stores Account-Non-Appropriated",{"$f":"LEFT(Table_clallam_Oversight_ActiveFunds[[#This Row],[Fund]],5)","v":"440-6"}]
[null,"376-The Evergreen State College","448-6 Inst of Hi Ed-Printing Account-Non-Appropriated",{"$f":"LEFT(Table_clallam_Oversight_ActiveFunds[[#This Row],[Fund]],5)","v":"448-6"}]
[null,"376-The Evergreen State College","450-6 Inst of Hi Ed-Other Facilities Acct-Non-Appropriated",{"$f":"LEFT(Table_clallam_Oversight_ActiveFunds[[#This Row],[Fund]],5)","v":"450-6"}]
[null,"376-The Evergreen State College","460-6 Inst of Hi Ed-Motor Pool Account-Non-Appropriated",{"$f":"LEFT(Table_clallam_Oversight_ActiveFunds[[#This Row],[Fund]],5)","v":"460-6"}]
[null,"376-The Evergreen State College","522-6 Inst of Hi Ed-Associated Students'-Non-Appropriated",{"$f":"LEFT(Table_clallam_Oversight_ActiveFunds[[#This Row],[Fund]],5)","v":"522-6"}]
[null,"376-The Evergreen State College","524-6 Inst of Hi Ed-Bookstore Account-Non-Appropriated",{"$f":"LEFT(Table_clallam_Oversight_ActiveFunds[[#This Row],[Fund]],5)","v":"524-6"}]
[null,"376-The Evergreen State College","528-6 Inst of Hi Ed-Parking Account-Non-Appropriated",{"$f":"LEFT(Table_clallam_Oversight_ActiveFunds[[#This Row],[Fund]],5)","v":"528-6"}]
[null,"376-The Evergreen State College","573-6 Inst of Hi Ed-Housing & Food Acct-Non-Appropriated",{"$f":"LEFT(Table_clallam_Oversight_ActiveFunds[[#This Row],[Fund]],5)","v":"573-6"}]
[null,"376-The Evergreen State College","786-6 TESC License Plate Account-Non-Appropriated",{"$f":"LEFT(Table_clallam_Oversight_ActiveFunds[[#This Row],[Fund]],5)","v":"786-6"}]
[null,"376-The Evergreen State College","846-6 Grant-In-Aid Scholarship/Fellowship-Non-Appropriated",{"$f":"LEFT(Table_clallam_Oversight_ActiveFunds[[#This Row],[Fund]],5)","v":"846-6"}]
[null,"376-The Evergreen State College","859-6 Inst of Hi Ed-Endowment Local Acct-Non-Appropriated",{"$f":"LEFT(Table_clallam_Oversight_ActiveFunds[[#This Row],[Fund]],5)","v":"859-6"}]
[null,"380-Western Washington University","001-1 General Fund-State",{"$f":"LEFT(Table_clallam_Oversight_ActiveFunds[[#This Row],[Fund]],5)","v":"001-1"}]
[null,"380-Western Washington University","08A-1 Education Legacy Trust Account-State",{"$f":"LEFT(Table_clallam_Oversight_ActiveFunds[[#This Row],[Fund]],5)","v":"08A-1"}]
[null,"380-Western Washington University","145-6 Inst of Hi Ed-Grants/Contracts Acct-Non-Appropriated",{"$f":"LEFT(Table_clallam_Oversight_ActiveFunds[[#This Row],[Fund]],5)","v":"145-6"}]
[null,"380-Western Washington University","148-6 Inst of Hi Ed-Dedicated Local Acct-Non-Appropriated",{"$f":"LEFT(Table_clallam_Oversight_ActiveFunds[[#This Row],[Fund]],5)","v":"148-6"}]
[null,"380-Western Washington University","149-6 Inst of Hi Ed-Operating Fees Acct-Non-Appropriated",{"$f":"LEFT(Table_clallam_Oversight_ActiveFunds[[#This Row],[Fund]],5)","v":"149-6"}]
[null,"380-Western Washington University","440-6 Inst of Hi Ed-Stores Account-Non-Appropriated",{"$f":"LEFT(Table_clallam_Oversight_ActiveFunds[[#This Row],[Fund]],5)","v":"440-6"}]
[null,"380-Western Washington University","443-6 Inst of Hi Ed-Data Processing Acct-Non-Appropriated",{"$f":"LEFT(Table_clallam_Oversight_ActiveFunds[[#This Row],[Fund]],5)","v":"443-6"}]
[null,"380-Western Washington University","448-6 Inst of Hi Ed-Printing Account-Non-Appropriated",{"$f":"LEFT(Table_clallam_Oversight_ActiveFunds[[#This Row],[Fund]],5)","v":"448-6"}]
[null,"380-Western Washington University","450-6 Inst of Hi Ed-Other Facilities Acct-Non-Appropriated",{"$f":"LEFT(Table_clallam_Oversight_ActiveFunds[[#This Row],[Fund]],5)","v":"450-6"}]
[null,"380-Western Washington University","460-6 Inst of Hi Ed-Motor Pool Account-Non-Appropriated",{"$f":"LEFT(Table_clallam_Oversight_ActiveFunds[[#This Row],[Fund]],5)","v":"460-6"}]
[null,"380-Western Washington University","522-6 Inst of Hi Ed-Associated Students'-Non-Appropriated",{"$f":"LEFT(Table_clallam_Oversight_ActiveFunds[[#This Row],[Fund]],5)","v":"522-6"}]
[null,"380-Western Washington University","524-6 Inst of Hi Ed-Bookstore Account-Non-Appropriated",{"$f":"LEFT(Table_clallam_Oversight_ActiveFunds[[#This Row],[Fund]],5)","v":"524-6"}]
[null,"380-Western Washington University","528-6 Inst of Hi Ed-Parking Account-Non-Appropriated",{"$f":"LEFT(Table_clallam_Oversight_ActiveFunds[[#This Row],[Fund]],5)","v":"528-6"}]
[null,"380-Western Washington University","570-6 Inst of Hi Ed-Other Enterprises-Non-Appropriated",{"$f":"LEFT(Table_clallam_Oversight_ActiveFunds[[#This Row],[Fund]],5)","v":"570-6"}]
[null,"380-Western Washington University","573-6 Inst of Hi Ed-Housing & Food Acct-Non-Appropriated",{"$f":"LEFT(Table_clallam_Oversight_ActiveFunds[[#This Row],[Fund]],5)","v":"573-6"}]
[null,"380-Western Washington University","778-6 WWU License Plate Account-Non-Appropriated",{"$f":"LEFT(Table_clallam_Oversight_ActiveFunds[[#This Row],[Fund]],5)","v":"778-6"}]
[null,"380-Western Washington University","841-6 G. Robert Ross Endowment Account-Non-Appropriated",{"$f":"LEFT(Table_clallam_Oversight_ActiveFunds[[#This Row],[Fund]],5)","v":"841-6"}]
[null,"380-Western Washington University","846-6 Grant-In-Aid Scholarship/Fellowship-Non-Appropriated",{"$f":"LEFT(Table_clallam_Oversight_ActiveFunds[[#This Row],[Fund]],5)","v":"846-6"}]
[null,"380-Western Washington University","849-6 Inst of Hi Ed-Student Loan Account-Non-Appropriated",{"$f":"LEFT(Table_clallam_Oversight_ActiveFunds[[#This Row],[Fund]],5)","v":"849-6"}]
[null,"380-Western Washington University","850-6 Inst of Hi Ed-Work Study Account-Non-Appropriated",{"$f":"LEFT(Table_clallam_Oversight_ActiveFunds[[#This Row],[Fund]],5)","v":"850-6"}]
[null,"380-Western Washington University","859-6 Inst of Hi Ed-Endowment Local Acct-Non-Appropriated",{"$f":"LEFT(Table_clallam_Oversight_ActiveFunds[[#This Row],[Fund]],5)","v":"859-6"}]
[null,"380-Western Washington University","860-6 Inst of Hi Ed-Long Term Loan Acct-Non-Appropriated",{"$f":"LEFT(Table_clallam_Oversight_ActiveFunds[[#This Row],[Fund]],5)","v":"860-6"}]
[null,"387-Washington State Arts Commission","001-1 General Fund-State",{"$f":"LEFT(Table_clallam_Oversight_ActiveFunds[[#This Row],[Fund]],5)","v":"001-1"}]
[null,"387-Washington State Arts Commission","001-2 General Fund-Federal",{"$f":"LEFT(Table_clallam_Oversight_ActiveFunds[[#This Row],[Fund]],5)","v":"001-2"}]
[null,"387-Washington State Arts Commission","001-7 General Fund-Private/Local",{"$f":"LEFT(Table_clallam_Oversight_ActiveFunds[[#This Row],[Fund]],5)","v":"001-7"}]
[null,"387-Washington State Arts Commission","03K-6 Industrial Insurance Premium Refund-Non-Appropriated",{"$f":"LEFT(Table_clallam_Oversight_ActiveFunds[[#This Row],[Fund]],5)","v":"03K-6"}]
[null,"387-Washington State Arts Commission","447-6 Info Tech Invest Rev Acct-Non-Appropriated",{"$f":"LEFT(Table_clallam_Oversight_ActiveFunds[[#This Row],[Fund]],5)","v":"447-6"}]
[null,"390-Washington State Historical Society","001-1 General Fund-State",{"$f":"LEFT(Table_clallam_Oversight_ActiveFunds[[#This Row],[Fund]],5)","v":"001-1"}]
[null,"390-Washington State Historical Society","184-6 Local Museum Acct-Wa St Hist Soc-Non-Appropriated",{"$f":"LEFT(Table_clallam_Oversight_ActiveFunds[[#This Row],[Fund]],5)","v":"184-6"}]
[null,"390-Washington State Historical Society","277-6 State Agency Parking Account-Non-Appropriated",{"$f":"LEFT(Table_clallam_Oversight_ActiveFunds[[#This Row],[Fund]],5)","v":"277-6"}]
[null,"390-Washington State Historical Society","834-6 Capitol Furnishing Preserv Comm-Non-Appropriated",{"$f":"LEFT(Table_clallam_Oversight_ActiveFunds[[#This Row],[Fund]],5)","v":"834-6"}]
[null,"395-East Wash State Historical Society","001-1 General Fund-State",{"$f":"LEFT(Table_clallam_Oversight_ActiveFunds[[#This Row],[Fund]],5)","v":"001-1"}]
[null,"395-East Wash State Historical Society","03K-6 Industrial Insurance Premium Refund-Non-Appropriated",{"$f":"LEFT(Table_clallam_Oversight_ActiveFunds[[#This Row],[Fund]],5)","v":"03K-6"}]
[null,"395-East Wash State Historical Society","185-6 Local Museum Acct-E Wa St Hist Soc-Non-Appropriated",{"$f":"LEFT(Table_clallam_Oversight_ActiveFunds[[#This Row],[Fund]],5)","v":"185-6"}]
[null,"405-Department of Transportation","039-1 Aeronautics Account-State",{"$f":"LEFT(Table_clallam_Oversight_ActiveFunds[[#This Row],[Fund]],5)","v":"039-1"}]
[null,"405-Department of Transportation","039-2 Aeronautics Account-Federal",{"$f":"LEFT(Table_clallam_Oversight_ActiveFunds[[#This Row],[Fund]],5)","v":"039-2"}]
[null,"405-Department of Transportation","039-7 Aeronautics Account-Private/Local",{"$f":"LEFT(Table_clallam_Oversight_ActiveFunds[[#This Row],[Fund]],5)","v":"039-7"}]
[null,"405-Department of Transportation","045-1 State Vehicle Parking Account-State",{"$f":"LEFT(Table_clallam_Oversight_ActiveFunds[[#This Row],[Fund]],5)","v":"045-1"}]
[null,"405-Department of Transportation","09F-1 High-Occupancy Toll Lanes Op Acct-State",{"$f":"LEFT(Table_clallam_Oversight_ActiveFunds[[#This Row],[Fund]],5)","v":"09F-1"}]
[null,"405-Department of Transportation","09H-1 Transportation Partnership Account-State",{"$f":"LEFT(Table_clallam_Oversight_ActiveFunds[[#This Row],[Fund]],5)","v":"09H-1"}]
[null,"405-Department of Transportation","108-1 Motor Vehicle Account-State",{"$f":"LEFT(Table_clallam_Oversight_ActiveFunds[[#This Row],[Fund]],5)","v":"108-1"}]
[null,"405-Department of Transportation","108-2 Motor Vehicle Account-Federal",{"$f":"LEFT(Table_clallam_Oversight_ActiveFunds[[#This Row],[Fund]],5)","v":"108-2"}]
[null,"405-Department of Transportation","108-3 Motor Vehicle Account-Federal Unanticipated",{"$f":"LEFT(Table_clallam_Oversight_ActiveFunds[[#This Row],[Fund]],5)","v":"108-3"}]
[null,"405-Department of Transportation","108-7 Motor Vehicle Account-Private/Local",{"$f":"LEFT(Table_clallam_Oversight_ActiveFunds[[#This Row],[Fund]],5)","v":"108-7"}]
[null,"405-Department of Transportation","109-1 Puget Sound Ferry Operations Acct-State",{"$f":"LEFT(Table_clallam_Oversight_ActiveFunds[[#This Row],[Fund]],5)","v":"109-1"}]
[null,"405-Department of Transportation","109-2 Puget Sound Ferry Operations Acct-Federal",{"$f":"LEFT(Table_clallam_Oversight_ActiveFunds[[#This Row],[Fund]],5)","v":"109-2"}]
[null,"405-Department of Transportation","109-7 Puget Sound Ferry Operations Acct-Private/Local",{"$f":"LEFT(Table_clallam_Oversight_ActiveFunds[[#This Row],[Fund]],5)","v":"109-7"}]
[null,"405-Department of Transportation","11B-1 Regional Mobility Grant Pgm Account-State",{"$f":"LEFT(Table_clallam_Oversight_ActiveFunds[[#This Row],[Fund]],5)","v":"11B-1"}]
[null,"405-Department of Transportation","153-1 Rural Mobility Grant Program Acct-State",{"$f":"LEFT(Table_clallam_Oversight_ActiveFunds[[#This Row],[Fund]],5)","v":"153-1"}]
[null,"405-Department of Transportation","16J-1 SR 520 Corridor Account-State",{"$f":"LEFT(Table_clallam_Oversight_ActiveFunds[[#This Row],[Fund]],5)","v":"16J-1"}]
[null,"405-Department of Transportation","17P-1 SR 520 Civil Penalties Account-State",{"$f":"LEFT(Table_clallam_Oversight_ActiveFunds[[#This Row],[Fund]],5)","v":"17P-1"}]
[null,"405-Department of Transportation","20H-1 Connecting Washington Account-State",{"$f":"LEFT(Table_clallam_Oversight_ActiveFunds[[#This Row],[Fund]],5)","v":"20H-1"}]
[null,"405-Department of Transportation","20J-1 Electric Vehicle Charging Infras-State",{"$f":"LEFT(Table_clallam_Oversight_ActiveFunds[[#This Row],[Fund]],5)","v":"20J-1"}]
[null,"405-Department of Transportation","218-1 Multimodal Transportation Account-State",{"$f":"LEFT(Table_clallam_Oversight_ActiveFunds[[#This Row],[Fund]],5)","v":"218-1"}]
[null,"405-Department of Transportation","218-2 Multimodal Transportation Account-Federal",{"$f":"LEFT(Table_clallam_Oversight_ActiveFunds[[#This Row],[Fund]],5)","v":"218-2"}]
[null,"405-Department of Transportation","218-7 Multimodal Transportation Account-Private/Local",{"$f":"LEFT(Table_clallam_Oversight_ActiveFunds[[#This Row],[Fund]],5)","v":"218-7"}]
[null,"405-Department of Transportation","410-6 Transportation Equipment Account-Non-Appropriated",{"$f":"LEFT(Table_clallam_Oversight_ActiveFunds[[#This Row],[Fund]],5)","v":"410-6"}]
[null,"405-Department of Transportation","495-6 Toll Collection Account-Non-Appropriated",{"$f":"LEFT(Table_clallam_Oversight_ActiveFunds[[#This Row],[Fund]],5)","v":"495-6"}]
[null,"405-Department of Transportation","511-1 Tacoma Narrows Toll Bridge Account-State",{"$f":"LEFT(Table_clallam_Oversight_ActiveFunds[[#This Row],[Fund]],5)","v":"511-1"}]
[null,"405-Department of Transportation","550-1 Transportation 2003 Acct (Nickel)-State",{"$f":"LEFT(Table_clallam_Oversight_ActiveFunds[[#This Row],[Fund]],5)","v":"550-1"}]
[null,"405-Department of Transportation","571-1 Multiuse Roadway Safety Account-State",{"$f":"LEFT(Table_clallam_Oversight_ActiveFunds[[#This Row],[Fund]],5)","v":"571-1"}]
[null,"405-Department of Transportation","595-1 I-405 Express Toll Lanes Operations-State",{"$f":"LEFT(Table_clallam_Oversight_ActiveFunds[[#This Row],[Fund]],5)","v":"595-1"}]
[null,"405-Department of Transportation","759-6 Miscellaneous Program Account-Non-Appropriated",{"$f":"LEFT(Table_clallam_Oversight_ActiveFunds[[#This Row],[Fund]],5)","v":"759-6"}]
[null,"405-Department of Transportation","784-6 Misc Transportation Programs Acct-Non-Appropriated",{"$f":"LEFT(Table_clallam_Oversight_ActiveFunds[[#This Row],[Fund]],5)","v":"784-6"}]
[null,"406-County Road Administration Board","102-1 Rural Arterial Trust Account-State",{"$f":"LEFT(Table_clallam_Oversight_ActiveFunds[[#This Row],[Fund]],5)","v":"102-1"}]
[null,"406-County Road Administration Board","108-1 Motor Vehicle Account-State",{"$f":"LEFT(Table_clallam_Oversight_ActiveFunds[[#This Row],[Fund]],5)","v":"108-1"}]
[null,"406-County Road Administration Board","186-1 County Arterial Preservation Acct-State",{"$f":"LEFT(Table_clallam_Oversight_ActiveFunds[[#This Row],[Fund]],5)","v":"186-1"}]
[null,"407-Transportation Improvement Board","144-1 Transportation Improvement Account-State",{"$f":"LEFT(Table_clallam_Oversight_ActiveFunds[[#This Row],[Fund]],5)","v":"144-1"}]
[null,"410-Transportation Commission","108-1 Motor Vehicle Account-State",{"$f":"LEFT(Table_clallam_Oversight_ActiveFunds[[#This Row],[Fund]],5)","v":"108-1"}]
[null,"410-Transportation Commission","108-2 Motor Vehicle Account-Federal",{"$f":"LEFT(Table_clallam_Oversight_ActiveFunds[[#This Row],[Fund]],5)","v":"108-2"}]
[null,"410-Transportation Commission","218-1 Multimodal Transportation Account-State",{"$f":"LEFT(Table_clallam_Oversight_ActiveFunds[[#This Row],[Fund]],5)","v":"218-1"}]
[null,"411-Freight Mobility Strategic Invest","108-1 Motor Vehicle Account-State",{"$f":"LEFT(Table_clallam_Oversight_ActiveFunds[[#This Row],[Fund]],5)","v":"108-1"}]
[null,"460-Columbia River Gorge Commission","001-1 General Fund-State",{"$f":"LEFT(Table_clallam_Oversight_ActiveFunds[[#This Row],[Fund]],5)","v":"001-1"}]
[null,"460-Columbia River Gorge Commission","001-2 General Fund-Federal",{"$f":"LEFT(Table_clallam_Oversight_ActiveFunds[[#This Row],[Fund]],5)","v":"001-2"}]
[null,"460-Columbia River Gorge Commission","001-3 General Fund-Federal Unanticipated",{"$f":"LEFT(Table_clallam_Oversight_ActiveFunds[[#This Row],[Fund]],5)","v":"001-3"}]
[null,"460-Columbia River Gorge Commission","001-7 General Fund-Private/Local",{"$f":"LEFT(Table_clallam_Oversight_ActiveFunds[[#This Row],[Fund]],5)","v":"001-7"}]
[null,"461-Department of Ecology","001-1 General Fund-State",{"$f":"LEFT(Table_clallam_Oversight_ActiveFunds[[#This Row],[Fund]],5)","v":"001-1"}]
[null,"461-Department of Ecology","001-2 General Fund-Federal",{"$f":"LEFT(Table_clallam_Oversight_ActiveFunds[[#This Row],[Fund]],5)","v":"001-2"}]
[null,"461-Department of Ecology","001-7 General Fund-Private/Local",{"$f":"LEFT(Table_clallam_Oversight_ActiveFunds[[#This Row],[Fund]],5)","v":"001-7"}]
[null,"461-Department of Ecology","027-1 Reclamation Account-State",{"$f":"LEFT(Table_clallam_Oversight_ActiveFunds[[#This Row],[Fund]],5)","v":"027-1"}]
[null,"461-Department of Ecology","02P-1 Flood Control Assistance Account-State",{"$f":"LEFT(Table_clallam_Oversight_ActiveFunds[[#This Row],[Fund]],5)","v":"02P-1"}]
[null,"461-Department of Ecology","03K-6 Industrial Insurance Premium Refund-Non-Appropriated",{"$f":"LEFT(Table_clallam_Oversight_ActiveFunds[[#This Row],[Fund]],5)","v":"03K-6"}]
[null,"461-Department of Ecology","044-1 Waste Reduct/Recycle/Litter Control-State",{"$f":"LEFT(Table_clallam_Oversight_ActiveFunds[[#This Row],[Fund]],5)","v":"044-1"}]
[null,"461-Department of Ecology","05W-1 State Drought Preparedness-State",{"$f":"LEFT(Table_clallam_Oversight_ActiveFunds[[#This Row],[Fund]],5)","v":"05W-1"}]
[null,"461-Department of Ecology","072-1 St/Loc Impr Rev Acct Water Sup Fac-State",{"$f":"LEFT(Table_clallam_Oversight_ActiveFunds[[#This Row],[Fund]],5)","v":"072-1"}]
[null,"461-Department of Ecology","108-1 Motor Vehicle Account-State",{"$f":"LEFT(Table_clallam_Oversight_ActiveFunds[[#This Row],[Fund]],5)","v":"108-1"}]
[null,"461-Department of Ecology","10A-1 Aquatic Algae Control Account-State",{"$f":"LEFT(Table_clallam_Oversight_ActiveFunds[[#This Row],[Fund]],5)","v":"10A-1"}]
[null,"461-Department of Ecology","10G-1 Water Rights Tracking System Acct-State",{"$f":"LEFT(Table_clallam_Oversight_ActiveFunds[[#This Row],[Fund]],5)","v":"10G-1"}]
[null,"461-Department of Ecology","116-6 Basic Data Account-Non-Appropriated",{"$f":"LEFT(Table_clallam_Oversight_ActiveFunds[[#This Row],[Fund]],5)","v":"116-6"}]
[null,"461-Department of Ecology","11J-6 Electronic Products Recycling-Non-Appropriated",{"$f":"LEFT(Table_clallam_Oversight_ActiveFunds[[#This Row],[Fund]],5)","v":"11J-6"}]
[null,"461-Department of Ecology","125-1 Site Closure Account-State",{"$f":"LEFT(Table_clallam_Oversight_ActiveFunds[[#This Row],[Fund]],5)","v":"125-1"}]
[null,"461-Department of Ecology","160-1 Wood Stove Education/Enforcement-State",{"$f":"LEFT(Table_clallam_Oversight_ActiveFunds[[#This Row],[Fund]],5)","v":"160-1"}]
[null,"461-Department of Ecology","163-1 Worker/Community Right to Know Acct-State",{"$f":"LEFT(Table_clallam_Oversight_ActiveFunds[[#This Row],[Fund]],5)","v":"163-1"}]
[null,"461-Department of Ecology","16T-6 Product Stewardship Programs Acct-Non-Appropriated",{"$f":"LEFT(Table_clallam_Oversight_ActiveFunds[[#This Row],[Fund]],5)","v":"16T-6"}]
[null,"461-Department of Ecology","16V-1 Water Rights Processing Account-State",{"$f":"LEFT(Table_clallam_Oversight_ActiveFunds[[#This Row],[Fund]],5)","v":"16V-1"}]
[null,"461-Department of Ecology","173-1 State Toxics Control Account-State",{"$f":"LEFT(Table_clallam_Oversight_ActiveFunds[[#This Row],[Fund]],5)","v":"173-1"}]
[null,"461-Department of Ecology","173-7 State Toxics Control Account-Private/Local",{"$f":"LEFT(Table_clallam_Oversight_ActiveFunds[[#This Row],[Fund]],5)","v":"173-7"}]
[null,"461-Department of Ecology","174-1 Local Toxics Control Account-State",{"$f":"LEFT(Table_clallam_Oversight_ActiveFunds[[#This Row],[Fund]],5)","v":"174-1"}]
[null,"461-Department of Ecology","176-1 Water Quality Permit Account-State",{"$f":"LEFT(Table_clallam_Oversight_ActiveFunds[[#This Row],[Fund]],5)","v":"176-1"}]
[null,"461-Department of Ecology","182-1 Underground Storage Tank Account-State",{"$f":"LEFT(Table_clallam_Oversight_ActiveFunds[[#This Row],[Fund]],5)","v":"182-1"}]
[null,"461-Department of Ecology","199-1 Biosolids Permit Account-State",{"$f":"LEFT(Table_clallam_Oversight_ActiveFunds[[#This Row],[Fund]],5)","v":"199-1"}]
[null,"461-Department of Ecology","19G-1 Environmental Legacy Stewardship-State",{"$f":"LEFT(Table_clallam_Oversight_ActiveFunds[[#This Row],[Fund]],5)","v":"19G-1"}]
[null,"461-Department of Ecology","207-1 Hazardous Waste Assistance Account-State",{"$f":"LEFT(Table_clallam_Oversight_ActiveFunds[[#This Row],[Fund]],5)","v":"207-1"}]
[null,"461-Department of Ecology","20R-1 Radioactive Mixed Waste Account-State",{"$f":"LEFT(Table_clallam_Oversight_ActiveFunds[[#This Row],[Fund]],5)","v":"20R-1"}]
[null,"461-Department of Ecology","216-1 Air Pollution Control Account-State",{"$f":"LEFT(Table_clallam_Oversight_ActiveFunds[[#This Row],[Fund]],5)","v":"216-1"}]
[null,"461-Department of Ecology","217-1 Oil Spill Prevention Account-State",{"$f":"LEFT(Table_clallam_Oversight_ActiveFunds[[#This Row],[Fund]],5)","v":"217-1"}]
[null,"461-Department of Ecology","219-1 Air Operating Permit Account-State",{"$f":"LEFT(Table_clallam_Oversight_ActiveFunds[[#This Row],[Fund]],5)","v":"219-1"}]
[null,"461-Department of Ecology","222-1 Freshwater Aquatic Weeds Account-State",{"$f":"LEFT(Table_clallam_Oversight_ActiveFunds[[#This Row],[Fund]],5)","v":"222-1"}]
[null,"461-Department of Ecology","223-1 Oil Spill Response Account-State",{"$f":"LEFT(Table_clallam_Oversight_ActiveFunds[[#This Row],[Fund]],5)","v":"223-1"}]
[null,"461-Department of Ecology","277-6 State Agency Parking Account-Non-Appropriated",{"$f":"LEFT(Table_clallam_Oversight_ActiveFunds[[#This Row],[Fund]],5)","v":"277-6"}]
[null,"461-Department of Ecology","408-6 Coastal Protection Account-Non-Appropriated",{"$f":"LEFT(Table_clallam_Oversight_ActiveFunds[[#This Row],[Fund]],5)","v":"408-6"}]
[null,"461-Department of Ecology","447-6 Info Tech Invest Rev Acct-Non-Appropriated",{"$f":"LEFT(Table_clallam_Oversight_ActiveFunds[[#This Row],[Fund]],5)","v":"447-6"}]
[null,"461-Department of Ecology","564-1 Water Pollution Ctrl Revl Admin-State",{"$f":"LEFT(Table_clallam_Oversight_ActiveFunds[[#This Row],[Fund]],5)","v":"564-1"}]
[null,"461-Department of Ecology","727-1 Water Pollution Control Revolving-State",{"$f":"LEFT(Table_clallam_Oversight_ActiveFunds[[#This Row],[Fund]],5)","v":"727-1"}]
[null,"461-Department of Ecology","727-2 Water Pollution Control Revolving-Federal",{"$f":"LEFT(Table_clallam_Oversight_ActiveFunds[[#This Row],[Fund]],5)","v":"727-2"}]
[null,"462-WA Pollution Liab Insurance Program","20T-1 Underground Storage Tank Revolving-State",{"$f":"LEFT(Table_clallam_Oversight_ActiveFunds[[#This Row],[Fund]],5)","v":"20T-1"}]
[null,"462-WA Pollution Liab Insurance Program","544-1 Pollution Liab Insurance Prog Trust-State",{"$f":"LEFT(Table_clallam_Oversight_ActiveFunds[[#This Row],[Fund]],5)","v":"544-1"}]
[null,"462-WA Pollution Liab Insurance Program","544-6 Pollution Liab Insurance Prog Trust-Non-Appropriated",{"$f":"LEFT(Table_clallam_Oversight_ActiveFunds[[#This Row],[Fund]],5)","v":"544-6"}]
[null,"462-WA Pollution Liab Insurance Program","545-6 Heating Oil Pollution Liab Trust-Non-Appropriated",{"$f":"LEFT(Table_clallam_Oversight_ActiveFunds[[#This Row],[Fund]],5)","v":"545-6"}]
[null,"465-State Parks and Recreation Comm","001-1 General Fund-State",{"$f":"LEFT(Table_clallam_Oversight_ActiveFunds[[#This Row],[Fund]],5)","v":"001-1"}]
[null,"465-State Parks and Recreation Comm","001-2 General Fund-Federal",{"$f":"LEFT(Table_clallam_Oversight_ActiveFunds[[#This Row],[Fund]],5)","v":"001-2"}]
[null,"465-State Parks and Recreation Comm","007-1 Winter Recreation Program Account-State",{"$f":"LEFT(Table_clallam_Oversight_ActiveFunds[[#This Row],[Fund]],5)","v":"007-1"}]
[null,"465-State Parks and Recreation Comm","01B-1 ORV & Non-Highway Vehicle Account-State",{"$f":"LEFT(Table_clallam_Oversight_ActiveFunds[[#This Row],[Fund]],5)","v":"01B-1"}]
[null,"465-State Parks and Recreation Comm","01M-1 Snowmobile Account-State",{"$f":"LEFT(Table_clallam_Oversight_ActiveFunds[[#This Row],[Fund]],5)","v":"01M-1"}]
[null,"465-State Parks and Recreation Comm","02R-1 Aquatic Lands Enhancement Account-State",{"$f":"LEFT(Table_clallam_Oversight_ActiveFunds[[#This Row],[Fund]],5)","v":"02R-1"}]
[null,"465-State Parks and Recreation Comm","08P-6 State Parks Education & Enhancement-Non-Appropriated",{"$f":"LEFT(Table_clallam_Oversight_ActiveFunds[[#This Row],[Fund]],5)","v":"08P-6"}]
[null,"465-State Parks and Recreation Comm","09B-6 Boating Safety Edu Cert Account-Non-Appropriated",{"$f":"LEFT(Table_clallam_Oversight_ActiveFunds[[#This Row],[Fund]],5)","v":"09B-6"}]
[null,"465-State Parks and Recreation Comm","108-1 Motor Vehicle Account-State",{"$f":"LEFT(Table_clallam_Oversight_ActiveFunds[[#This Row],[Fund]],5)","v":"108-1"}]
[null,"465-State Parks and Recreation Comm","12L-6 Outdoor Education & Recreation Acct-Non-Appropriated",{"$f":"LEFT(Table_clallam_Oversight_ActiveFunds[[#This Row],[Fund]],5)","v":"12L-6"}]
[null,"465-State Parks and Recreation Comm","159-6 Parks Improvement Account-Non-Appropriated",{"$f":"LEFT(Table_clallam_Oversight_ActiveFunds[[#This Row],[Fund]],5)","v":"159-6"}]
[null,"465-State Parks and Recreation Comm","237-1 Recreation Access Pass Account-State",{"$f":"LEFT(Table_clallam_Oversight_ActiveFunds[[#This Row],[Fund]],5)","v":"237-1"}]
[null,"465-State Parks and Recreation Comm","269-1 Parks Renewal & Stewardship Acct-State",{"$f":"LEFT(Table_clallam_Oversight_ActiveFunds[[#This Row],[Fund]],5)","v":"269-1"}]
[null,"465-State Parks and Recreation Comm","269-7 Parks Renewal & Stewardship Acct-Private/Local",{"$f":"LEFT(Table_clallam_Oversight_ActiveFunds[[#This Row],[Fund]],5)","v":"269-7"}]
[null,"467-Rec and Conservation Funding Board","001-1 General Fund-State",{"$f":"LEFT(Table_clallam_Oversight_ActiveFunds[[#This Row],[Fund]],5)","v":"001-1"}]
[null,"467-Rec and Conservation Funding Board","001-2 General Fund-Federal",{"$f":"LEFT(Table_clallam_Oversight_ActiveFunds[[#This Row],[Fund]],5)","v":"001-2"}]
[null,"467-Rec and Conservation Funding Board","001-7 General Fund-Private/Local",{"$f":"LEFT(Table_clallam_Oversight_ActiveFunds[[#This Row],[Fund]],5)","v":"001-7"}]
[null,"467-Rec and Conservation Funding Board","02R-1 Aquatic Lands Enhancement Account-State",{"$f":"LEFT(Table_clallam_Oversight_ActiveFunds[[#This Row],[Fund]],5)","v":"02R-1"}]
[null,"467-Rec and Conservation Funding Board","03K-6 Industrial Insurance Premium Refund-Non-Appropriated",{"$f":"LEFT(Table_clallam_Oversight_ActiveFunds[[#This Row],[Fund]],5)","v":"03K-6"}]
[null,"467-Rec and Conservation Funding Board","146-1 Firearms Range Account-State",{"$f":"LEFT(Table_clallam_Oversight_ActiveFunds[[#This Row],[Fund]],5)","v":"146-1"}]
[null,"467-Rec and Conservation Funding Board","267-1 Recreation Resources Account-State",{"$f":"LEFT(Table_clallam_Oversight_ActiveFunds[[#This Row],[Fund]],5)","v":"267-1"}]
[null,"467-Rec and Conservation Funding Board","268-1 NOVA Program Account-State",{"$f":"LEFT(Table_clallam_Oversight_ActiveFunds[[#This Row],[Fund]],5)","v":"268-1"}]
[null,"467-Rec and Conservation Funding Board","818-6 Youth Athletic Facility Account-Non-Appropriated",{"$f":"LEFT(Table_clallam_Oversight_ActiveFunds[[#This Row],[Fund]],5)","v":"818-6"}]
[null,"468-Environ & Land Use Hearings Office","001-1 General Fund-State",{"$f":"LEFT(Table_clallam_Oversight_ActiveFunds[[#This Row],[Fund]],5)","v":"001-1"}]
[null,"471-State Conservation Commission","001-1 General Fund-State",{"$f":"LEFT(Table_clallam_Oversight_ActiveFunds[[#This Row],[Fund]],5)","v":"001-1"}]
[null,"471-State Conservation Commission","001-2 General Fund-Federal",{"$f":"LEFT(Table_clallam_Oversight_ActiveFunds[[#This Row],[Fund]],5)","v":"001-2"}]
[null,"471-State Conservation Commission","03K-6 Industrial Insurance Premium Refund-Non-Appropriated",{"$f":"LEFT(Table_clallam_Oversight_ActiveFunds[[#This Row],[Fund]],5)","v":"03K-6"}]
[null,"471-State Conservation Commission","058-1 Public Works Assistance Account-State",{"$f":"LEFT(Table_clallam_Oversight_ActiveFunds[[#This Row],[Fund]],5)","v":"058-1"}]
[null,"471-State Conservation Commission","05H-1 Disaster Response Account-State",{"$f":"LEFT(Table_clallam_Oversight_ActiveFunds[[#This Row],[Fund]],5)","v":"05H-1"}]
[null,"471-State Conservation Commission","173-1 State Toxics Control Account-State",{"$f":"LEFT(Table_clallam_Oversight_ActiveFunds[[#This Row],[Fund]],5)","v":"173-1"}]
[null,"477-Dept of Fish and Wildlife","001-1 General Fund-State",{"$f":"LEFT(Table_clallam_Oversight_ActiveFunds[[#This Row],[Fund]],5)","v":"001-1"}]
[null,"477-Dept of Fish and Wildlife","001-2 General Fund-Federal",{"$f":"LEFT(Table_clallam_Oversight_ActiveFunds[[#This Row],[Fund]],5)","v":"001-2"}]
[null,"477-Dept of Fish and Wildlife","001-7 General Fund-Private/Local",{"$f":"LEFT(Table_clallam_Oversight_ActiveFunds[[#This Row],[Fund]],5)","v":"001-7"}]
[null,"477-Dept of Fish and Wildlife","01B-1 ORV & Non-Highway Vehicle Account-State",{"$f":"LEFT(Table_clallam_Oversight_ActiveFunds[[#This Row],[Fund]],5)","v":"01B-1"}]
[null,"477-Dept of Fish and Wildlife","02R-1 Aquatic Lands Enhancement Account-State",{"$f":"LEFT(Table_clallam_Oversight_ActiveFunds[[#This Row],[Fund]],5)","v":"02R-1"}]
[null,"477-Dept of Fish and Wildlife","04M-1 Recreational Fisheries Enhancement-State",{"$f":"LEFT(Table_clallam_Oversight_ActiveFunds[[#This Row],[Fund]],5)","v":"04M-1"}]
[null,"477-Dept of Fish and Wildlife","05H-1 Disaster Response Account-State",{"$f":"LEFT(Table_clallam_Oversight_ActiveFunds[[#This Row],[Fund]],5)","v":"05H-1"}]
[null,"477-Dept of Fish and Wildlife","071-1 Warm Water Game Fish Account-State",{"$f":"LEFT(Table_clallam_Oversight_ActiveFunds[[#This Row],[Fund]],5)","v":"071-1"}]
[null,"477-Dept of Fish and Wildlife","07V-6 Fish & Wildlife Enforcement Reward-Non-Appropriated",{"$f":"LEFT(Table_clallam_Oversight_ActiveFunds[[#This Row],[Fund]],5)","v":"07V-6"}]
[null,"477-Dept of Fish and Wildlife","098-1 East WA Pheasant Enhancement Acct-State",{"$f":"LEFT(Table_clallam_Oversight_ActiveFunds[[#This Row],[Fund]],5)","v":"098-1"}]
[null,"477-Dept of Fish and Wildlife","09J-6 WA Coast Crab Pot Buoy Tag Account-Non-Appropriated",{"$f":"LEFT(Table_clallam_Oversight_ActiveFunds[[#This Row],[Fund]],5)","v":"09J-6"}]
[null,"477-Dept of Fish and Wildlife","09M-1 Aquatic Invasive Species Enf. Acct.-State",{"$f":"LEFT(Table_clallam_Oversight_ActiveFunds[[#This Row],[Fund]],5)","v":"09M-1"}]
[null,"477-Dept of Fish and Wildlife","09N-1 Aquatic Invasive Sp Prevention Acct-State",{"$f":"LEFT(Table_clallam_Oversight_ActiveFunds[[#This Row],[Fund]],5)","v":"09N-1"}]
[null,"477-Dept of Fish and Wildlife","104-1 State Wildlife Account-State",{"$f":"LEFT(Table_clallam_Oversight_ActiveFunds[[#This Row],[Fund]],5)","v":"104-1"}]
[null,"477-Dept of Fish and Wildlife","108-1 Motor Vehicle Account-State",{"$f":"LEFT(Table_clallam_Oversight_ActiveFunds[[#This Row],[Fund]],5)","v":"108-1"}]
[null,"477-Dept of Fish and Wildlife","110-1 Special Wildlife Account-State",{"$f":"LEFT(Table_clallam_Oversight_ActiveFunds[[#This Row],[Fund]],5)","v":"110-1"}]
[null,"477-Dept of Fish and Wildlife","110-2 Special Wildlife Account-Federal",{"$f":"LEFT(Table_clallam_Oversight_ActiveFunds[[#This Row],[Fund]],5)","v":"110-2"}]
[null,"477-Dept of Fish and Wildlife","110-7 Special Wildlife Account-Private/Local",{"$f":"LEFT(Table_clallam_Oversight_ActiveFunds[[#This Row],[Fund]],5)","v":"110-7"}]
[null,"477-Dept of Fish and Wildlife","12G-6 Rockfish Research Account-Non-Appropriated",{"$f":"LEFT(Table_clallam_Oversight_ActiveFunds[[#This Row],[Fund]],5)","v":"12G-6"}]
[null,"477-Dept of Fish and Wildlife","14A-1 Wildlife Rehabilitation Account-State",{"$f":"LEFT(Table_clallam_Oversight_ActiveFunds[[#This Row],[Fund]],5)","v":"14A-1"}]
[null,"477-Dept of Fish and Wildlife","14B-1 Budget Stabilization Account-State",{"$f":"LEFT(Table_clallam_Oversight_ActiveFunds[[#This Row],[Fund]],5)","v":"14B-1"}]
[null,"477-Dept of Fish and Wildlife","16H-6 Col Rvr Rec Salmon/Steelhead Endrs-Non-Appropriated",{"$f":"LEFT(Table_clallam_Oversight_ActiveFunds[[#This Row],[Fund]],5)","v":"16H-6"}]
[null,"477-Dept of Fish and Wildlife","18L-1 Hydraulic Project Approval Account-State",{"$f":"LEFT(Table_clallam_Oversight_ActiveFunds[[#This Row],[Fund]],5)","v":"18L-1"}]
[null,"477-Dept of Fish and Wildlife","19G-1 Environmental Legacy Stewardship-State",{"$f":"LEFT(Table_clallam_Oversight_ActiveFunds[[#This Row],[Fund]],5)","v":"19G-1"}]
[null,"477-Dept of Fish and Wildlife","19W-6 Wolf-Livestock Conflict Account-Non-Appropriated",{"$f":"LEFT(Table_clallam_Oversight_ActiveFunds[[#This Row],[Fund]],5)","v":"19W-6"}]
[null,"477-Dept of Fish and Wildlife","200-2 Regnl Fisheries Enh Salmonid Recov-Federal",{"$f":"LEFT(Table_clallam_Oversight_ActiveFunds[[#This Row],[Fund]],5)","v":"200-2"}]
[null,"477-Dept of Fish and Wildlife","209-6 Regional Fisheries Enhance Group-Non-Appropriated",{"$f":"LEFT(Table_clallam_Oversight_ActiveFunds[[#This Row],[Fund]],5)","v":"209-6"}]
[null,"477-Dept of Fish and Wildlife","217-1 Oil Spill Prevention Account-State",{"$f":"LEFT(Table_clallam_Oversight_ActiveFunds[[#This Row],[Fund]],5)","v":"217-1"}]
[null,"477-Dept of Fish and Wildlife","259-6 Coastal Crab Account-Non-Appropriated",{"$f":"LEFT(Table_clallam_Oversight_ActiveFunds[[#This Row],[Fund]],5)","v":"259-6"}]
[null,"477-Dept of Fish and Wildlife","320-6 Puget Sound Crab Pot Buoy Tag Acct-Non-Appropriated",{"$f":"LEFT(Table_clallam_Oversight_ActiveFunds[[#This Row],[Fund]],5)","v":"320-6"}]
[null,"477-Dept of Fish and Wildlife","444-6 Fish & Wildlife Equip Revolv Acct-Non-Appropriated",{"$f":"LEFT(Table_clallam_Oversight_ActiveFunds[[#This Row],[Fund]],5)","v":"444-6"}]
[null,"477-Dept of Fish and Wildlife","447-6 Info Tech Invest Rev Acct-Non-Appropriated",{"$f":"LEFT(Table_clallam_Oversight_ActiveFunds[[#This Row],[Fund]],5)","v":"447-6"}]
[null,"477-Dept of Fish and Wildlife","507-1 Oyster Reserve Land Account-State",{"$f":"LEFT(Table_clallam_Oversight_ActiveFunds[[#This Row],[Fund]],5)","v":"507-1"}]
[null,"478-Puget Sound Partnership","001-1 General Fund-State",{"$f":"LEFT(Table_clallam_Oversight_ActiveFunds[[#This Row],[Fund]],5)","v":"001-1"}]
[null,"478-Puget Sound Partnership","001-2 General Fund-Federal",{"$f":"LEFT(Table_clallam_Oversight_ActiveFunds[[#This Row],[Fund]],5)","v":"001-2"}]
[null,"478-Puget Sound Partnership","001-3 General Fund-Federal Unanticipated",{"$f":"LEFT(Table_clallam_Oversight_ActiveFunds[[#This Row],[Fund]],5)","v":"001-3"}]
[null,"478-Puget Sound Partnership","02R-1 Aquatic Lands Enhancement Account-State",{"$f":"LEFT(Table_clallam_Oversight_ActiveFunds[[#This Row],[Fund]],5)","v":"02R-1"}]
[null,"478-Puget Sound Partnership","03K-6 Industrial Insurance Premium Refund-Non-Appropriated",{"$f":"LEFT(Table_clallam_Oversight_ActiveFunds[[#This Row],[Fund]],5)","v":"03K-6"}]
[null,"478-Puget Sound Partnership","173-1 State Toxics Control Account-State",{"$f":"LEFT(Table_clallam_Oversight_ActiveFunds[[#This Row],[Fund]],5)","v":"173-1"}]
[null,"490-Department of Natural Resources","001-1 General Fund-State",{"$f":"LEFT(Table_clallam_Oversight_ActiveFunds[[#This Row],[Fund]],5)","v":"001-1"}]
[null,"490-Department of Natural Resources","001-2 General Fund-Federal",{"$f":"LEFT(Table_clallam_Oversight_ActiveFunds[[#This Row],[Fund]],5)","v":"001-2"}]
[null,"490-Department of Natural Resources","001-7 General Fund-Private/Local",{"$f":"LEFT(Table_clallam_Oversight_ActiveFunds[[#This Row],[Fund]],5)","v":"001-7"}]
[null,"490-Department of Natural Resources","014-1 Forest Development Account-State",{"$f":"LEFT(Table_clallam_Oversight_ActiveFunds[[#This Row],[Fund]],5)","v":"014-1"}]
[null,"490-Department of Natural Resources","01B-1 ORV & Non-Highway Vehicle Account-State",{"$f":"LEFT(Table_clallam_Oversight_ActiveFunds[[#This Row],[Fund]],5)","v":"01B-1"}]
[null,"490-Department of Natural Resources","02A-1 Surveys and Maps Account-State",{"$f":"LEFT(Table_clallam_Oversight_ActiveFunds[[#This Row],[Fund]],5)","v":"02A-1"}]
[null,"490-Department of Natural Resources","02R-1 Aquatic Lands Enhancement Account-State",{"$f":"LEFT(Table_clallam_Oversight_ActiveFunds[[#This Row],[Fund]],5)","v":"02R-1"}]
[null,"490-Department of Natural Resources","030-6 Landowner Contng Forest Fire Supp-Non-Appropriated",{"$f":"LEFT(Table_clallam_Oversight_ActiveFunds[[#This Row],[Fund]],5)","v":"030-6"}]
[null,"490-Department of Natural Resources","041-1 Resources Management Cost Account-State",{"$f":"LEFT(Table_clallam_Oversight_ActiveFunds[[#This Row],[Fund]],5)","v":"041-1"}]
[null,"490-Department of Natural Resources","04H-1 Surface Mining Reclamation Account-State",{"$f":"LEFT(Table_clallam_Oversight_ActiveFunds[[#This Row],[Fund]],5)","v":"04H-1"}]
[null,"490-Department of Natural Resources","05H-1 Disaster Response Account-State",{"$f":"LEFT(Table_clallam_Oversight_ActiveFunds[[#This Row],[Fund]],5)","v":"05H-1"}]
[null,"490-Department of Natural Resources","07E-6 Contract Harvesting Revolving Acct-Non-Appropriated",{"$f":"LEFT(Table_clallam_Oversight_ActiveFunds[[#This Row],[Fund]],5)","v":"07E-6"}]
[null,"490-Department of Natural Resources","087-6 Park Land Trust Revolving Account-Non-Appropriated",{"$f":"LEFT(Table_clallam_Oversight_ActiveFunds[[#This Row],[Fund]],5)","v":"087-6"}]
[null,"490-Department of Natural Resources","11H-1 Forest and Fish Support Account-State",{"$f":"LEFT(Table_clallam_Oversight_ActiveFunds[[#This Row],[Fund]],5)","v":"11H-1"}]
[null,"490-Department of Natural Resources","14B-1 Budget Stabilization Account-State",{"$f":"LEFT(Table_clallam_Oversight_ActiveFunds[[#This Row],[Fund]],5)","v":"14B-1"}]
[null,"490-Department of Natural Resources","158-1 Aquatic Land Dredged Mat Disp Site-State",{"$f":"LEFT(Table_clallam_Oversight_ActiveFunds[[#This Row],[Fund]],5)","v":"158-1"}]
[null,"490-Department of Natural Resources","167-1 Nat Res Conserv Areas Stewardship-State",{"$f":"LEFT(Table_clallam_Oversight_ActiveFunds[[#This Row],[Fund]],5)","v":"167-1"}]
[null,"490-Department of Natural Resources","16P-1 Marine Resources Stewardship Trust-State",{"$f":"LEFT(Table_clallam_Oversight_ActiveFunds[[#This Row],[Fund]],5)","v":"16P-1"}]
[null,"490-Department of Natural Resources","173-1 State Toxics Control Account-State",{"$f":"LEFT(Table_clallam_Oversight_ActiveFunds[[#This Row],[Fund]],5)","v":"173-1"}]
[null,"490-Department of Natural Resources","190-6 Forest Fire Protection Assessment-Non-Appropriated",{"$f":"LEFT(Table_clallam_Oversight_ActiveFunds[[#This Row],[Fund]],5)","v":"190-6"}]
[null,"490-Department of Natural Resources","193-6 State Forest Nursery Revolving Acct-Non-Appropriated",{"$f":"LEFT(Table_clallam_Oversight_ActiveFunds[[#This Row],[Fund]],5)","v":"193-6"}]
[null,"490-Department of Natural Resources","198-6 Access Road Revolving Account-Non-Appropriated",{"$f":"LEFT(Table_clallam_Oversight_ActiveFunds[[#This Row],[Fund]],5)","v":"198-6"}]
[null,"490-Department of Natural Resources","19C-1 Forest Practices Application Acct-State",{"$f":"LEFT(Table_clallam_Oversight_ActiveFunds[[#This Row],[Fund]],5)","v":"19C-1"}]
[null,"490-Department of Natural Resources","19G-1 Environmental Legacy Stewardship-State",{"$f":"LEFT(Table_clallam_Oversight_ActiveFunds[[#This Row],[Fund]],5)","v":"19G-1"}]
[null,"490-Department of Natural Resources","216-1 Air Pollution Control Account-State",{"$f":"LEFT(Table_clallam_Oversight_ActiveFunds[[#This Row],[Fund]],5)","v":"216-1"}]
[null,"490-Department of Natural Resources","268-1 NOVA Program Account-State",{"$f":"LEFT(Table_clallam_Oversight_ActiveFunds[[#This Row],[Fund]],5)","v":"268-1"}]
[null,"490-Department of Natural Resources","411-6 Natural Resources Equipment Account-Non-Appropriated",{"$f":"LEFT(Table_clallam_Oversight_ActiveFunds[[#This Row],[Fund]],5)","v":"411-6"}]
[null,"490-Department of Natural Resources","513-1 Derelict Vessel Removal Account-State",{"$f":"LEFT(Table_clallam_Oversight_ActiveFunds[[#This Row],[Fund]],5)","v":"513-1"}]
[null,"490-Department of Natural Resources","566-1 Community Forest Trust Account-State",{"$f":"LEFT(Table_clallam_Oversight_ActiveFunds[[#This Row],[Fund]],5)","v":"566-1"}]
[null,"490-Department of Natural Resources","830-1 Agricultural Coll Trust Mgmt Acct-State",{"$f":"LEFT(Table_clallam_Oversight_ActiveFunds[[#This Row],[Fund]],5)","v":"830-1"}]
[null,"495-Department of Agriculture","001-1 General Fund-State",{"$f":"LEFT(Table_clallam_Oversight_ActiveFunds[[#This Row],[Fund]],5)","v":"001-1"}]
[null,"495-Department of Agriculture","001-2 General Fund-Federal",{"$f":"LEFT(Table_clallam_Oversight_ActiveFunds[[#This Row],[Fund]],5)","v":"001-2"}]
[null,"495-Department of Agriculture","001-7 General Fund-Private/Local",{"$f":"LEFT(Table_clallam_Oversight_ActiveFunds[[#This Row],[Fund]],5)","v":"001-7"}]
[null,"495-Department of Agriculture","02R-1 Aquatic Lands Enhancement Account-State",{"$f":"LEFT(Table_clallam_Oversight_ActiveFunds[[#This Row],[Fund]],5)","v":"02R-1"}]
[null,"495-Department of Agriculture","03K-6 Industrial Insurance Premium Refund-Non-Appropriated",{"$f":"LEFT(Table_clallam_Oversight_ActiveFunds[[#This Row],[Fund]],5)","v":"03K-6"}]
[null,"495-Department of Agriculture","108-1 Motor Vehicle Account-State",{"$f":"LEFT(Table_clallam_Oversight_ActiveFunds[[#This Row],[Fund]],5)","v":"108-1"}]
[null,"495-Department of Agriculture","126-6 Agricultural Local Account-Non-Appropriated",{"$f":"LEFT(Table_clallam_Oversight_ActiveFunds[[#This Row],[Fund]],5)","v":"126-6"}]
[null,"495-Department of Agriculture","128-6 Grain Inspection Revolving Acct-Non-Appropriated",{"$f":"LEFT(Table_clallam_Oversight_ActiveFunds[[#This Row],[Fund]],5)","v":"128-6"}]
[null,"495-Department of Agriculture","131-6 Fair Account-Non-Appropriated",{"$f":"LEFT(Table_clallam_Oversight_ActiveFunds[[#This Row],[Fund]],5)","v":"131-6"}]
[null,"495-Department of Agriculture","173-1 State Toxics Control Account-State",{"$f":"LEFT(Table_clallam_Oversight_ActiveFunds[[#This Row],[Fund]],5)","v":"173-1"}]
[null,"495-Department of Agriculture","176-1 Water Quality Permit Account-State",{"$f":"LEFT(Table_clallam_Oversight_ActiveFunds[[#This Row],[Fund]],5)","v":"176-1"}]
[null,"495-Department of Agriculture","516-6 Fruit and Vegetable Inspection Acct-Non-Appropriated",{"$f":"LEFT(Table_clallam_Oversight_ActiveFunds[[#This Row],[Fund]],5)","v":"516-6"}]
[null,"495-Department of Agriculture","687-6 Rural Rehabilitation Account-Non-Appropriated",{"$f":"LEFT(Table_clallam_Oversight_ActiveFunds[[#This Row],[Fund]],5)","v":"687-6"}]
[null,"495-Department of Agriculture","823-6 Livestock Nutrient Management Acct-Non-Appropriated",{"$f":"LEFT(Table_clallam_Oversight_ActiveFunds[[#This Row],[Fund]],5)","v":"823-6"}]
[null,"540-Employment Security Department","001-2 General Fund-Federal",{"$f":"LEFT(Table_clallam_Oversight_ActiveFunds[[#This Row],[Fund]],5)","v":"001-2"}]
[null,"540-Employment Security Department","001-7 General Fund-Private/Local",{"$f":"LEFT(Table_clallam_Oversight_ActiveFunds[[#This Row],[Fund]],5)","v":"001-7"}]
[null,"540-Employment Security Department","119-2 Unemployment Compensation Admin-Federal",{"$f":"LEFT(Table_clallam_Oversight_ActiveFunds[[#This Row],[Fund]],5)","v":"119-2"}]
[null,"540-Employment Security Department","120-1 Administrative Contingency Account-State",{"$f":"LEFT(Table_clallam_Oversight_ActiveFunds[[#This Row],[Fund]],5)","v":"120-1"}]
[null,"540-Employment Security Department","134-1 Employment Services Administrative-State",{"$f":"LEFT(Table_clallam_Oversight_ActiveFunds[[#This Row],[Fund]],5)","v":"134-1"}]
[null,"540-Employment Security Department","16L-6 Accessible Communities Account-Non-Appropriated",{"$f":"LEFT(Table_clallam_Oversight_ActiveFunds[[#This Row],[Fund]],5)","v":"16L-6"}]
[null,"540-Employment Security Department","620-6 Unemployment Compensation Account-Non-Appropriated",{"$f":"LEFT(Table_clallam_Oversight_ActiveFunds[[#This Row],[Fund]],5)","v":"620-6"}]
[null,"540-Employment Security Department","622-6 Unemployment Comp Fed Emp Ben Pmt-Non-Appropriated",{"$f":"LEFT(Table_clallam_Oversight_ActiveFunds[[#This Row],[Fund]],5)","v":"622-6"}]
[null,"699-Community/Technical College System","001-1 General Fund-State",{"$f":"LEFT(Table_clallam_Oversight_ActiveFunds[[#This Row],[Fund]],5)","v":"001-1"}]
[null,"699-Community/Technical College System","060-1 Comm/Tech Col Capital Projects Acct-State",{"$f":"LEFT(Table_clallam_Oversight_ActiveFunds[[#This Row],[Fund]],5)","v":"060-1"}]
[null,"699-Community/Technical College System","08A-1 Education Legacy Trust Account-State",{"$f":"LEFT(Table_clallam_Oversight_ActiveFunds[[#This Row],[Fund]],5)","v":"08A-1"}]
[null,"699-Community/Technical College System","11A-6 Employment Training Finance Account-Non-Appropriated",{"$f":"LEFT(Table_clallam_Oversight_ActiveFunds[[#This Row],[Fund]],5)","v":"11A-6"}]
[null,"699-Community/Technical College System","145-6 Inst of Hi Ed-Grants/Contracts Acct-Non-Appropriated",{"$f":"LEFT(Table_clallam_Oversight_ActiveFunds[[#This Row],[Fund]],5)","v":"145-6"}]
[null,"699-Community/Technical College System","148-6 Inst of Hi Ed-Dedicated Local Acct-Non-Appropriated",{"$f":"LEFT(Table_clallam_Oversight_ActiveFunds[[#This Row],[Fund]],5)","v":"148-6"}]
[null,"699-Community/Technical College System","149-6 Inst of Hi Ed-Operating Fees Acct-Non-Appropriated",{"$f":"LEFT(Table_clallam_Oversight_ActiveFunds[[#This Row],[Fund]],5)","v":"149-6"}]
[null,"699-Community/Technical College System","253-1 Education Construction Account-State",{"$f":"LEFT(Table_clallam_Oversight_ActiveFunds[[#This Row],[Fund]],5)","v":"253-1"}]
[null,"699-Community/Technical College System","440-6 Inst of Hi Ed-Stores Account-Non-Appropriated",{"$f":"LEFT(Table_clallam_Oversight_ActiveFunds[[#This Row],[Fund]],5)","v":"440-6"}]
[null,"699-Community/Technical College System","443-6 Inst of Hi Ed-Data Processing Acct-Non-Appropriated",{"$f":"LEFT(Table_clallam_Oversight_ActiveFunds[[#This Row],[Fund]],5)","v":"443-6"}]
[null,"699-Community/Technical College System","448-6 Inst of Hi Ed-Printing Account-Non-Appropriated",{"$f":"LEFT(Table_clallam_Oversight_ActiveFunds[[#This Row],[Fund]],5)","v":"448-6"}]
[null,"699-Community/Technical College System","450-6 Inst of Hi Ed-Other Facilities Acct-Non-Appropriated",{"$f":"LEFT(Table_clallam_Oversight_ActiveFunds[[#This Row],[Fund]],5)","v":"450-6"}]
[null,"699-Community/Technical College System","460-6 Inst of Hi Ed-Motor Pool Account-Non-Appropriated",{"$f":"LEFT(Table_clallam_Oversight_ActiveFunds[[#This Row],[Fund]],5)","v":"460-6"}]
[null,"699-Community/Technical College System","522-6 Inst of Hi Ed-Associated Students'-Non-Appropriated",{"$f":"LEFT(Table_clallam_Oversight_ActiveFunds[[#This Row],[Fund]],5)","v":"522-6"}]
[null,"699-Community/Technical College System","524-6 Inst of Hi Ed-Bookstore Account-Non-Appropriated",{"$f":"LEFT(Table_clallam_Oversight_ActiveFunds[[#This Row],[Fund]],5)","v":"524-6"}]
[null,"699-Community/Technical College System","528-6 Inst of Hi Ed-Parking Account-Non-Appropriated",{"$f":"LEFT(Table_clallam_Oversight_ActiveFunds[[#This Row],[Fund]],5)","v":"528-6"}]
[null,"699-Community/Technical College System","561-6 Comm/Tech College Innovation Accoun-Non-Appropriated",{"$f":"LEFT(Table_clallam_Oversight_ActiveFunds[[#This Row],[Fund]],5)","v":"561-6"}]
[null,"699-Community/Technical College System","569-6 Inst of Hi Ed-Food Services Account-Non-Appropriated",{"$f":"LEFT(Table_clallam_Oversight_ActiveFunds[[#This Row],[Fund]],5)","v":"569-6"}]
[null,"699-Community/Technical College System","570-6 Inst of Hi Ed-Other Enterprises-Non-Appropriated",{"$f":"LEFT(Table_clallam_Oversight_ActiveFunds[[#This Row],[Fund]],5)","v":"570-6"}]
[null,"699-Community/Technical College System","573-6 Inst of Hi Ed-Housing & Food Acct-Non-Appropriated",{"$f":"LEFT(Table_clallam_Oversight_ActiveFunds[[#This Row],[Fund]],5)","v":"573-6"}]
[null,"699-Community/Technical College System","846-6 Grant-In-Aid Scholarship/Fellowship-Non-Appropriated",{"$f":"LEFT(Table_clallam_Oversight_ActiveFunds[[#This Row],[Fund]],5)","v":"846-6"}]
[null,"699-Community/Technical College System","849-6 Inst of Hi Ed-Student Loan Account-Non-Appropriated",{"$f":"LEFT(Table_clallam_Oversight_ActiveFunds[[#This Row],[Fund]],5)","v":"849-6"}]
[null,"699-Community/Technical College System","850-6 Inst of Hi Ed-Work Study Account-Non-Appropriated",{"$f":"LEFT(Table_clallam_Oversight_ActiveFunds[[#This Row],[Fund]],5)","v":"850-6"}]
[null,"699-Community/Technical College System","859-6 Inst of Hi Ed-Endowment Local Acct-Non-Appropriated",{"$f":"LEFT(Table_clallam_Oversight_ActiveFunds[[#This Row],[Fund]],5)","v":"859-6"}]
[null,"699-Community/Technical College System","860-6 Inst of Hi Ed-Long Term Loan Acct-Non-Appropriated",{"$f":"LEFT(Table_clallam_Oversight_ActiveFunds[[#This Row],[Fund]],5)","v":"860-6"}]